Organisation Name,Organisation Code,Unique Ref No,Effective Date,Directorate  where expenditure incurred,Supplier name ,Payment Date,Net Amount,Purpose of Spend,Procurement Classification (Higher Level),Procurement Classification (Lower Level),Capital/Revenue
Walsall Council,http://opendatacommunities.org/id/metropolitan-district-council/walsall,WC69-1,30/06/2016,Social Care & Inclusion,1ST CARE LIMITED T/A STUBBY LEAS NURSING HOME,07/06/2016,"-1,921.43",73373-RESIDENTIAL & NURSING CARE PLACEMENTS,MH COMMISSIONING,Third Party Payments,Revenue
Walsall Council,http://opendatacommunities.org/id/metropolitan-district-council/walsall,WC69-2,30/06/2016,Change and Governance,240 (DARLASTON) SQUADRON ATC,24/06/2016,"2,211.85",62515-MISCELLANEOUS SUPPLIES,AREA 5 - DARLASTON/BENTLEY,Supplies & Services,Revenue
Walsall Council,http://opendatacommunities.org/id/metropolitan-district-council/walsall,WC69-3,30/06/2016,Childrens,247 CARS (WILLENHALL) LIMITED,16/06/2016,"10,392.00",52000-WITH DRIVER-HIRE OF VEHICLES,SCHOOL TRANSPORT,Transport,Revenue
Walsall Council,http://opendatacommunities.org/id/metropolitan-district-council/walsall,WC69-4,30/06/2016,Childrens,5 CARE SERVICES LTD,07/06/2016,"1,288.00",63000-PROFESSIONAL FEES AND SERVICES,DIRECTLY COMMISSIONED NURSING SERVICES,Supplies & Services,Revenue
Walsall Council,http://opendatacommunities.org/id/metropolitan-district-council/walsall,WC69-5,30/06/2016,Social Care & Inclusion,5 CARE SERVICES LTD,08/06/2016,"7,909.13",73372-DOMICILIARY CARE,OP COMMISSIONING,Third Party Payments,Revenue
Walsall Council,http://opendatacommunities.org/id/metropolitan-district-council/walsall,WC69-6,30/06/2016,Social Care & Inclusion,5 CARE SERVICES LTD,21/06/2016,"39,977.54",73372-DOMICILIARY CARE,OP COMMISSIONING,Third Party Payments,Revenue
Walsall Council,http://opendatacommunities.org/id/metropolitan-district-council/walsall,WC69-7,30/06/2016,Change and Governance,A & P HOME MAINTENANCE LTD,15/06/2016,"3,820.00",01045-PRIVATE GRANTS,CFR 826 DISABLED FACILITIES GRANTS (SOCIAL SERVICES),Capital,Capital
Walsall Council,http://opendatacommunities.org/id/metropolitan-district-council/walsall,WC69-8,30/06/2016,Change and Governance,A D T FIRE AND SECURITY PLC,24/06/2016,230.80,73002-SECURITY-PRIV CONTRACTOR FEES,CENTRALISED MAINTENANCE,Third Party Payments,Revenue
Walsall Council,http://opendatacommunities.org/id/metropolitan-district-council/walsall,WC69-9,30/06/2016,Change and Governance,A D T FIRE AND SECURITY PLC,24/06/2016,413.53,73002-SECURITY-PRIV CONTRACTOR FEES,CENTRALISED MAINTENANCE,Third Party Payments,Revenue
Walsall Council,http://opendatacommunities.org/id/metropolitan-district-council/walsall,WC69-10,30/06/2016,Economy & Environment,A D T FIRE AND SECURITY PLC,13/06/2016,459.29,"40000-REPAIRS,ALTERATIONS & MAINTENANCE-PREM",ARBORETUM,Premises,Revenue
Walsall Council,http://opendatacommunities.org/id/metropolitan-district-council/walsall,WC69-11,30/06/2016,Economy & Environment,A D T FIRE AND SECURITY PLC,13/06/2016,504.04,"40000-REPAIRS,ALTERATIONS & MAINTENANCE-PREM",ARBORETUM,Premises,Revenue
Walsall Council,http://opendatacommunities.org/id/metropolitan-district-council/walsall,WC69-12,30/06/2016,Economy & Environment,A D T FIRE AND SECURITY PLC,13/06/2016,578.70,"40000-REPAIRS,ALTERATIONS & MAINTENANCE-PREM",ARBORETUM,Premises,Revenue
Walsall Council,http://opendatacommunities.org/id/metropolitan-district-council/walsall,WC69-13,30/06/2016,Economy & Environment,A F BLAKEMORE & SON LTD,01/06/2016,222.00,61018-DRINKS-PROVISIONS,WALSALL GALA CENTRE,Supplies & Services,Revenue
Walsall Council,http://opendatacommunities.org/id/metropolitan-district-council/walsall,WC69-14,30/06/2016,Economy & Environment,A F BLAKEMORE & SON LTD,28/06/2016,237.08,61008-CONFECTIONERY/SNACKS-PROVISIONS,OAK PARK,Supplies & Services,Revenue
Walsall Council,http://opendatacommunities.org/id/metropolitan-district-council/walsall,WC69-15,30/06/2016,Economy & Environment,A F BLAKEMORE & SON LTD,27/06/2016,241.28,61009-BEVERAGES-PROVISIONS,DARLASTON LEISURE CENTRE,Supplies & Services,Revenue
Walsall Council,http://opendatacommunities.org/id/metropolitan-district-council/walsall,WC69-16,30/06/2016,Economy & Environment,A F BLAKEMORE & SON LTD,27/06/2016,313.50,61002-DRY FOODS-PROVISIONS,DARLASTON LEISURE CENTRE,Supplies & Services,Revenue
Walsall Council,http://opendatacommunities.org/id/metropolitan-district-council/walsall,WC69-17,30/06/2016,Economy & Environment,A F BLAKEMORE & SON LTD,20/06/2016,335.08,61008-CONFECTIONERY/SNACKS-PROVISIONS,OAK PARK,Supplies & Services,Revenue
Walsall Council,http://opendatacommunities.org/id/metropolitan-district-council/walsall,WC69-18,30/06/2016,Economy & Environment,A F BLAKEMORE & SON LTD,01/06/2016,372.10,61008-CONFECTIONERY/SNACKS-PROVISIONS,WALSALL GALA CENTRE,Supplies & Services,Revenue
Walsall Council,http://opendatacommunities.org/id/metropolitan-district-council/walsall,WC69-19,30/06/2016,Social Care & Inclusion,A F BLAKEMORE & SON LTD,27/06/2016,415.78,61016-FOOD AND BEVERAGES-PROVISIONS,REABLEMENT TEAM - HOLLY BANK,Supplies & Services,Revenue
Walsall Council,http://opendatacommunities.org/id/metropolitan-district-council/walsall,WC69-20,30/06/2016,Social Care & Inclusion,A F BLAKEMORE & SON LTD,27/06/2016,535.95,61016-FOOD AND BEVERAGES-PROVISIONS,REABLEMENT TEAM - HOLLY BANK,Supplies & Services,Revenue
Walsall Council,http://opendatacommunities.org/id/metropolitan-district-council/walsall,WC69-21,30/06/2016,Social Care & Inclusion,A F BLAKEMORE & SON LTD,03/06/2016,576.03,61016-FOOD AND BEVERAGES-PROVISIONS,REABLEMENT TEAM - HOLLY BANK,Supplies & Services,Revenue
Walsall Council,http://opendatacommunities.org/id/metropolitan-district-council/walsall,WC69-22,30/06/2016,Social Care & Inclusion,A F BLAKEMORE & SON LTD,20/06/2016,699.76,61016-FOOD AND BEVERAGES-PROVISIONS,GOSCOTE,Supplies & Services,Revenue
Walsall Council,http://opendatacommunities.org/id/metropolitan-district-council/walsall,WC69-23,30/06/2016,Economy & Environment,A F BLAKEMORE & SON LTD,20/06/2016,951.29,61008-CONFECTIONERY/SNACKS-PROVISIONS,OAK PARK,Supplies & Services,Revenue
Walsall Council,http://opendatacommunities.org/id/metropolitan-district-council/walsall,WC69-24,30/06/2016,Childrens,REDACTED,06/06/2016,340.16,74006-HOLIDAY/CHRISTMAS ALLOWANCE-FOSTER CARERS-OTH AGENCY PROVISION,INTERNAL FOSTER CARE PROVISION,Third Party Payments,Revenue
Walsall Council,http://opendatacommunities.org/id/metropolitan-district-council/walsall,WC69-25,30/06/2016,Childrens,REDACTED,08/06/2016,464.00,76000-TRANSFER PAYMENTS - SOCIAL SERVICES CLIENTS,TRANSITION AND LEAVING CARE,Transfer Payments,Revenue
Walsall Council,http://opendatacommunities.org/id/metropolitan-district-council/walsall,WC69-26,30/06/2016,Childrens,REDACTED,22/06/2016,464.00,76000-TRANSFER PAYMENTS - SOCIAL SERVICES CLIENTS,TRANSITION AND LEAVING CARE,Transfer Payments,Revenue
Walsall Council,http://opendatacommunities.org/id/metropolitan-district-council/walsall,WC69-27,30/06/2016,Childrens,A1 EXPRESS TAXIS,15/06/2016,325.00,52001-HIRE OF VEHICLES,CHILDRENS TAXI BUDGET,Transport,Revenue
Walsall Council,http://opendatacommunities.org/id/metropolitan-district-council/walsall,WC69-28,30/06/2016,Childrens,A1 EXPRESS TAXIS,15/06/2016,406.00,52001-HIRE OF VEHICLES,CHILDRENS TAXI BUDGET,Transport,Revenue
Walsall Council,http://opendatacommunities.org/id/metropolitan-district-council/walsall,WC69-29,30/06/2016,Childrens,A1 EXPRESS TAXIS,15/06/2016,450.00,52001-HIRE OF VEHICLES,CHILDRENS TAXI BUDGET,Transport,Revenue
Walsall Council,http://opendatacommunities.org/id/metropolitan-district-council/walsall,WC69-30,30/06/2016,Childrens,A1 EXPRESS TAXIS,15/06/2016,475.00,52001-HIRE OF VEHICLES,CHILDRENS TAXI BUDGET,Transport,Revenue
Walsall Council,http://opendatacommunities.org/id/metropolitan-district-council/walsall,WC69-31,30/06/2016,Childrens,A1 EXPRESS TAXIS,15/06/2016,600.00,52001-HIRE OF VEHICLES,CHILDRENS TAXI BUDGET,Transport,Revenue
Walsall Council,http://opendatacommunities.org/id/metropolitan-district-council/walsall,WC69-32,30/06/2016,Childrens,REDACTED,13/06/2016,431.55,76422-DIRECT PAYMENTS TO SOCIAL SERVICES CLIENTS,FAMILY SUPPORT - DIRECT PAYMENTS,Transfer Payments,Revenue
Walsall Council,http://opendatacommunities.org/id/metropolitan-district-council/walsall,WC69-33,30/06/2016,Childrens,REDACTED,06/06/2016,650.92,74006-HOLIDAY/CHRISTMAS ALLOWANCE-FOSTER CARERS-OTH AGENCY PROVISION,INTERNAL FOSTER CARE PROVISION,Third Party Payments,Revenue
Walsall Council,http://opendatacommunities.org/id/metropolitan-district-council/walsall,WC69-34,30/06/2016,Social Care & Inclusion,ABBEY COURT NURSING & RESIDEN,14/06/2016,"1,600.71",73373-RESIDENTIAL & NURSING CARE PLACEMENTS,OP COMMISSIONING,Third Party Payments,Revenue
Walsall Council,http://opendatacommunities.org/id/metropolitan-district-council/walsall,WC69-35,30/06/2016,Social Care & Inclusion,ABBEY COURT NURSING & RESIDEN,14/06/2016,"2,014.29",73373-RESIDENTIAL & NURSING CARE PLACEMENTS,MH COMMISSIONING,Third Party Payments,Revenue
Walsall Council,http://opendatacommunities.org/id/metropolitan-district-council/walsall,WC69-36,30/06/2016,Childrens,ABC FOSTERING,27/06/2016,"2,872.37",74037-INDEPENDENT FOSTER CARE-OTH AGENCY PROVISION,EXTERNAL FOSTER CARE PROVISION,Third Party Payments,Revenue
Walsall Council,http://opendatacommunities.org/id/metropolitan-district-council/walsall,WC69-37,30/06/2016,Childrens,ABC FOSTERING,27/06/2016,"2,917.54",74037-INDEPENDENT FOSTER CARE-OTH AGENCY PROVISION,EXTERNAL FOSTER CARE PROVISION,Third Party Payments,Revenue
Walsall Council,http://opendatacommunities.org/id/metropolitan-district-council/walsall,WC69-38,30/06/2016,Childrens,ABC FOSTERING,27/06/2016,"2,917.54",74037-INDEPENDENT FOSTER CARE-OTH AGENCY PROVISION,EXTERNAL FOSTER CARE PROVISION,Third Party Payments,Revenue
Walsall Council,http://opendatacommunities.org/id/metropolitan-district-council/walsall,WC69-39,30/06/2016,Childrens,ABC FOSTERING,27/06/2016,"2,981.14",74037-INDEPENDENT FOSTER CARE-OTH AGENCY PROVISION,EXTERNAL FOSTER CARE PROVISION,Third Party Payments,Revenue
Walsall Council,http://opendatacommunities.org/id/metropolitan-district-council/walsall,WC69-40,30/06/2016,Childrens,ABC FOSTERING,27/06/2016,"2,997.26",74037-INDEPENDENT FOSTER CARE-OTH AGENCY PROVISION,EXTERNAL FOSTER CARE PROVISION,Third Party Payments,Revenue
Walsall Council,http://opendatacommunities.org/id/metropolitan-district-council/walsall,WC69-41,30/06/2016,Childrens,ABC FOSTERING,23/06/2016,"3,108.86",74037-INDEPENDENT FOSTER CARE-OTH AGENCY PROVISION,EXTERNAL FOSTER CARE PROVISION,Third Party Payments,Revenue
Walsall Council,http://opendatacommunities.org/id/metropolitan-district-council/walsall,WC69-42,30/06/2016,Childrens,ABC TEACHERS LIMITED,22/06/2016,471.98,34305-AGENCY STAFF-EMPLOYEES,ACCESS TEAM,Employees,Revenue
Walsall Council,http://opendatacommunities.org/id/metropolitan-district-council/walsall,WC69-43,30/06/2016,Childrens,ABC TEACHERS LIMITED,09/06/2016,707.97,34305-AGENCY STAFF-EMPLOYEES,ACCESS TEAM,Employees,Revenue
Walsall Council,http://opendatacommunities.org/id/metropolitan-district-council/walsall,WC69-44,30/06/2016,Childrens,ABC TEACHERS LIMITED,09/06/2016,707.97,34305-AGENCY STAFF-EMPLOYEES,ACCESS TEAM,Employees,Revenue
Walsall Council,http://opendatacommunities.org/id/metropolitan-district-council/walsall,WC69-45,30/06/2016,Change and Governance,ABEL ALARM CO LTD,27/06/2016,357.00,"40000-REPAIRS,ALTERATIONS & MAINTENANCE-PREM",WILLENHALL LANE CARAVAN SITE BLOXWICH,Premises,Revenue
Walsall Council,http://opendatacommunities.org/id/metropolitan-district-council/walsall,WC69-46,30/06/2016,Social Care & Inclusion,REDACTED,13/06/2016,"2,947.49",76422-DIRECT PAYMENTS TO SOCIAL SERVICES CLIENTS,LD COMMISSIONING,Transfer Payments,Revenue
Walsall Council,http://opendatacommunities.org/id/metropolitan-district-council/walsall,WC69-47,30/06/2016,Childrens,ABLEWELL CARS,03/06/2016,689.00,52000-WITH DRIVER-HIRE OF VEHICLES,SCHOOL TRANSPORT,Transport,Revenue
Walsall Council,http://opendatacommunities.org/id/metropolitan-district-council/walsall,WC69-48,30/06/2016,Childrens,ABLEWELL CARS,23/06/2016,795.00,52000-WITH DRIVER-HIRE OF VEHICLES,SCHOOL TRANSPORT,Transport,Revenue
Walsall Council,http://opendatacommunities.org/id/metropolitan-district-council/walsall,WC69-49,30/06/2016,Change and Governance,ABU BAKR GIRLS SCHOOL,22/06/2016,"1,500.00",66500-GRANTS TO OTHER ORGS,COHESION,Third Party Payments,Revenue
Walsall Council,http://opendatacommunities.org/id/metropolitan-district-council/walsall,WC69-50,30/06/2016,Childrens,ACCORD HOUSING ASSOCIATION LTD#135,27/06/2016,928.68,76422-DIRECT PAYMENTS TO SOCIAL SERVICES CLIENTS,SAFEGUARDING & FAMILY SUPPORT,Transfer Payments,Revenue
Walsall Council,http://opendatacommunities.org/id/metropolitan-district-council/walsall,WC69-51,30/06/2016,Social Care & Inclusion,ACCORD HOUSING ASSOCIATION LTD#135,08/06/2016,"2,589.93",73372-DOMICILIARY CARE,OP COMMISSIONING,Third Party Payments,Revenue
Walsall Council,http://opendatacommunities.org/id/metropolitan-district-council/walsall,WC69-52,30/06/2016,Social Care & Inclusion,ACCORD HOUSING ASSOCIATION LTD#135,21/06/2016,"11,175.48",73372-DOMICILIARY CARE,OP COMMISSIONING,Third Party Payments,Revenue
Walsall Council,http://opendatacommunities.org/id/metropolitan-district-council/walsall,WC69-53,30/06/2016,Social Care & Inclusion,ACCORD HOUSING ASSOCIATION LTD#135,21/06/2016,"25,095.93",73372-DOMICILIARY CARE,OP COMMISSIONING,Third Party Payments,Revenue
Walsall Council,http://opendatacommunities.org/id/metropolitan-district-council/walsall,WC69-54,30/06/2016,Social Care & Inclusion,ACE CARE AGENCY,07/06/2016,566.58,73372-DOMICILIARY CARE,MH COMMISSIONING,Third Party Payments,Revenue
Walsall Council,http://opendatacommunities.org/id/metropolitan-district-council/walsall,WC69-55,30/06/2016,Social Care & Inclusion,ACE CARE AGENCY,07/06/2016,617.40,73372-DOMICILIARY CARE,OP COMMISSIONING,Third Party Payments,Revenue
Walsall Council,http://opendatacommunities.org/id/metropolitan-district-council/walsall,WC69-56,30/06/2016,Childrens,ACE RADIO CARS,14/06/2016,"1,757.16",52000-WITH DRIVER-HIRE OF VEHICLES,SCHOOL TRANSPORT,Transport,Revenue
Walsall Council,http://opendatacommunities.org/id/metropolitan-district-council/walsall,WC69-57,30/06/2016,Social Care & Inclusion,ACORN CARE LTD,14/06/2016,"14,684.70",73373-RESIDENTIAL & NURSING CARE PLACEMENTS,LD COMMISSIONING,Third Party Payments,Revenue
Walsall Council,http://opendatacommunities.org/id/metropolitan-district-council/walsall,WC69-58,30/06/2016,Childrens,ACORNS CHILDRENS HOSPICE TRUST,20/06/2016,750.00,63000-PROFESSIONAL FEES AND SERVICES,DIRECTLY COMMISSIONED NURSING SERVICES,Supplies & Services,Revenue
Walsall Council,http://opendatacommunities.org/id/metropolitan-district-council/walsall,WC69-59,30/06/2016,Economy & Environment,ACTION DIGITAL MEDIA LTD,01/06/2016,262.90,62000-EXTERNAL PRINTING SERVICES,NAG - TEMPORARY EXHIBITIONS,Supplies & Services,Revenue
Walsall Council,http://opendatacommunities.org/id/metropolitan-district-council/walsall,WC69-60,30/06/2016,Economy & Environment,ACTION DIGITAL MEDIA LTD,01/06/2016,"1,405.69",62527-VISUAL ARTS,NAG - TEMPORARY EXHIBITIONS,Supplies & Services,Revenue
Walsall Council,http://opendatacommunities.org/id/metropolitan-district-council/walsall,WC69-61,30/06/2016,Holding Accounts,ACTIVE LEGAL,22/06/2016,"10,280.00",67001-MISC INSURANCES - PAYMENT OF CLAIMS,PUBLIC LIABILITY,Supplies & Services,Revenue
Walsall Council,http://opendatacommunities.org/id/metropolitan-district-council/walsall,WC69-62,30/06/2016,Economy & Environment,REDACTED,27/06/2016,887.25,63239-EXTERNAL WORKS-PAYMENT TO CONTRACTOR,NAG - TEMPORARY EXHIBITIONS,Third Party Payments,Revenue
Walsall Council,http://opendatacommunities.org/id/metropolitan-district-council/walsall,WC69-63,30/06/2016,Childrens,REDACTED,13/06/2016,609.50,76422-DIRECT PAYMENTS TO SOCIAL SERVICES CLIENTS,FAMILY SUPPORT - DIRECT PAYMENTS,Transfer Payments,Revenue
Walsall Council,http://opendatacommunities.org/id/metropolitan-district-council/walsall,WC69-64,30/06/2016,Social Care & Inclusion,REDACTED,13/06/2016,521.85,76422-DIRECT PAYMENTS TO SOCIAL SERVICES CLIENTS,LD COMMISSIONING,Transfer Payments,Revenue
Walsall Council,http://opendatacommunities.org/id/metropolitan-district-council/walsall,WC69-65,30/06/2016,Economy & Environment,ADEPT,20/06/2016,"1,000.00",64500-PUBLICATIONS/ORGANISATIONS-SUBSCRIPTIONS,REGENERATION MANAGEMENT,Supplies & Services,Revenue
Walsall Council,http://opendatacommunities.org/id/metropolitan-district-council/walsall,WC69-66,30/06/2016,Social Care & Inclusion,REDACTED,13/06/2016,"1,075.00",76422-DIRECT PAYMENTS TO SOCIAL SERVICES CLIENTS,OP COMMISSIONING,Transfer Payments,Revenue
Walsall Council,http://opendatacommunities.org/id/metropolitan-district-council/walsall,WC69-67,30/06/2016,Social Care & Inclusion,ADMIRAL SELF STORAGE LTD,16/06/2016,215.10,43000-RENTS,MENTAL HEALTH MANAGEMENT TEAM,Premises,Revenue
Walsall Council,http://opendatacommunities.org/id/metropolitan-district-council/walsall,WC69-68,30/06/2016,Childrens,ADMIRAL SELF STORAGE LTD,16/06/2016,228.78,63000-PROFESSIONAL FEES AND SERVICES,PLACEMENTS & RESOURCES TEAM,Supplies & Services,Revenue
Walsall Council,http://opendatacommunities.org/id/metropolitan-district-council/walsall,WC69-69,30/06/2016,Childrens,ADMIRAL SELF STORAGE LTD,16/06/2016,228.78,63000-PROFESSIONAL FEES AND SERVICES,PLACEMENTS & RESOURCES TEAM,Supplies & Services,Revenue
Walsall Council,http://opendatacommunities.org/id/metropolitan-district-council/walsall,WC69-70,30/06/2016,Change and Governance,ADMIRAL SELF STORAGE LTD,20/06/2016,419.32,63000-PROFESSIONAL FEES AND SERVICES,FINANCE ADMIN,Supplies & Services,Revenue
Walsall Council,http://opendatacommunities.org/id/metropolitan-district-council/walsall,WC69-71,30/06/2016,Childrens,REDACTED,06/06/2016,694.24,74006-HOLIDAY/CHRISTMAS ALLOWANCE-FOSTER CARERS-OTH AGENCY PROVISION,INTERNAL FOSTER CARE PROVISION,Third Party Payments,Revenue
Walsall Council,http://opendatacommunities.org/id/metropolitan-district-council/walsall,WC69-72,30/06/2016,Social Care & Inclusion,ADVANCE HEALTH CARE (UK) LTD,16/06/2016,252.18,73025-PROFESSIONAL SERVICES-PRIV CONTRACTOR & OTHER AGENCIES,COMMUNITY INTERMEDIATE CARE,Third Party Payments,Revenue
Walsall Council,http://opendatacommunities.org/id/metropolitan-district-council/walsall,WC69-73,30/06/2016,Social Care & Inclusion,ADVANCE HEALTH CARE (UK) LTD,16/06/2016,432.30,73025-PROFESSIONAL SERVICES-PRIV CONTRACTOR & OTHER AGENCIES,COMMUNITY INTERMEDIATE CARE,Third Party Payments,Revenue
Walsall Council,http://opendatacommunities.org/id/metropolitan-district-council/walsall,WC69-74,30/06/2016,Social Care & Inclusion,ADVANCE HEALTH CARE (UK) LTD,16/06/2016,533.83,73025-PROFESSIONAL SERVICES-PRIV CONTRACTOR & OTHER AGENCIES,COMMUNITY INTERMEDIATE CARE,Third Party Payments,Revenue
Walsall Council,http://opendatacommunities.org/id/metropolitan-district-council/walsall,WC69-75,30/06/2016,Social Care & Inclusion,ADVANCE HEALTH CARE (UK) LTD,27/06/2016,702.00,73372-DOMICILIARY CARE,OP COMMISSIONING,Third Party Payments,Revenue
Walsall Council,http://opendatacommunities.org/id/metropolitan-district-council/walsall,WC69-76,30/06/2016,Social Care & Inclusion,ADVANCE HEALTH CARE (UK) LTD,21/06/2016,962.00,73025-PROFESSIONAL SERVICES-PRIV CONTRACTOR & OTHER AGENCIES,COMMUNITY INTERMEDIATE CARE,Third Party Payments,Revenue
Walsall Council,http://opendatacommunities.org/id/metropolitan-district-council/walsall,WC69-77,30/06/2016,Social Care & Inclusion,ADVANCE HEALTH CARE (UK) LTD,16/06/2016,"1,014.00",73025-PROFESSIONAL SERVICES-PRIV CONTRACTOR & OTHER AGENCIES,COMMUNITY INTERMEDIATE CARE,Third Party Payments,Revenue
Walsall Council,http://opendatacommunities.org/id/metropolitan-district-council/walsall,WC69-78,30/06/2016,Social Care & Inclusion,ADVANCE HEALTH CARE (UK) LTD,15/06/2016,"1,092.00",73025-PROFESSIONAL SERVICES-PRIV CONTRACTOR & OTHER AGENCIES,COMMUNITY INTERMEDIATE CARE,Third Party Payments,Revenue
Walsall Council,http://opendatacommunities.org/id/metropolitan-district-council/walsall,WC69-79,30/06/2016,Social Care & Inclusion,ADVANCE HEALTH CARE (UK) LTD,15/06/2016,"1,092.00",73025-PROFESSIONAL SERVICES-PRIV CONTRACTOR & OTHER AGENCIES,COMMUNITY INTERMEDIATE CARE,Third Party Payments,Revenue
Walsall Council,http://opendatacommunities.org/id/metropolitan-district-council/walsall,WC69-80,30/06/2016,Social Care & Inclusion,ADVANCE HEALTH CARE (UK) LTD,15/06/2016,"1,131.00",73025-PROFESSIONAL SERVICES-PRIV CONTRACTOR & OTHER AGENCIES,COMMUNITY INTERMEDIATE CARE,Third Party Payments,Revenue
Walsall Council,http://opendatacommunities.org/id/metropolitan-district-council/walsall,WC69-81,30/06/2016,Social Care & Inclusion,ADVANCE HEALTH CARE (UK) LTD,13/06/2016,"1,157.00",73025-PROFESSIONAL SERVICES-PRIV CONTRACTOR & OTHER AGENCIES,COMMUNITY INTERMEDIATE CARE,Third Party Payments,Revenue
Walsall Council,http://opendatacommunities.org/id/metropolitan-district-council/walsall,WC69-82,30/06/2016,Social Care & Inclusion,ADVANCE HEALTH CARE (UK) LTD,13/06/2016,"1,560.00",73025-PROFESSIONAL SERVICES-PRIV CONTRACTOR & OTHER AGENCIES,COMMUNITY INTERMEDIATE CARE,Third Party Payments,Revenue
Walsall Council,http://opendatacommunities.org/id/metropolitan-district-council/walsall,WC69-83,30/06/2016,Social Care & Inclusion,ADVANCE HEALTH CARE (UK) LTD,15/06/2016,"2,040.33",73025-PROFESSIONAL SERVICES-PRIV CONTRACTOR & OTHER AGENCIES,COMMUNITY INTERMEDIATE CARE,Third Party Payments,Revenue
Walsall Council,http://opendatacommunities.org/id/metropolitan-district-council/walsall,WC69-84,30/06/2016,Social Care & Inclusion,ADVANCE HEALTH CARE (UK) LTD,21/06/2016,"3,058.85",73025-PROFESSIONAL SERVICES-PRIV CONTRACTOR & OTHER AGENCIES,COMMUNITY INTERMEDIATE CARE,Third Party Payments,Revenue
Walsall Council,http://opendatacommunities.org/id/metropolitan-district-council/walsall,WC69-85,30/06/2016,Social Care & Inclusion,ADVANCE HEALTH CARE (UK) LTD,16/06/2016,"3,140.72",73025-PROFESSIONAL SERVICES-PRIV CONTRACTOR & OTHER AGENCIES,COMMUNITY INTERMEDIATE CARE,Third Party Payments,Revenue
Walsall Council,http://opendatacommunities.org/id/metropolitan-district-council/walsall,WC69-86,30/06/2016,Social Care & Inclusion,ADVANCE HEALTH CARE (UK) LTD,27/06/2016,"3,186.60",73025-PROFESSIONAL SERVICES-PRIV CONTRACTOR & OTHER AGENCIES,COMMUNITY INTERMEDIATE CARE,Third Party Payments,Revenue
Walsall Council,http://opendatacommunities.org/id/metropolitan-district-council/walsall,WC69-87,30/06/2016,Social Care & Inclusion,ADVANCE HEALTH CARE (UK) LTD,16/06/2016,"3,409.26",73025-PROFESSIONAL SERVICES-PRIV CONTRACTOR & OTHER AGENCIES,COMMUNITY INTERMEDIATE CARE,Third Party Payments,Revenue
Walsall Council,http://opendatacommunities.org/id/metropolitan-district-council/walsall,WC69-88,30/06/2016,Social Care & Inclusion,ADVANCE HEALTH CARE (UK) LTD,15/06/2016,"3,530.44",73025-PROFESSIONAL SERVICES-PRIV CONTRACTOR & OTHER AGENCIES,COMMUNITY INTERMEDIATE CARE,Third Party Payments,Revenue
Walsall Council,http://opendatacommunities.org/id/metropolitan-district-council/walsall,WC69-89,30/06/2016,Social Care & Inclusion,ADVANCE HEALTH CARE (UK) LTD,13/06/2016,"3,930.00",73025-PROFESSIONAL SERVICES-PRIV CONTRACTOR & OTHER AGENCIES,COMMUNITY INTERMEDIATE CARE,Third Party Payments,Revenue
Walsall Council,http://opendatacommunities.org/id/metropolitan-district-council/walsall,WC69-90,30/06/2016,Social Care & Inclusion,ADVANCE HEALTH CARE (UK) LTD,15/06/2016,"3,930.00",73025-PROFESSIONAL SERVICES-PRIV CONTRACTOR & OTHER AGENCIES,COMMUNITY INTERMEDIATE CARE,Third Party Payments,Revenue
Walsall Council,http://opendatacommunities.org/id/metropolitan-district-council/walsall,WC69-91,30/06/2016,Social Care & Inclusion,ADVANCE HEALTH CARE (UK) LTD,16/06/2016,"3,930.00",73025-PROFESSIONAL SERVICES-PRIV CONTRACTOR & OTHER AGENCIES,COMMUNITY INTERMEDIATE CARE,Third Party Payments,Revenue
Walsall Council,http://opendatacommunities.org/id/metropolitan-district-council/walsall,WC69-92,30/06/2016,Social Care & Inclusion,ADVANCE HEALTH CARE (UK) LTD,21/06/2016,"3,930.00",73025-PROFESSIONAL SERVICES-PRIV CONTRACTOR & OTHER AGENCIES,COMMUNITY INTERMEDIATE CARE,Third Party Payments,Revenue
Walsall Council,http://opendatacommunities.org/id/metropolitan-district-council/walsall,WC69-93,30/06/2016,Social Care & Inclusion,ADVANCE HEALTH CARE (UK) LTD,27/06/2016,"3,930.00",73025-PROFESSIONAL SERVICES-PRIV CONTRACTOR & OTHER AGENCIES,COMMUNITY INTERMEDIATE CARE,Third Party Payments,Revenue
Walsall Council,http://opendatacommunities.org/id/metropolitan-district-council/walsall,WC69-94,30/06/2016,Social Care & Inclusion,ADVANCE HEALTH CARE (UK) LTD,03/06/2016,"4,008.60",73025-PROFESSIONAL SERVICES-PRIV CONTRACTOR & OTHER AGENCIES,COMMUNITY INTERMEDIATE CARE,Third Party Payments,Revenue
Walsall Council,http://opendatacommunities.org/id/metropolitan-district-council/walsall,WC69-95,30/06/2016,Social Care & Inclusion,ADVANCE HEALTH CARE (UK) LTD,21/06/2016,"4,512.95",73025-PROFESSIONAL SERVICES-PRIV CONTRACTOR & OTHER AGENCIES,COMMUNITY INTERMEDIATE CARE,Third Party Payments,Revenue
Walsall Council,http://opendatacommunities.org/id/metropolitan-district-council/walsall,WC69-96,30/06/2016,Social Care & Inclusion,ADVANCE HEALTH CARE (UK) LTD,15/06/2016,"4,578.45",73025-PROFESSIONAL SERVICES-PRIV CONTRACTOR & OTHER AGENCIES,COMMUNITY INTERMEDIATE CARE,Third Party Payments,Revenue
Walsall Council,http://opendatacommunities.org/id/metropolitan-district-council/walsall,WC69-97,30/06/2016,Social Care & Inclusion,ADVANCE HEALTH CARE (UK) LTD,16/06/2016,"4,604.65",73025-PROFESSIONAL SERVICES-PRIV CONTRACTOR & OTHER AGENCIES,COMMUNITY INTERMEDIATE CARE,Third Party Payments,Revenue
Walsall Council,http://opendatacommunities.org/id/metropolitan-district-council/walsall,WC69-98,30/06/2016,Social Care & Inclusion,ADVANCE HEALTH CARE (UK) LTD,08/06/2016,"11,330.73",73372-DOMICILIARY CARE,OP COMMISSIONING,Third Party Payments,Revenue
Walsall Council,http://opendatacommunities.org/id/metropolitan-district-council/walsall,WC69-99,30/06/2016,Social Care & Inclusion,ADVANCE HEALTH CARE (UK) LTD,21/06/2016,"35,686.61",73372-DOMICILIARY CARE,OP COMMISSIONING,Third Party Payments,Revenue
Walsall Council,http://opendatacommunities.org/id/metropolitan-district-council/walsall,WC69-100,30/06/2016,Change and Governance,ADVANCED DIGITAL IMAGING,29/06/2016,"2,594.00",62008-OUTWORK-PRINT ROOM,PRINTING SERVICES,Supplies & Services,Revenue
Walsall Council,http://opendatacommunities.org/id/metropolitan-district-council/walsall,WC69-101,30/06/2016,Economy & Environment,AECOM LIMITED,06/06/2016,"2,376.86",01001-OTHER CONSULTANTS FEES,CFR 876 DARLASTON CDMC,Capital,Capital
Walsall Council,http://opendatacommunities.org/id/metropolitan-district-council/walsall,WC69-102,30/06/2016,Economy & Environment,AECOM LIMITED,24/06/2016,"30,775.58",01002-PROJECT FEES,CFR 1072 M6 JUNCTION 10,Capital,Capital
Walsall Council,http://opendatacommunities.org/id/metropolitan-district-council/walsall,WC69-103,30/06/2016,Economy & Environment,AGE UK WALSALL,22/06/2016,"1,345.00",63000-PROFESSIONAL FEES AND SERVICES,FALLS PREVENTION,Supplies & Services,Revenue
Walsall Council,http://opendatacommunities.org/id/metropolitan-district-council/walsall,WC69-104,30/06/2016,Social Care & Inclusion,AGE UK WALSALL,28/06/2016,"7,200.00",76423-DIRECT PAYMENTS SUPPORT,INDIVIDUAL BUDGET - SUPPORT,Transfer Payments,Revenue
Walsall Council,http://opendatacommunities.org/id/metropolitan-district-council/walsall,WC69-105,30/06/2016,Social Care & Inclusion,REDACTED,13/06/2016,"2,352.50",76422-DIRECT PAYMENTS TO SOCIAL SERVICES CLIENTS,LD COMMISSIONING,Transfer Payments,Revenue
Walsall Council,http://opendatacommunities.org/id/metropolitan-district-council/walsall,WC69-106,30/06/2016,Social Care & Inclusion,REDACTED,13/06/2016,"1,142.75",76422-DIRECT PAYMENTS TO SOCIAL SERVICES CLIENTS,OP COMMISSIONING,Transfer Payments,Revenue
Walsall Council,http://opendatacommunities.org/id/metropolitan-district-council/walsall,WC69-107,30/06/2016,Childrens,AJK TRAVEL,06/06/2016,"14,796.00",52000-WITH DRIVER-HIRE OF VEHICLES,SCHOOL TRANSPORT,Transport,Revenue
Walsall Council,http://opendatacommunities.org/id/metropolitan-district-council/walsall,WC69-108,30/06/2016,Childrens,ALAN CRITCHLEY ASSOCIATES,01/06/2016,"3,600.00",63102-CONSULTANTS FEES - CORPORATE,SAFEGUARDING BOARD,Supplies & Services,Revenue
Walsall Council,http://opendatacommunities.org/id/metropolitan-district-council/walsall,WC69-109,30/06/2016,Childrens,ALDER COPPICE PRIMARY SCHOOL,02/06/2016,500.00,77300-ISB-FORMULA ALLOCATION,OUT OF BOROUGH SCHOOLS,Transfer Payments,Revenue
Walsall Council,http://opendatacommunities.org/id/metropolitan-district-council/walsall,WC69-110,30/06/2016,Childrens,ALDER COPPICE PRIMARY SCHOOL,02/06/2016,500.00,77300-ISB-FORMULA ALLOCATION,OUT OF BOROUGH SCHOOLS,Transfer Payments,Revenue
Walsall Council,http://opendatacommunities.org/id/metropolitan-district-council/walsall,WC69-111,30/06/2016,Childrens,ALDRIDGE & BARONS LIMITED,13/06/2016,508.75,52000-WITH DRIVER-HIRE OF VEHICLES,SCHOOL TRANSPORT,Transport,Revenue
Walsall Council,http://opendatacommunities.org/id/metropolitan-district-council/walsall,WC69-112,30/06/2016,Childrens,ALDRIDGE & BARONS LIMITED,13/06/2016,"16,551.90",52000-WITH DRIVER-HIRE OF VEHICLES,SCHOOL TRANSPORT,Transport,Revenue
Walsall Council,http://opendatacommunities.org/id/metropolitan-district-council/walsall,WC69-113,30/06/2016,Childrens,ALDRIDGE & BARONS LIMITED,13/06/2016,"20,674.30",52000-WITH DRIVER-HIRE OF VEHICLES,SCHOOL TRANSPORT,Transport,Revenue
Walsall Council,http://opendatacommunities.org/id/metropolitan-district-council/walsall,WC69-114,30/06/2016,Change and Governance,ALDRIDGE METHODIST CHURCH 001,01/06/2016,290.00,63128-HIRE OF ROOM-SERVICES-FEES,ELECTORAL ADMINISTRATION,Supplies & Services,Revenue
Walsall Council,http://opendatacommunities.org/id/metropolitan-district-council/walsall,WC69-115,30/06/2016,Economy & Environment,ALERE LTD,28/06/2016,558.36,63000-PROFESSIONAL FEES AND SERVICES,HEALTH CHECKS,Supplies & Services,Revenue
Walsall Council,http://opendatacommunities.org/id/metropolitan-district-council/walsall,WC69-116,30/06/2016,Childrens,ALERE TOXICOLOGY PLC,28/06/2016,215.99,73014-LEGAL FEES-PRIV CONTRACTOR FEES,GENERAL MANAGEMENT SUPPORT (INC LEGAL),Third Party Payments,Revenue
Walsall Council,http://opendatacommunities.org/id/metropolitan-district-council/walsall,WC69-117,30/06/2016,Social Care & Inclusion,REDACTED,13/06/2016,"1,505.00",76422-DIRECT PAYMENTS TO SOCIAL SERVICES CLIENTS,YADS COMMISSIONING,Transfer Payments,Revenue
Walsall Council,http://opendatacommunities.org/id/metropolitan-district-council/walsall,WC69-118,30/06/2016,Social Care & Inclusion,ALEXANDRA HOUSE CARE SERVICES LTD T/A STONEBRIDGE NURSING HOME,14/06/2016,"7,117.44",73373-RESIDENTIAL & NURSING CARE PLACEMENTS,OP COMMISSIONING,Third Party Payments,Revenue
Walsall Council,http://opendatacommunities.org/id/metropolitan-district-council/walsall,WC69-119,30/06/2016,Childrens,REDACTED,13/06/2016,728.33,76422-DIRECT PAYMENTS TO SOCIAL SERVICES CLIENTS,FAMILY SUPPORT - DIRECT PAYMENTS,Transfer Payments,Revenue
Walsall Council,http://opendatacommunities.org/id/metropolitan-district-council/walsall,WC69-120,30/06/2016,Social Care & Inclusion,REDACTED,13/06/2016,"1,067.50",76422-DIRECT PAYMENTS TO SOCIAL SERVICES CLIENTS,YADS COMMISSIONING,Transfer Payments,Revenue
Walsall Council,http://opendatacommunities.org/id/metropolitan-district-council/walsall,WC69-121,30/06/2016,Change and Governance,ALIGNED ASSETS LTD,15/06/2016,"6,801.46",63820-RECHARGE FOR MAINTENANCE/APPLICATION COSTS-COMPUTER,APPLICATIONS,Supplies & Services,Revenue
Walsall Council,http://opendatacommunities.org/id/metropolitan-district-council/walsall,WC69-122,30/06/2016,Social Care & Inclusion,REDACTED,13/06/2016,722.50,76422-DIRECT PAYMENTS TO SOCIAL SERVICES CLIENTS,OP COMMISSIONING,Transfer Payments,Revenue
Walsall Council,http://opendatacommunities.org/id/metropolitan-district-council/walsall,WC69-123,30/06/2016,Childrens,REDACTED,20/06/2016,545.22,62515-MISCELLANEOUS SUPPLIES,INTERNAL FOSTER CARE PROVISION,Supplies & Services,Revenue
Walsall Council,http://opendatacommunities.org/id/metropolitan-district-council/walsall,WC69-124,30/06/2016,Childrens,REDACTED,20/06/2016,"1,043.64",74006-HOLIDAY/CHRISTMAS ALLOWANCE-FOSTER CARERS-OTH AGENCY PROVISION,INTERNAL FOSTER CARE PROVISION,Third Party Payments,Revenue
Walsall Council,http://opendatacommunities.org/id/metropolitan-district-council/walsall,WC69-125,30/06/2016,Childrens,REDACTED,06/06/2016,552.96,74006-HOLIDAY/CHRISTMAS ALLOWANCE-FOSTER CARERS-OTH AGENCY PROVISION,INTERNAL FOSTER CARE PROVISION,Third Party Payments,Revenue
Walsall Council,http://opendatacommunities.org/id/metropolitan-district-council/walsall,WC69-126,30/06/2016,Economy & Environment,ALLSORTS OFFICE SUPPLIES LTD,02/06/2016,845.00,01044-PURCHASE OF FURNITURE & EQUIPMENT,CFR 1045 GALLERY-ACE SMALL CAPITAL PROJECT,Capital,Capital
Walsall Council,http://opendatacommunities.org/id/metropolitan-district-council/walsall,WC69-127,30/06/2016,Childrens,ALLSORTS OFFICE SUPPLIES LTD,08/06/2016,"1,940.00",60008-MAINTENANCE-FURNITURE & EQUIPMENT,INITIAL RESPONSE SERVICE,Supplies & Services,Revenue
Walsall Council,http://opendatacommunities.org/id/metropolitan-district-council/walsall,WC69-128,30/06/2016,Economy & Environment,ALLSORTS OFFICE SUPPLIES LTD,02/06/2016,"7,334.00",01044-PURCHASE OF FURNITURE & EQUIPMENT,CFR 1045 GALLERY-ACE SMALL CAPITAL PROJECT,Capital,Capital
Walsall Council,http://opendatacommunities.org/id/metropolitan-district-council/walsall,WC69-129,30/06/2016,Social Care & Inclusion,ALMA COURT,14/06/2016,"6,113.10",73373-RESIDENTIAL & NURSING CARE PLACEMENTS,MH COMMISSIONING,Third Party Payments,Revenue
Walsall Council,http://opendatacommunities.org/id/metropolitan-district-council/walsall,WC69-130,30/06/2016,Social Care & Inclusion,ALMA COURT,14/06/2016,"6,113.10",73373-RESIDENTIAL & NURSING CARE PLACEMENTS,OP COMMISSIONING,Third Party Payments,Revenue
Walsall Council,http://opendatacommunities.org/id/metropolitan-district-council/walsall,WC69-131,30/06/2016,Childrens,ALPHA & EAGLE CARS LTD,27/06/2016,555.00,52001-HIRE OF VEHICLES,CHILDRENS TAXI BUDGET,Transport,Revenue
Walsall Council,http://opendatacommunities.org/id/metropolitan-district-council/walsall,WC69-132,30/06/2016,Social Care & Inclusion,ALPHA HEALTH CARE LTD,28/06/2016,"-1,001.66",73373-RESIDENTIAL & NURSING CARE PLACEMENTS,OP COMMISSIONING,Third Party Payments,Revenue
Walsall Council,http://opendatacommunities.org/id/metropolitan-district-council/walsall,WC69-133,30/06/2016,Social Care & Inclusion,ALPHA HEALTH CARE LTD,07/06/2016,589.21,73373-RESIDENTIAL & NURSING CARE PLACEMENTS,OP COMMISSIONING,Third Party Payments,Revenue
Walsall Council,http://opendatacommunities.org/id/metropolitan-district-council/walsall,WC69-134,30/06/2016,Social Care & Inclusion,ALPHA HEALTH CARE LTD,07/06/2016,"1,273.66",73373-RESIDENTIAL & NURSING CARE PLACEMENTS,OP COMMISSIONING,Third Party Payments,Revenue
Walsall Council,http://opendatacommunities.org/id/metropolitan-district-council/walsall,WC69-135,30/06/2016,Social Care & Inclusion,ALPHA HEALTH CARE LTD,14/06/2016,"1,620.00",73373-RESIDENTIAL & NURSING CARE PLACEMENTS,OP COMMISSIONING,Third Party Payments,Revenue
Walsall Council,http://opendatacommunities.org/id/metropolitan-district-council/walsall,WC69-136,30/06/2016,Social Care & Inclusion,ALPHA HEALTH CARE LTD,14/06/2016,"1,620.00",73373-RESIDENTIAL & NURSING CARE PLACEMENTS,OP COMMISSIONING,Third Party Payments,Revenue
Walsall Council,http://opendatacommunities.org/id/metropolitan-district-council/walsall,WC69-137,30/06/2016,Social Care & Inclusion,ALPHA HEALTH CARE LTD,14/06/2016,"1,620.00",73373-RESIDENTIAL & NURSING CARE PLACEMENTS,OP COMMISSIONING,Third Party Payments,Revenue
Walsall Council,http://opendatacommunities.org/id/metropolitan-district-council/walsall,WC69-138,30/06/2016,Social Care & Inclusion,ALPHA HEALTH CARE LTD,14/06/2016,"1,636.71",73373-RESIDENTIAL & NURSING CARE PLACEMENTS,OP COMMISSIONING,Third Party Payments,Revenue
Walsall Council,http://opendatacommunities.org/id/metropolitan-district-council/walsall,WC69-139,30/06/2016,Social Care & Inclusion,ALPHA HEALTH CARE LTD,14/06/2016,"1,649.80",73373-RESIDENTIAL & NURSING CARE PLACEMENTS,OP COMMISSIONING,Third Party Payments,Revenue
Walsall Council,http://opendatacommunities.org/id/metropolitan-district-council/walsall,WC69-140,30/06/2016,Social Care & Inclusion,ALPHA HEALTH CARE LTD,14/06/2016,"1,649.80",73373-RESIDENTIAL & NURSING CARE PLACEMENTS,OP COMMISSIONING,Third Party Payments,Revenue
Walsall Council,http://opendatacommunities.org/id/metropolitan-district-council/walsall,WC69-141,30/06/2016,Social Care & Inclusion,ALPHA HEALTH CARE LTD,14/06/2016,"1,649.80",73373-RESIDENTIAL & NURSING CARE PLACEMENTS,OP COMMISSIONING,Third Party Payments,Revenue
Walsall Council,http://opendatacommunities.org/id/metropolitan-district-council/walsall,WC69-142,30/06/2016,Social Care & Inclusion,ALPHA HEALTH CARE LTD,14/06/2016,"1,649.80",73373-RESIDENTIAL & NURSING CARE PLACEMENTS,OP COMMISSIONING,Third Party Payments,Revenue
Walsall Council,http://opendatacommunities.org/id/metropolitan-district-council/walsall,WC69-143,30/06/2016,Social Care & Inclusion,ALPHA HEALTH CARE LTD,14/06/2016,"1,649.80",73373-RESIDENTIAL & NURSING CARE PLACEMENTS,OP COMMISSIONING,Third Party Payments,Revenue
Walsall Council,http://opendatacommunities.org/id/metropolitan-district-council/walsall,WC69-144,30/06/2016,Social Care & Inclusion,ALPHA HEALTH CARE LTD,14/06/2016,"1,649.80",73373-RESIDENTIAL & NURSING CARE PLACEMENTS,OP COMMISSIONING,Third Party Payments,Revenue
Walsall Council,http://opendatacommunities.org/id/metropolitan-district-council/walsall,WC69-145,30/06/2016,Social Care & Inclusion,ALPHA HEALTH CARE LTD,14/06/2016,"1,649.80",73373-RESIDENTIAL & NURSING CARE PLACEMENTS,OP COMMISSIONING,Third Party Payments,Revenue
Walsall Council,http://opendatacommunities.org/id/metropolitan-district-council/walsall,WC69-146,30/06/2016,Social Care & Inclusion,ALPHA HEALTH CARE LTD,14/06/2016,"1,649.80",73373-RESIDENTIAL & NURSING CARE PLACEMENTS,OP COMMISSIONING,Third Party Payments,Revenue
Walsall Council,http://opendatacommunities.org/id/metropolitan-district-council/walsall,WC69-147,30/06/2016,Social Care & Inclusion,ALPHA HEALTH CARE LTD,14/06/2016,"1,649.80",73373-RESIDENTIAL & NURSING CARE PLACEMENTS,OP COMMISSIONING,Third Party Payments,Revenue
Walsall Council,http://opendatacommunities.org/id/metropolitan-district-council/walsall,WC69-148,30/06/2016,Social Care & Inclusion,ALPHA HEALTH CARE LTD,14/06/2016,"1,649.80",73373-RESIDENTIAL & NURSING CARE PLACEMENTS,MH COMMISSIONING,Third Party Payments,Revenue
Walsall Council,http://opendatacommunities.org/id/metropolitan-district-council/walsall,WC69-149,30/06/2016,Social Care & Inclusion,ALPHA HEALTH CARE LTD,14/06/2016,"1,649.80",73373-RESIDENTIAL & NURSING CARE PLACEMENTS,OP COMMISSIONING,Third Party Payments,Revenue
Walsall Council,http://opendatacommunities.org/id/metropolitan-district-council/walsall,WC69-150,30/06/2016,Social Care & Inclusion,ALPHA HEALTH CARE LTD,14/06/2016,"1,649.80",73373-RESIDENTIAL & NURSING CARE PLACEMENTS,OP COMMISSIONING,Third Party Payments,Revenue
Walsall Council,http://opendatacommunities.org/id/metropolitan-district-council/walsall,WC69-151,30/06/2016,Social Care & Inclusion,ALPHA HEALTH CARE LTD,14/06/2016,"1,649.80",73373-RESIDENTIAL & NURSING CARE PLACEMENTS,OP COMMISSIONING,Third Party Payments,Revenue
Walsall Council,http://opendatacommunities.org/id/metropolitan-district-council/walsall,WC69-152,30/06/2016,Social Care & Inclusion,ALPHA HEALTH CARE LTD,14/06/2016,"1,649.80",73373-RESIDENTIAL & NURSING CARE PLACEMENTS,MH COMMISSIONING,Third Party Payments,Revenue
Walsall Council,http://opendatacommunities.org/id/metropolitan-district-council/walsall,WC69-153,30/06/2016,Social Care & Inclusion,ALPHA HEALTH CARE LTD,28/06/2016,"1,649.80",73373-RESIDENTIAL & NURSING CARE PLACEMENTS,OP COMMISSIONING,Third Party Payments,Revenue
Walsall Council,http://opendatacommunities.org/id/metropolitan-district-council/walsall,WC69-154,30/06/2016,Social Care & Inclusion,ALPHA HEALTH CARE LTD,28/06/2016,"1,649.80",73373-RESIDENTIAL & NURSING CARE PLACEMENTS,OP COMMISSIONING,Third Party Payments,Revenue
Walsall Council,http://opendatacommunities.org/id/metropolitan-district-council/walsall,WC69-155,30/06/2016,Social Care & Inclusion,ALPHA HEALTH CARE LTD,14/06/2016,"1,800.00",73373-RESIDENTIAL & NURSING CARE PLACEMENTS,OP COMMISSIONING,Third Party Payments,Revenue
Walsall Council,http://opendatacommunities.org/id/metropolitan-district-council/walsall,WC69-156,30/06/2016,Social Care & Inclusion,ALPHA HEALTH CARE LTD,14/06/2016,"1,800.00",73373-RESIDENTIAL & NURSING CARE PLACEMENTS,OP COMMISSIONING,Third Party Payments,Revenue
Walsall Council,http://opendatacommunities.org/id/metropolitan-district-council/walsall,WC69-157,30/06/2016,Social Care & Inclusion,ALPHA HEALTH CARE LTD,14/06/2016,"2,097.80",73373-RESIDENTIAL & NURSING CARE PLACEMENTS,OP COMMISSIONING,Third Party Payments,Revenue
Walsall Council,http://opendatacommunities.org/id/metropolitan-district-council/walsall,WC69-158,30/06/2016,Social Care & Inclusion,ALPHA HEALTH CARE LTD,14/06/2016,"3,240.00",73373-RESIDENTIAL & NURSING CARE PLACEMENTS,OP COMMISSIONING,Third Party Payments,Revenue
Walsall Council,http://opendatacommunities.org/id/metropolitan-district-council/walsall,WC69-159,30/06/2016,Social Care & Inclusion,ALPHA HEALTH CARE LTD,14/06/2016,"3,240.00",73373-RESIDENTIAL & NURSING CARE PLACEMENTS,OP COMMISSIONING,Third Party Payments,Revenue
Walsall Council,http://opendatacommunities.org/id/metropolitan-district-council/walsall,WC69-160,30/06/2016,Social Care & Inclusion,ALPHA HEALTH CARE LTD,14/06/2016,"3,599.99",73373-RESIDENTIAL & NURSING CARE PLACEMENTS,OP COMMISSIONING,Third Party Payments,Revenue
Walsall Council,http://opendatacommunities.org/id/metropolitan-district-council/walsall,WC69-161,30/06/2016,Social Care & Inclusion,ALPHA HEALTH CARE LTD,14/06/2016,"3,600.00",73373-RESIDENTIAL & NURSING CARE PLACEMENTS,OP COMMISSIONING,Third Party Payments,Revenue
Walsall Council,http://opendatacommunities.org/id/metropolitan-district-council/walsall,WC69-162,30/06/2016,Social Care & Inclusion,ALPHA HEALTH CARE LTD,14/06/2016,"3,600.00",73373-RESIDENTIAL & NURSING CARE PLACEMENTS,OP COMMISSIONING,Third Party Payments,Revenue
Walsall Council,http://opendatacommunities.org/id/metropolitan-district-council/walsall,WC69-163,30/06/2016,Social Care & Inclusion,ALPHA HEALTH CARE LTD,28/06/2016,"4,860.00",73373-RESIDENTIAL & NURSING CARE PLACEMENTS,OP COMMISSIONING,Third Party Payments,Revenue
Walsall Council,http://opendatacommunities.org/id/metropolitan-district-council/walsall,WC69-164,30/06/2016,Social Care & Inclusion,ALPHA HEALTH CARE LTD,28/06/2016,"4,860.00",73373-RESIDENTIAL & NURSING CARE PLACEMENTS,OP COMMISSIONING,Third Party Payments,Revenue
Walsall Council,http://opendatacommunities.org/id/metropolitan-district-council/walsall,WC69-165,30/06/2016,Social Care & Inclusion,ALPHA HEALTH CARE LTD,14/06/2016,"5,073.81",73373-RESIDENTIAL & NURSING CARE PLACEMENTS,OP COMMISSIONING,Third Party Payments,Revenue
Walsall Council,http://opendatacommunities.org/id/metropolitan-district-council/walsall,WC69-166,30/06/2016,Social Care & Inclusion,ALPHA HEALTH CARE LTD,14/06/2016,"5,846.80",73373-RESIDENTIAL & NURSING CARE PLACEMENTS,MH COMMISSIONING,Third Party Payments,Revenue
Walsall Council,http://opendatacommunities.org/id/metropolitan-district-council/walsall,WC69-167,30/06/2016,Social Care & Inclusion,ALPHA HEALTH CARE LTD,14/06/2016,"5,997.60",73373-RESIDENTIAL & NURSING CARE PLACEMENTS,MH COMMISSIONING,Third Party Payments,Revenue
Walsall Council,http://opendatacommunities.org/id/metropolitan-district-council/walsall,WC69-168,30/06/2016,Change and Governance,ALTODIGITAL NETWORKS LTD,03/06/2016,210.66,63800-COMPUTER EQUIPMENT AND SUPPLIES,ELECTED MEMBERS,Supplies & Services,Revenue
Walsall Council,http://opendatacommunities.org/id/metropolitan-district-council/walsall,WC69-169,30/06/2016,Childrens,ALTODIGITAL NETWORKS LTD,03/06/2016,211.98,60009-LEASING/HIRE/RENTAL-EQUIPMENT,MY PLACE (REVENUE),Supplies & Services,Revenue
Walsall Council,http://opendatacommunities.org/id/metropolitan-district-council/walsall,WC69-170,30/06/2016,Change and Governance,ALTODIGITAL NETWORKS LTD,03/06/2016,300.08,60009-LEASING/HIRE/RENTAL-EQUIPMENT,PHOTOCOPIERS - CENTRAL BUDGET,Supplies & Services,Revenue
Walsall Council,http://opendatacommunities.org/id/metropolitan-district-council/walsall,WC69-171,30/06/2016,Social Care & Inclusion,ALTODIGITAL NETWORKS LTD,27/06/2016,841.46,60009-LEASING/HIRE/RENTAL-EQUIPMENT,REABLEMENT TEAM - HOLLY BANK,Supplies & Services,Revenue
Walsall Council,http://opendatacommunities.org/id/metropolitan-district-council/walsall,WC69-172,30/06/2016,Change and Governance,ALTODIGITAL NETWORKS LTD,03/06/2016,"1,657.71",63800-COMPUTER EQUIPMENT AND SUPPLIES,PHOTOCOPIERS - CENTRAL BUDGET,Supplies & Services,Revenue
Walsall Council,http://opendatacommunities.org/id/metropolitan-district-council/walsall,WC69-173,30/06/2016,Childrens,REDACTED,06/06/2016,"1,230.82",74006-HOLIDAY/CHRISTMAS ALLOWANCE-FOSTER CARERS-OTH AGENCY PROVISION,INTERNAL FOSTER CARE PROVISION,Third Party Payments,Revenue
Walsall Council,http://opendatacommunities.org/id/metropolitan-district-council/walsall,WC69-174,30/06/2016,Childrens,REDACTED,20/06/2016,540.20,62515-MISCELLANEOUS SUPPLIES,INTERNAL FOSTER CARE PROVISION,Supplies & Services,Revenue
Walsall Council,http://opendatacommunities.org/id/metropolitan-district-council/walsall,WC69-175,30/06/2016,Childrens,REDACTED,20/06/2016,650.92,74006-HOLIDAY/CHRISTMAS ALLOWANCE-FOSTER CARERS-OTH AGENCY PROVISION,INTERNAL FOSTER CARE PROVISION,Third Party Payments,Revenue
Walsall Council,http://opendatacommunities.org/id/metropolitan-district-council/walsall,WC69-176,30/06/2016,Childrens,REDACTED,13/06/2016,391.15,76422-DIRECT PAYMENTS TO SOCIAL SERVICES CLIENTS,FAMILY SUPPORT - DIRECT PAYMENTS,Transfer Payments,Revenue
Walsall Council,http://opendatacommunities.org/id/metropolitan-district-council/walsall,WC69-177,30/06/2016,Economy & Environment,AMEY LG LIMITED,10/06/2016,654.66,73002-SECURITY-PRIV CONTRACTOR FEES,TRAFFIC CONTROL,Third Party Payments,Revenue
Walsall Council,http://opendatacommunities.org/id/metropolitan-district-council/walsall,WC69-178,30/06/2016,Economy & Environment,AMEY LG LIMITED,08/06/2016,"12,029.19",73025-PROFESSIONAL SERVICES-PRIV CONTRACTOR & OTHER AGENCIES,TRAFFIC MANAGEMENT,Third Party Payments,Revenue
Walsall Council,http://opendatacommunities.org/id/metropolitan-district-council/walsall,WC69-179,30/06/2016,Childrens,AMG NURSING CARE SERVICES,03/06/2016,"1,103.28",74036-EXTERNAL RESIDENTIAL CARE-OTH AGENCY PROVISION,INDEPENDENT RESIDENTIAL HOMES,Third Party Payments,Revenue
Walsall Council,http://opendatacommunities.org/id/metropolitan-district-council/walsall,WC69-180,30/06/2016,Childrens,AMG NURSING CARE SERVICES,03/06/2016,"1,166.88",63000-PROFESSIONAL FEES AND SERVICES,DIRECTLY COMMISSIONED NURSING SERVICES,Supplies & Services,Revenue
Walsall Council,http://opendatacommunities.org/id/metropolitan-district-council/walsall,WC69-181,30/06/2016,Social Care & Inclusion,AMG NURSING CARE SERVICES,08/06/2016,"6,767.75",73372-DOMICILIARY CARE,YADS COMMISSIONING,Third Party Payments,Revenue
Walsall Council,http://opendatacommunities.org/id/metropolitan-district-council/walsall,WC69-182,30/06/2016,Social Care & Inclusion,AMG NURSING CARE SERVICES,08/06/2016,"6,773.50",73372-DOMICILIARY CARE,YADS COMMISSIONING,Third Party Payments,Revenue
Walsall Council,http://opendatacommunities.org/id/metropolitan-district-council/walsall,WC69-183,30/06/2016,Social Care & Inclusion,AMG NURSING CARE SERVICES,08/06/2016,"6,778.50",73372-DOMICILIARY CARE,YADS COMMISSIONING,Third Party Payments,Revenue
Walsall Council,http://opendatacommunities.org/id/metropolitan-district-council/walsall,WC69-184,30/06/2016,Social Care & Inclusion,REDACTED,13/06/2016,"1,416.80",76422-DIRECT PAYMENTS TO SOCIAL SERVICES CLIENTS,OP COMMISSIONING,Transfer Payments,Revenue
Walsall Council,http://opendatacommunities.org/id/metropolitan-district-council/walsall,WC69-185,30/06/2016,Childrens,AMUSEMENT EQUIPMENT,02/06/2016,300.00,62523-EVENTS,CLUSTER 5 DARLASTON,Supplies & Services,Revenue
Walsall Council,http://opendatacommunities.org/id/metropolitan-district-council/walsall,WC69-186,30/06/2016,Childrens,REDACTED,06/06/2016,425.08,74006-HOLIDAY/CHRISTMAS ALLOWANCE-FOSTER CARERS-OTH AGENCY PROVISION,INTERNAL FOSTER CARE PROVISION,Third Party Payments,Revenue
Walsall Council,http://opendatacommunities.org/id/metropolitan-district-council/walsall,WC69-187,30/06/2016,Social Care & Inclusion,REDACTED,13/06/2016,680.00,76422-DIRECT PAYMENTS TO SOCIAL SERVICES CLIENTS,OP COMMISSIONING,Transfer Payments,Revenue
Walsall Council,http://opendatacommunities.org/id/metropolitan-district-council/walsall,WC69-188,30/06/2016,Social Care & Inclusion,REDACTED,13/06/2016,892.50,76422-DIRECT PAYMENTS TO SOCIAL SERVICES CLIENTS,OP COMMISSIONING,Transfer Payments,Revenue
Walsall Council,http://opendatacommunities.org/id/metropolitan-district-council/walsall,WC69-189,30/06/2016,Social Care & Inclusion,ANCHOR,07/06/2016,986.22,73373-RESIDENTIAL & NURSING CARE PLACEMENTS,OP COMMISSIONING,Third Party Payments,Revenue
Walsall Council,http://opendatacommunities.org/id/metropolitan-district-council/walsall,WC69-190,30/06/2016,Social Care & Inclusion,ANCHOR,07/06/2016,"1,260.17",73373-RESIDENTIAL & NURSING CARE PLACEMENTS,OP COMMISSIONING,Third Party Payments,Revenue
Walsall Council,http://opendatacommunities.org/id/metropolitan-district-council/walsall,WC69-191,30/06/2016,Social Care & Inclusion,ANCHOR,07/06/2016,"1,456.59",73373-RESIDENTIAL & NURSING CARE PLACEMENTS,OP COMMISSIONING,Third Party Payments,Revenue
Walsall Council,http://opendatacommunities.org/id/metropolitan-district-council/walsall,WC69-192,30/06/2016,Social Care & Inclusion,ANCHOR,07/06/2016,"1,493.24",73373-RESIDENTIAL & NURSING CARE PLACEMENTS,OP COMMISSIONING,Third Party Payments,Revenue
Walsall Council,http://opendatacommunities.org/id/metropolitan-district-council/walsall,WC69-193,30/06/2016,Social Care & Inclusion,ANCHOR,07/06/2016,"1,493.24",73373-RESIDENTIAL & NURSING CARE PLACEMENTS,OP COMMISSIONING,Third Party Payments,Revenue
Walsall Council,http://opendatacommunities.org/id/metropolitan-district-council/walsall,WC69-194,30/06/2016,Social Care & Inclusion,ANCHOR,07/06/2016,"1,493.24",73373-RESIDENTIAL & NURSING CARE PLACEMENTS,OP COMMISSIONING,Third Party Payments,Revenue
Walsall Council,http://opendatacommunities.org/id/metropolitan-district-council/walsall,WC69-195,30/06/2016,Social Care & Inclusion,ANCHOR,07/06/2016,"1,534.12",73373-RESIDENTIAL & NURSING CARE PLACEMENTS,OP COMMISSIONING,Third Party Payments,Revenue
Walsall Council,http://opendatacommunities.org/id/metropolitan-district-council/walsall,WC69-196,30/06/2016,Social Care & Inclusion,ANCHOR,07/06/2016,"1,534.12",73373-RESIDENTIAL & NURSING CARE PLACEMENTS,OP COMMISSIONING,Third Party Payments,Revenue
Walsall Council,http://opendatacommunities.org/id/metropolitan-district-council/walsall,WC69-197,30/06/2016,Social Care & Inclusion,ANCHOR,07/06/2016,"1,568.60",73373-RESIDENTIAL & NURSING CARE PLACEMENTS,MH COMMISSIONING,Third Party Payments,Revenue
Walsall Council,http://opendatacommunities.org/id/metropolitan-district-council/walsall,WC69-198,30/06/2016,Social Care & Inclusion,ANCHOR,07/06/2016,"1,568.64",73373-RESIDENTIAL & NURSING CARE PLACEMENTS,OP COMMISSIONING,Third Party Payments,Revenue
Walsall Council,http://opendatacommunities.org/id/metropolitan-district-council/walsall,WC69-199,30/06/2016,Social Care & Inclusion,ANCHOR,07/06/2016,"1,568.64",73373-RESIDENTIAL & NURSING CARE PLACEMENTS,OP COMMISSIONING,Third Party Payments,Revenue
Walsall Council,http://opendatacommunities.org/id/metropolitan-district-council/walsall,WC69-200,30/06/2016,Social Care & Inclusion,ANCHOR,07/06/2016,"1,568.64",73373-RESIDENTIAL & NURSING CARE PLACEMENTS,OP COMMISSIONING,Third Party Payments,Revenue
Walsall Council,http://opendatacommunities.org/id/metropolitan-district-council/walsall,WC69-201,30/06/2016,Social Care & Inclusion,ANCHOR,07/06/2016,"1,568.64",73373-RESIDENTIAL & NURSING CARE PLACEMENTS,OP COMMISSIONING,Third Party Payments,Revenue
Walsall Council,http://opendatacommunities.org/id/metropolitan-district-council/walsall,WC69-202,30/06/2016,Social Care & Inclusion,ANCHOR,07/06/2016,"1,568.64",73373-RESIDENTIAL & NURSING CARE PLACEMENTS,OP COMMISSIONING,Third Party Payments,Revenue
Walsall Council,http://opendatacommunities.org/id/metropolitan-district-council/walsall,WC69-203,30/06/2016,Social Care & Inclusion,ANCHOR,07/06/2016,"1,568.64",73373-RESIDENTIAL & NURSING CARE PLACEMENTS,OP COMMISSIONING,Third Party Payments,Revenue
Walsall Council,http://opendatacommunities.org/id/metropolitan-district-council/walsall,WC69-204,30/06/2016,Social Care & Inclusion,ANCHOR,07/06/2016,"1,568.64",73373-RESIDENTIAL & NURSING CARE PLACEMENTS,OP COMMISSIONING,Third Party Payments,Revenue
Walsall Council,http://opendatacommunities.org/id/metropolitan-district-council/walsall,WC69-205,30/06/2016,Social Care & Inclusion,ANCHOR,07/06/2016,"1,568.64",73373-RESIDENTIAL & NURSING CARE PLACEMENTS,OP COMMISSIONING,Third Party Payments,Revenue
Walsall Council,http://opendatacommunities.org/id/metropolitan-district-council/walsall,WC69-206,30/06/2016,Social Care & Inclusion,ANCHOR,07/06/2016,"1,568.64",73373-RESIDENTIAL & NURSING CARE PLACEMENTS,OP COMMISSIONING,Third Party Payments,Revenue
Walsall Council,http://opendatacommunities.org/id/metropolitan-district-council/walsall,WC69-207,30/06/2016,Social Care & Inclusion,ANCHOR,07/06/2016,"1,568.64",73373-RESIDENTIAL & NURSING CARE PLACEMENTS,OP COMMISSIONING,Third Party Payments,Revenue
Walsall Council,http://opendatacommunities.org/id/metropolitan-district-council/walsall,WC69-208,30/06/2016,Social Care & Inclusion,ANCHOR,07/06/2016,"1,568.64",73373-RESIDENTIAL & NURSING CARE PLACEMENTS,OP COMMISSIONING,Third Party Payments,Revenue
Walsall Council,http://opendatacommunities.org/id/metropolitan-district-council/walsall,WC69-209,30/06/2016,Social Care & Inclusion,ANCHOR,07/06/2016,"1,568.64",73373-RESIDENTIAL & NURSING CARE PLACEMENTS,OP COMMISSIONING,Third Party Payments,Revenue
Walsall Council,http://opendatacommunities.org/id/metropolitan-district-council/walsall,WC69-210,30/06/2016,Social Care & Inclusion,ANCHOR,07/06/2016,"1,568.64",73373-RESIDENTIAL & NURSING CARE PLACEMENTS,OP COMMISSIONING,Third Party Payments,Revenue
Walsall Council,http://opendatacommunities.org/id/metropolitan-district-council/walsall,WC69-211,30/06/2016,Social Care & Inclusion,ANCHOR,07/06/2016,"1,568.64",73373-RESIDENTIAL & NURSING CARE PLACEMENTS,OP COMMISSIONING,Third Party Payments,Revenue
Walsall Council,http://opendatacommunities.org/id/metropolitan-district-council/walsall,WC69-212,30/06/2016,Social Care & Inclusion,ANCHOR,07/06/2016,"1,568.64",73373-RESIDENTIAL & NURSING CARE PLACEMENTS,OP COMMISSIONING,Third Party Payments,Revenue
Walsall Council,http://opendatacommunities.org/id/metropolitan-district-council/walsall,WC69-213,30/06/2016,Social Care & Inclusion,ANCHOR,07/06/2016,"1,568.64",73373-RESIDENTIAL & NURSING CARE PLACEMENTS,OP COMMISSIONING,Third Party Payments,Revenue
Walsall Council,http://opendatacommunities.org/id/metropolitan-district-council/walsall,WC69-214,30/06/2016,Social Care & Inclusion,ANCHOR,14/06/2016,"3,081.33",73373-RESIDENTIAL & NURSING CARE PLACEMENTS,OP COMMISSIONING,Third Party Payments,Revenue
Walsall Council,http://opendatacommunities.org/id/metropolitan-district-council/walsall,WC69-215,30/06/2016,Childrens,REDACTED,20/06/2016,650.92,74006-HOLIDAY/CHRISTMAS ALLOWANCE-FOSTER CARERS-OTH AGENCY PROVISION,INTERNAL FOSTER CARE PROVISION,Third Party Payments,Revenue
Walsall Council,http://opendatacommunities.org/id/metropolitan-district-council/walsall,WC69-216,30/06/2016,Childrens,REDACTED,20/06/2016,"1,157.68",62515-MISCELLANEOUS SUPPLIES,INTERNAL FOSTER CARE PROVISION,Supplies & Services,Revenue
Walsall Council,http://opendatacommunities.org/id/metropolitan-district-council/walsall,WC69-217,30/06/2016,Social Care & Inclusion,REDACTED,13/06/2016,472.50,76422-DIRECT PAYMENTS TO SOCIAL SERVICES CLIENTS,YADS COMMISSIONING,Transfer Payments,Revenue
Walsall Council,http://opendatacommunities.org/id/metropolitan-district-council/walsall,WC69-218,30/06/2016,Social Care & Inclusion,ANGEL COURT RESIDENTIAL CARE HOME,22/06/2016,"2,240.74",73373-RESIDENTIAL & NURSING CARE PLACEMENTS,OP COMMISSIONING,Third Party Payments,Revenue
Walsall Council,http://opendatacommunities.org/id/metropolitan-district-council/walsall,WC69-219,30/06/2016,Social Care & Inclusion,ANGEL COURT RESIDENTIAL CARE HOME,22/06/2016,"2,321.74",73373-RESIDENTIAL & NURSING CARE PLACEMENTS,OP COMMISSIONING,Third Party Payments,Revenue
Walsall Council,http://opendatacommunities.org/id/metropolitan-district-council/walsall,WC69-220,30/06/2016,Childrens,REDACTED,06/06/2016,"2,112.16",74006-HOLIDAY/CHRISTMAS ALLOWANCE-FOSTER CARERS-OTH AGENCY PROVISION,INTERNAL FOSTER CARE PROVISION,Third Party Payments,Revenue
Walsall Council,http://opendatacommunities.org/id/metropolitan-district-council/walsall,WC69-221,30/06/2016,Childrens,REDACTED,06/06/2016,269.68,74006-HOLIDAY/CHRISTMAS ALLOWANCE-FOSTER CARERS-OTH AGENCY PROVISION,INTERNAL FOSTER CARE PROVISION,Third Party Payments,Revenue
Walsall Council,http://opendatacommunities.org/id/metropolitan-district-council/walsall,WC69-222,30/06/2016,Change and Governance,ANGLIA STAIRLIFTS LTD,06/06/2016,"3,715.00",01045-PRIVATE GRANTS,CFR 826 DISABLED FACILITIES GRANTS (SOCIAL SERVICES),Capital,Capital
Walsall Council,http://opendatacommunities.org/id/metropolitan-district-council/walsall,WC69-223,30/06/2016,Change and Governance,ANGLIA STAIRLIFTS LTD,15/06/2016,"3,715.00",01045-PRIVATE GRANTS,CFR 826 DISABLED FACILITIES GRANTS (SOCIAL SERVICES),Capital,Capital
Walsall Council,http://opendatacommunities.org/id/metropolitan-district-council/walsall,WC69-224,30/06/2016,Change and Governance,ANGLIA STAIRLIFTS LTD,15/06/2016,"3,715.00",01045-PRIVATE GRANTS,CFR 826 DISABLED FACILITIES GRANTS (SOCIAL SERVICES),Capital,Capital
Walsall Council,http://opendatacommunities.org/id/metropolitan-district-council/walsall,WC69-225,30/06/2016,Change and Governance,ANGLIA STAIRLIFTS LTD,16/06/2016,"3,765.00",01045-PRIVATE GRANTS,CFR 826 DISABLED FACILITIES GRANTS (SOCIAL SERVICES),Capital,Capital
Walsall Council,http://opendatacommunities.org/id/metropolitan-district-council/walsall,WC69-226,30/06/2016,Change and Governance,ANGLIA STAIRLIFTS LTD,06/06/2016,"3,895.00",01045-PRIVATE GRANTS,CFR 826 DISABLED FACILITIES GRANTS (SOCIAL SERVICES),Capital,Capital
Walsall Council,http://opendatacommunities.org/id/metropolitan-district-council/walsall,WC69-227,30/06/2016,Change and Governance,ANGLIA STAIRLIFTS LTD,16/06/2016,"3,895.00",01045-PRIVATE GRANTS,CFR 826 DISABLED FACILITIES GRANTS (SOCIAL SERVICES),Capital,Capital
Walsall Council,http://opendatacommunities.org/id/metropolitan-district-council/walsall,WC69-228,30/06/2016,Change and Governance,ANGLIA STAIRLIFTS LTD,15/06/2016,"4,076.00",01045-PRIVATE GRANTS,CFR 826 DISABLED FACILITIES GRANTS (SOCIAL SERVICES),Capital,Capital
Walsall Council,http://opendatacommunities.org/id/metropolitan-district-council/walsall,WC69-229,30/06/2016,Change and Governance,ANGLIA STAIRLIFTS LTD,02/06/2016,"4,205.00",01045-PRIVATE GRANTS,CFR 826 DISABLED FACILITIES GRANTS (SOCIAL SERVICES),Capital,Capital
Walsall Council,http://opendatacommunities.org/id/metropolitan-district-council/walsall,WC69-230,30/06/2016,Change and Governance,ANGLIA STAIRLIFTS LTD,24/06/2016,"4,515.00",01045-PRIVATE GRANTS,CFR 826 DISABLED FACILITIES GRANTS (SOCIAL SERVICES),Capital,Capital
Walsall Council,http://opendatacommunities.org/id/metropolitan-district-council/walsall,WC69-231,30/06/2016,Change and Governance,ANGLIA STAIRLIFTS LTD,15/06/2016,"4,765.00",01045-PRIVATE GRANTS,CFR 826 DISABLED FACILITIES GRANTS (SOCIAL SERVICES),Capital,Capital
Walsall Council,http://opendatacommunities.org/id/metropolitan-district-council/walsall,WC69-232,30/06/2016,Change and Governance,ANGLIA STAIRLIFTS LTD,24/06/2016,"5,015.00",01045-PRIVATE GRANTS,CFR 826 DISABLED FACILITIES GRANTS (SOCIAL SERVICES),Capital,Capital
Walsall Council,http://opendatacommunities.org/id/metropolitan-district-council/walsall,WC69-233,30/06/2016,Change and Governance,ANGLIA STAIRLIFTS LTD,23/06/2016,"5,092.50",01045-PRIVATE GRANTS,CFR 826 DISABLED FACILITIES GRANTS (SOCIAL SERVICES),Capital,Capital
Walsall Council,http://opendatacommunities.org/id/metropolitan-district-council/walsall,WC69-234,30/06/2016,Change and Governance,ANGLIA STAIRLIFTS LTD,24/06/2016,"5,095.00",01045-PRIVATE GRANTS,CFR 826 DISABLED FACILITIES GRANTS (SOCIAL SERVICES),Capital,Capital
Walsall Council,http://opendatacommunities.org/id/metropolitan-district-council/walsall,WC69-235,30/06/2016,Change and Governance,ANGLIA STAIRLIFTS LTD,24/06/2016,"5,105.00",01045-PRIVATE GRANTS,CFR 826 DISABLED FACILITIES GRANTS (SOCIAL SERVICES),Capital,Capital
Walsall Council,http://opendatacommunities.org/id/metropolitan-district-council/walsall,WC69-236,30/06/2016,Change and Governance,ANGLIA STAIRLIFTS LTD,23/06/2016,"5,295.00",01045-PRIVATE GRANTS,CFR 826 DISABLED FACILITIES GRANTS (SOCIAL SERVICES),Capital,Capital
Walsall Council,http://opendatacommunities.org/id/metropolitan-district-council/walsall,WC69-237,30/06/2016,Economy & Environment,ANIMAL ANTICS,17/06/2016,420.00,60500-GENERAL MATERIALS,LIBRARY DEVELOPMENT 2,Supplies & Services,Revenue
Walsall Council,http://opendatacommunities.org/id/metropolitan-district-council/walsall,WC69-238,30/06/2016,Childrens,ANIMALTASTIC,02/06/2016,300.00,62523-EVENTS,CLUSTER 5 DARLASTON,Supplies & Services,Revenue
Walsall Council,http://opendatacommunities.org/id/metropolitan-district-council/walsall,WC69-239,30/06/2016,Social Care & Inclusion,REDACTED,13/06/2016,430.00,76422-DIRECT PAYMENTS TO SOCIAL SERVICES CLIENTS,LD COMMISSIONING,Transfer Payments,Revenue
Walsall Council,http://opendatacommunities.org/id/metropolitan-district-council/walsall,WC69-240,30/06/2016,Childrens,REDACTED,20/06/2016,925.00,62515-MISCELLANEOUS SUPPLIES,INTERNAL FOSTER CARE PROVISION,Supplies & Services,Revenue
Walsall Council,http://opendatacommunities.org/id/metropolitan-district-council/walsall,WC69-241,30/06/2016,Social Care & Inclusion,REDACTED,10/06/2016,304.80,73374-SUPPORTED & OTHER ACCOMMODATION,LD COMMISSIONING,Third Party Payments,Revenue
Walsall Council,http://opendatacommunities.org/id/metropolitan-district-council/walsall,WC69-242,30/06/2016,Social Care & Inclusion,ANSON COURT RESIDENTIAL HOME,28/06/2016,900.00,73373-RESIDENTIAL & NURSING CARE PLACEMENTS,OP COMMISSIONING,Third Party Payments,Revenue
Walsall Council,http://opendatacommunities.org/id/metropolitan-district-council/walsall,WC69-243,30/06/2016,Social Care & Inclusion,ANSON COURT RESIDENTIAL HOME,07/06/2016,"1,568.64",73373-RESIDENTIAL & NURSING CARE PLACEMENTS,OP COMMISSIONING,Third Party Payments,Revenue
Walsall Council,http://opendatacommunities.org/id/metropolitan-district-council/walsall,WC69-244,30/06/2016,Social Care & Inclusion,ANSON COURT RESIDENTIAL HOME,07/06/2016,"1,651.04",73373-RESIDENTIAL & NURSING CARE PLACEMENTS,OP COMMISSIONING,Third Party Payments,Revenue
Walsall Council,http://opendatacommunities.org/id/metropolitan-district-council/walsall,WC69-245,30/06/2016,Social Care & Inclusion,ANSON COURT RESIDENTIAL HOME,22/06/2016,"1,800.00",73373-RESIDENTIAL & NURSING CARE PLACEMENTS,OP COMMISSIONING,Third Party Payments,Revenue
Walsall Council,http://opendatacommunities.org/id/metropolitan-district-council/walsall,WC69-246,30/06/2016,Social Care & Inclusion,ANSON COURT RESIDENTIAL HOME,22/06/2016,"2,097.92",73373-RESIDENTIAL & NURSING CARE PLACEMENTS,OP COMMISSIONING,Third Party Payments,Revenue
Walsall Council,http://opendatacommunities.org/id/metropolitan-district-council/walsall,WC69-247,30/06/2016,Social Care & Inclusion,ANSON COURT RESIDENTIAL HOME,22/06/2016,"2,099.12",73373-RESIDENTIAL & NURSING CARE PLACEMENTS,OP COMMISSIONING,Third Party Payments,Revenue
Walsall Council,http://opendatacommunities.org/id/metropolitan-district-council/walsall,WC69-248,30/06/2016,Social Care & Inclusion,ANSON COURT RESIDENTIAL HOME,22/06/2016,"2,099.12",73373-RESIDENTIAL & NURSING CARE PLACEMENTS,OP COMMISSIONING,Third Party Payments,Revenue
Walsall Council,http://opendatacommunities.org/id/metropolitan-district-council/walsall,WC69-249,30/06/2016,Social Care & Inclusion,ANSON COURT RESIDENTIAL HOME,22/06/2016,"2,101.60",73373-RESIDENTIAL & NURSING CARE PLACEMENTS,MH COMMISSIONING,Third Party Payments,Revenue
Walsall Council,http://opendatacommunities.org/id/metropolitan-district-council/walsall,WC69-250,30/06/2016,Social Care & Inclusion,ANSON COURT RESIDENTIAL HOME,22/06/2016,"2,262.72",73373-RESIDENTIAL & NURSING CARE PLACEMENTS,OP COMMISSIONING,Third Party Payments,Revenue
Walsall Council,http://opendatacommunities.org/id/metropolitan-district-council/walsall,WC69-251,30/06/2016,Social Care & Inclusion,ANSON COURT RESIDENTIAL HOME,22/06/2016,"2,262.72",73373-RESIDENTIAL & NURSING CARE PLACEMENTS,OP COMMISSIONING,Third Party Payments,Revenue
Walsall Council,http://opendatacommunities.org/id/metropolitan-district-council/walsall,WC69-252,30/06/2016,Social Care & Inclusion,ANSON COURT RESIDENTIAL HOME,22/06/2016,"2,262.72",73373-RESIDENTIAL & NURSING CARE PLACEMENTS,OP COMMISSIONING,Third Party Payments,Revenue
Walsall Council,http://opendatacommunities.org/id/metropolitan-district-council/walsall,WC69-253,30/06/2016,Social Care & Inclusion,ANSON COURT RESIDENTIAL HOME,22/06/2016,"2,262.72",73373-RESIDENTIAL & NURSING CARE PLACEMENTS,OP COMMISSIONING,Third Party Payments,Revenue
Walsall Council,http://opendatacommunities.org/id/metropolitan-district-council/walsall,WC69-254,30/06/2016,Social Care & Inclusion,ANSON COURT RESIDENTIAL HOME,22/06/2016,"2,262.72",73373-RESIDENTIAL & NURSING CARE PLACEMENTS,MH COMMISSIONING,Third Party Payments,Revenue
Walsall Council,http://opendatacommunities.org/id/metropolitan-district-council/walsall,WC69-255,30/06/2016,Social Care & Inclusion,ANSON COURT RESIDENTIAL HOME,22/06/2016,"2,262.72",73373-RESIDENTIAL & NURSING CARE PLACEMENTS,MH COMMISSIONING,Third Party Payments,Revenue
Walsall Council,http://opendatacommunities.org/id/metropolitan-district-council/walsall,WC69-256,30/06/2016,Social Care & Inclusion,ANSON COURT RESIDENTIAL HOME,22/06/2016,"2,262.72",73373-RESIDENTIAL & NURSING CARE PLACEMENTS,MH COMMISSIONING,Third Party Payments,Revenue
Walsall Council,http://opendatacommunities.org/id/metropolitan-district-council/walsall,WC69-257,30/06/2016,Social Care & Inclusion,ANSON COURT RESIDENTIAL HOME,22/06/2016,"2,262.72",73373-RESIDENTIAL & NURSING CARE PLACEMENTS,OP COMMISSIONING,Third Party Payments,Revenue
Walsall Council,http://opendatacommunities.org/id/metropolitan-district-council/walsall,WC69-258,30/06/2016,Social Care & Inclusion,ANSON COURT RESIDENTIAL HOME,22/06/2016,"2,262.72",73373-RESIDENTIAL & NURSING CARE PLACEMENTS,MH COMMISSIONING,Third Party Payments,Revenue
Walsall Council,http://opendatacommunities.org/id/metropolitan-district-council/walsall,WC69-259,30/06/2016,Social Care & Inclusion,ANSON COURT RESIDENTIAL HOME,22/06/2016,"2,262.72",73373-RESIDENTIAL & NURSING CARE PLACEMENTS,MH COMMISSIONING,Third Party Payments,Revenue
Walsall Council,http://opendatacommunities.org/id/metropolitan-district-council/walsall,WC69-260,30/06/2016,Social Care & Inclusion,ANSON COURT RESIDENTIAL HOME,22/06/2016,"2,262.72",73373-RESIDENTIAL & NURSING CARE PLACEMENTS,OP COMMISSIONING,Third Party Payments,Revenue
Walsall Council,http://opendatacommunities.org/id/metropolitan-district-council/walsall,WC69-261,30/06/2016,Social Care & Inclusion,ANSON COURT RESIDENTIAL HOME,22/06/2016,"2,262.72",73373-RESIDENTIAL & NURSING CARE PLACEMENTS,OP COMMISSIONING,Third Party Payments,Revenue
Walsall Council,http://opendatacommunities.org/id/metropolitan-district-council/walsall,WC69-262,30/06/2016,Social Care & Inclusion,ANSON COURT RESIDENTIAL HOME,22/06/2016,"2,266.00",73373-RESIDENTIAL & NURSING CARE PLACEMENTS,OP COMMISSIONING,Third Party Payments,Revenue
Walsall Council,http://opendatacommunities.org/id/metropolitan-district-council/walsall,WC69-263,30/06/2016,Social Care & Inclusion,ANSON COURT RESIDENTIAL HOME,07/06/2016,"3,486.48",73373-RESIDENTIAL & NURSING CARE PLACEMENTS,MH COMMISSIONING,Third Party Payments,Revenue
Walsall Council,http://opendatacommunities.org/id/metropolitan-district-council/walsall,WC69-264,30/06/2016,Social Care & Inclusion,ANSON COURT RESIDENTIAL HOME,07/06/2016,"4,648.64",73373-RESIDENTIAL & NURSING CARE PLACEMENTS,MH COMMISSIONING,Third Party Payments,Revenue
Walsall Council,http://opendatacommunities.org/id/metropolitan-district-council/walsall,WC69-265,30/06/2016,Childrens,ANSON PRIMARY SCHOOL,10/06/2016,250.00,77300-ISB-FORMULA ALLOCATION,OUT OF BOROUGH SCHOOLS,Transfer Payments,Revenue
Walsall Council,http://opendatacommunities.org/id/metropolitan-district-council/walsall,WC69-266,30/06/2016,Change and Governance,ANTALIS LIMITED,17/06/2016,520.00,60500-GENERAL MATERIALS,PRINTING SERVICES,Supplies & Services,Revenue
Walsall Council,http://opendatacommunities.org/id/metropolitan-district-council/walsall,WC69-267,30/06/2016,Childrens,REDACTED,06/06/2016,"1,310.64",74006-HOLIDAY/CHRISTMAS ALLOWANCE-FOSTER CARERS-OTH AGENCY PROVISION,INTERNAL FOSTER CARE PROVISION,Third Party Payments,Revenue
Walsall Council,http://opendatacommunities.org/id/metropolitan-district-council/walsall,WC69-268,30/06/2016,Economy & Environment,APCOA PARKING SERVICES (UK) LTD,13/06/2016,"47,194.08",73025-PROFESSIONAL SERVICES-PRIV CONTRACTOR & OTHER AGENCIES,PARKING SERVICES,Third Party Payments,Revenue
Walsall Council,http://opendatacommunities.org/id/metropolitan-district-council/walsall,WC69-269,30/06/2016,Childrens,APPLE TRANSCRIPTION LIMITED,08/06/2016,259.70,73014-LEGAL FEES-PRIV CONTRACTOR FEES,GENERAL MANAGEMENT SUPPORT (INC LEGAL),Third Party Payments,Revenue
Walsall Council,http://opendatacommunities.org/id/metropolitan-district-council/walsall,WC69-270,30/06/2016,Childrens,APPLIED GEOLOGY LTD,20/06/2016,"3,010.00",01002-PROJECT FEES,CFR 929 FIBBERSLEY PRIMARY SIGNIFICANT ENLARGEMENT,Capital,Capital
Walsall Council,http://opendatacommunities.org/id/metropolitan-district-council/walsall,WC69-271,30/06/2016,Economy & Environment,APSE 001,13/06/2016,338.00,73025-PROFESSIONAL SERVICES-PRIV CONTRACTOR & OTHER AGENCIES,FLEET,Third Party Payments,Revenue
Walsall Council,http://opendatacommunities.org/id/metropolitan-district-council/walsall,WC69-272,30/06/2016,Social Care & Inclusion,ARBORETUM NURSING HOME.,28/06/2016,973.98,73373-RESIDENTIAL & NURSING CARE PLACEMENTS,OP COMMISSIONING,Third Party Payments,Revenue
Walsall Council,http://opendatacommunities.org/id/metropolitan-district-council/walsall,WC69-273,30/06/2016,Social Care & Inclusion,ARBORETUM NURSING HOME.,22/06/2016,"1,058.36",73373-RESIDENTIAL & NURSING CARE PLACEMENTS,OP COMMISSIONING,Third Party Payments,Revenue
Walsall Council,http://opendatacommunities.org/id/metropolitan-district-council/walsall,WC69-274,30/06/2016,Social Care & Inclusion,ARBORETUM NURSING HOME.,28/06/2016,"1,123.82",73373-RESIDENTIAL & NURSING CARE PLACEMENTS,OP COMMISSIONING,Third Party Payments,Revenue
Walsall Council,http://opendatacommunities.org/id/metropolitan-district-council/walsall,WC69-275,30/06/2016,Social Care & Inclusion,ARBORETUM NURSING HOME.,22/06/2016,"1,905.04",73373-RESIDENTIAL & NURSING CARE PLACEMENTS,OP COMMISSIONING,Third Party Payments,Revenue
Walsall Council,http://opendatacommunities.org/id/metropolitan-district-council/walsall,WC69-276,30/06/2016,Social Care & Inclusion,ARBORETUM NURSING HOME.,07/06/2016,"1,975.60",73373-RESIDENTIAL & NURSING CARE PLACEMENTS,OP COMMISSIONING,Third Party Payments,Revenue
Walsall Council,http://opendatacommunities.org/id/metropolitan-district-council/walsall,WC69-277,30/06/2016,Social Care & Inclusion,ARBORETUM NURSING HOME.,14/06/2016,"1,975.60",73373-RESIDENTIAL & NURSING CARE PLACEMENTS,OP COMMISSIONING,Third Party Payments,Revenue
Walsall Council,http://opendatacommunities.org/id/metropolitan-district-council/walsall,WC69-278,30/06/2016,Social Care & Inclusion,ARBORETUM NURSING HOME.,22/06/2016,"1,975.60",73373-RESIDENTIAL & NURSING CARE PLACEMENTS,OP COMMISSIONING,Third Party Payments,Revenue
Walsall Council,http://opendatacommunities.org/id/metropolitan-district-council/walsall,WC69-279,30/06/2016,Social Care & Inclusion,ARBORETUM NURSING HOME.,22/06/2016,"1,975.60",73373-RESIDENTIAL & NURSING CARE PLACEMENTS,OP COMMISSIONING,Third Party Payments,Revenue
Walsall Council,http://opendatacommunities.org/id/metropolitan-district-council/walsall,WC69-280,30/06/2016,Social Care & Inclusion,ARBORETUM NURSING HOME.,14/06/2016,"2,142.08",73373-RESIDENTIAL & NURSING CARE PLACEMENTS,OP COMMISSIONING,Third Party Payments,Revenue
Walsall Council,http://opendatacommunities.org/id/metropolitan-district-council/walsall,WC69-281,30/06/2016,Social Care & Inclusion,ARBORETUM NURSING HOME.,14/06/2016,"2,469.50",73373-RESIDENTIAL & NURSING CARE PLACEMENTS,OP COMMISSIONING,Third Party Payments,Revenue
Walsall Council,http://opendatacommunities.org/id/metropolitan-district-council/walsall,WC69-282,30/06/2016,Social Care & Inclusion,ARBORETUM NURSING HOME.,14/06/2016,"2,469.50",73373-RESIDENTIAL & NURSING CARE PLACEMENTS,OP COMMISSIONING,Third Party Payments,Revenue
Walsall Council,http://opendatacommunities.org/id/metropolitan-district-council/walsall,WC69-283,30/06/2016,Social Care & Inclusion,ARBORETUM NURSING HOME.,14/06/2016,"2,469.50",73373-RESIDENTIAL & NURSING CARE PLACEMENTS,OP COMMISSIONING,Third Party Payments,Revenue
Walsall Council,http://opendatacommunities.org/id/metropolitan-district-council/walsall,WC69-284,30/06/2016,Social Care & Inclusion,ARBORETUM NURSING HOME.,22/06/2016,"2,469.50",73373-RESIDENTIAL & NURSING CARE PLACEMENTS,OP COMMISSIONING,Third Party Payments,Revenue
Walsall Council,http://opendatacommunities.org/id/metropolitan-district-council/walsall,WC69-285,30/06/2016,Social Care & Inclusion,ARBORETUM NURSING HOME.,28/06/2016,"15,000.00",73019-PSE'S-PRIV CONTRACTOR FEES,TRANSITIONAL CARE SUPPORT TEAM,Third Party Payments,Revenue
Walsall Council,http://opendatacommunities.org/id/metropolitan-district-council/walsall,WC69-286,30/06/2016,Economy & Environment,ARCANE DIRECT MARKETING,13/06/2016,308.32,62511-DISTRIBUTION,NAG - ART GALLERY MARKETING,Supplies & Services,Revenue
Walsall Council,http://opendatacommunities.org/id/metropolitan-district-council/walsall,WC69-287,30/06/2016,Economy & Environment,ARCANE DIRECT MARKETING,13/06/2016,915.07,62511-DISTRIBUTION,NAG - ART GALLERY MARKETING,Supplies & Services,Revenue
Walsall Council,http://opendatacommunities.org/id/metropolitan-district-council/walsall,WC69-288,30/06/2016,Economy & Environment,ARCHWAY TCS LTD,07/06/2016,815.46,60537-VEHICLE WASH PLANT-MATERIALS,DEPOT,Supplies & Services,Revenue
Walsall Council,http://opendatacommunities.org/id/metropolitan-district-council/walsall,WC69-289,30/06/2016,Economy & Environment,ARTBEAT,28/06/2016,588.02,63000-PROFESSIONAL FEES AND SERVICES,FOREST ARTS CENTRE,Supplies & Services,Revenue
Walsall Council,http://opendatacommunities.org/id/metropolitan-district-council/walsall,WC69-290,30/06/2016,Holding Accounts,ARTHUR J GALLAGHER INTERNATIONAL,22/06/2016,"18,903.85",89016-FIRE PREMIUM INSURANCE POLICY,PUBLIC LIABILITY,Supplies & Services,Revenue
Walsall Council,http://opendatacommunities.org/id/metropolitan-district-council/walsall,WC69-291,30/06/2016,Holding Accounts,ARTHUR J GALLAGHER T/A HEATH LAMBERT LIMITED,08/06/2016,"12,241.66",89010-LMS PREMIUM INSURANCE POLICY,PUBLIC LIABILITY,Supplies & Services,Revenue
Walsall Council,http://opendatacommunities.org/id/metropolitan-district-council/walsall,WC69-292,30/06/2016,Holding Accounts,ARTHUR J GALLAGHER T/A HEATH LAMBERT LIMITED,08/06/2016,"28,256.49",89008-FIDELITY GUARANTEE PREMIUM INSURANCE POLICY,PUBLIC LIABILITY,Supplies & Services,Revenue
Walsall Council,http://opendatacommunities.org/id/metropolitan-district-council/walsall,WC69-293,30/06/2016,Holding Accounts,ARTHUR J GALLAGHER T/A HEATH LAMBERT LIMITED,07/06/2016,"45,990.00",89014-GENERAL ACCIDENT PREMIUM INSURANCE POLICY,PUBLIC LIABILITY,Supplies & Services,Revenue
Walsall Council,http://opendatacommunities.org/id/metropolitan-district-council/walsall,WC69-294,30/06/2016,Childrens,ARTHUR M GRIFFITHS & SON LTD,17/06/2016,"242,116.44",01006-SITE WORKS MAIN CONTRACTORS,CFR 929 KING CHARLES PRIMARY SIGNIFICANT ENLARGEMENT,Capital,Capital
Walsall Council,http://opendatacommunities.org/id/metropolitan-district-council/walsall,WC69-295,30/06/2016,Economy & Environment,ASA AWARDS,01/06/2016,-340.80,60006-NEW-FURNITURE & EQUIPMENT,DARLASTON LEISURE CENTRE,Supplies & Services,Revenue
Walsall Council,http://opendatacommunities.org/id/metropolitan-district-council/walsall,WC69-296,30/06/2016,Economy & Environment,ASA AWARDS,14/06/2016,265.30,60006-NEW-FURNITURE & EQUIPMENT,OAK PARK,Supplies & Services,Revenue
Walsall Council,http://opendatacommunities.org/id/metropolitan-district-council/walsall,WC69-297,30/06/2016,Social Care & Inclusion,ASH GRANGE CARE HOME,07/06/2016,426.00,73373-RESIDENTIAL & NURSING CARE PLACEMENTS,OP COMMISSIONING,Third Party Payments,Revenue
Walsall Council,http://opendatacommunities.org/id/metropolitan-district-council/walsall,WC69-298,30/06/2016,Social Care & Inclusion,ASH GRANGE CARE HOME,22/06/2016,852.00,73373-RESIDENTIAL & NURSING CARE PLACEMENTS,OP COMMISSIONING,Third Party Payments,Revenue
Walsall Council,http://opendatacommunities.org/id/metropolitan-district-council/walsall,WC69-299,30/06/2016,Social Care & Inclusion,ASH GRANGE CARE HOME,22/06/2016,"1,505.56",73373-RESIDENTIAL & NURSING CARE PLACEMENTS,OP COMMISSIONING,Third Party Payments,Revenue
Walsall Council,http://opendatacommunities.org/id/metropolitan-district-council/walsall,WC69-300,30/06/2016,Social Care & Inclusion,ASH GRANGE CARE HOME,22/06/2016,"1,641.15",73373-RESIDENTIAL & NURSING CARE PLACEMENTS,MH COMMISSIONING,Third Party Payments,Revenue
Walsall Council,http://opendatacommunities.org/id/metropolitan-district-council/walsall,WC69-301,30/06/2016,Social Care & Inclusion,ASH GRANGE CARE HOME,22/06/2016,"1,988.20",73373-RESIDENTIAL & NURSING CARE PLACEMENTS,OP COMMISSIONING,Third Party Payments,Revenue
Walsall Council,http://opendatacommunities.org/id/metropolitan-district-council/walsall,WC69-302,30/06/2016,Social Care & Inclusion,ASH GRANGE CARE HOME,22/06/2016,"1,988.20",73373-RESIDENTIAL & NURSING CARE PLACEMENTS,MH COMMISSIONING,Third Party Payments,Revenue
Walsall Council,http://opendatacommunities.org/id/metropolitan-district-council/walsall,WC69-303,30/06/2016,Social Care & Inclusion,ASH GRANGE CARE HOME,22/06/2016,"1,988.20",73373-RESIDENTIAL & NURSING CARE PLACEMENTS,OP COMMISSIONING,Third Party Payments,Revenue
Walsall Council,http://opendatacommunities.org/id/metropolitan-district-council/walsall,WC69-304,30/06/2016,Social Care & Inclusion,ASH GRANGE CARE HOME,22/06/2016,"1,988.20",73373-RESIDENTIAL & NURSING CARE PLACEMENTS,OP COMMISSIONING,Third Party Payments,Revenue
Walsall Council,http://opendatacommunities.org/id/metropolitan-district-council/walsall,WC69-305,30/06/2016,Social Care & Inclusion,ASH GRANGE CARE HOME,22/06/2016,"1,988.20",73373-RESIDENTIAL & NURSING CARE PLACEMENTS,OP COMMISSIONING,Third Party Payments,Revenue
Walsall Council,http://opendatacommunities.org/id/metropolitan-district-council/walsall,WC69-306,30/06/2016,Social Care & Inclusion,ASH GRANGE CARE HOME,22/06/2016,"1,988.20",73373-RESIDENTIAL & NURSING CARE PLACEMENTS,OP COMMISSIONING,Third Party Payments,Revenue
Walsall Council,http://opendatacommunities.org/id/metropolitan-district-council/walsall,WC69-307,30/06/2016,Social Care & Inclusion,ASH GRANGE CARE HOME,22/06/2016,"1,988.20",73373-RESIDENTIAL & NURSING CARE PLACEMENTS,OP COMMISSIONING,Third Party Payments,Revenue
Walsall Council,http://opendatacommunities.org/id/metropolitan-district-council/walsall,WC69-308,30/06/2016,Social Care & Inclusion,ASH GRANGE CARE HOME,22/06/2016,"1,988.20",73373-RESIDENTIAL & NURSING CARE PLACEMENTS,OP COMMISSIONING,Third Party Payments,Revenue
Walsall Council,http://opendatacommunities.org/id/metropolitan-district-council/walsall,WC69-309,30/06/2016,Social Care & Inclusion,ASH GRANGE CARE HOME,22/06/2016,"1,988.20",73373-RESIDENTIAL & NURSING CARE PLACEMENTS,OP COMMISSIONING,Third Party Payments,Revenue
Walsall Council,http://opendatacommunities.org/id/metropolitan-district-council/walsall,WC69-310,30/06/2016,Social Care & Inclusion,ASH GRANGE CARE HOME,22/06/2016,"1,988.20",73373-RESIDENTIAL & NURSING CARE PLACEMENTS,OP COMMISSIONING,Third Party Payments,Revenue
Walsall Council,http://opendatacommunities.org/id/metropolitan-district-council/walsall,WC69-311,30/06/2016,Social Care & Inclusion,ASH GRANGE CARE HOME,22/06/2016,"2,065.64",73373-RESIDENTIAL & NURSING CARE PLACEMENTS,OP COMMISSIONING,Third Party Payments,Revenue
Walsall Council,http://opendatacommunities.org/id/metropolitan-district-council/walsall,WC69-312,30/06/2016,Social Care & Inclusion,ASH GRANGE CARE HOME,22/06/2016,"2,188.20",73373-RESIDENTIAL & NURSING CARE PLACEMENTS,MH COMMISSIONING,Third Party Payments,Revenue
Walsall Council,http://opendatacommunities.org/id/metropolitan-district-council/walsall,WC69-313,30/06/2016,Social Care & Inclusion,ASH GRANGE CARE HOME,22/06/2016,"2,188.20",73373-RESIDENTIAL & NURSING CARE PLACEMENTS,MH COMMISSIONING,Third Party Payments,Revenue
Walsall Council,http://opendatacommunities.org/id/metropolitan-district-council/walsall,WC69-314,30/06/2016,Social Care & Inclusion,ASH GRANGE CARE HOME,22/06/2016,"2,943.72",73373-RESIDENTIAL & NURSING CARE PLACEMENTS,OP COMMISSIONING,Third Party Payments,Revenue
Walsall Council,http://opendatacommunities.org/id/metropolitan-district-council/walsall,WC69-315,30/06/2016,Social Care & Inclusion,ASH GRANGE CARE HOME,27/06/2016,"14,700.00",73019-PSE'S-PRIV CONTRACTOR FEES,TRANSITIONAL CARE SUPPORT TEAM,Third Party Payments,Revenue
Walsall Council,http://opendatacommunities.org/id/metropolitan-district-council/walsall,WC69-316,30/06/2016,Social Care & Inclusion,ASHBOURNE LODGE,28/06/2016,"2,103.86",73373-RESIDENTIAL & NURSING CARE PLACEMENTS,OP COMMISSIONING,Third Party Payments,Revenue
Walsall Council,http://opendatacommunities.org/id/metropolitan-district-council/walsall,WC69-317,30/06/2016,Economy & Environment,ASKEWS AND HOLTS LIBRARY SERVICES LTD,02/06/2016,251.15,60501-LIBRARY BOOKS,LIBRARY STOCK AND PERFORMANCE,Supplies & Services,Revenue
Walsall Council,http://opendatacommunities.org/id/metropolitan-district-council/walsall,WC69-318,30/06/2016,Economy & Environment,ASKEWS AND HOLTS LIBRARY SERVICES LTD,28/06/2016,309.54,60501-LIBRARY BOOKS,LIBRARY STOCK AND PERFORMANCE,Supplies & Services,Revenue
Walsall Council,http://opendatacommunities.org/id/metropolitan-district-council/walsall,WC69-319,30/06/2016,Economy & Environment,ASKEWS AND HOLTS LIBRARY SERVICES LTD,28/06/2016,374.56,60501-LIBRARY BOOKS,LIBRARY STOCK AND PERFORMANCE,Supplies & Services,Revenue
Walsall Council,http://opendatacommunities.org/id/metropolitan-district-council/walsall,WC69-320,30/06/2016,Economy & Environment,ASKEWS AND HOLTS LIBRARY SERVICES LTD,16/06/2016,506.38,60501-LIBRARY BOOKS,LIBRARY STOCK AND PERFORMANCE,Supplies & Services,Revenue
Walsall Council,http://opendatacommunities.org/id/metropolitan-district-council/walsall,WC69-321,30/06/2016,Economy & Environment,ASKEWS AND HOLTS LIBRARY SERVICES LTD,06/06/2016,713.58,60501-LIBRARY BOOKS,LIBRARY STOCK AND PERFORMANCE,Supplies & Services,Revenue
Walsall Council,http://opendatacommunities.org/id/metropolitan-district-council/walsall,WC69-322,30/06/2016,Social Care & Inclusion,REDACTED,13/06/2016,616.25,76422-DIRECT PAYMENTS TO SOCIAL SERVICES CLIENTS,YADS COMMISSIONING,Transfer Payments,Revenue
Walsall Council,http://opendatacommunities.org/id/metropolitan-district-council/walsall,WC69-323,30/06/2016,Childrens,ASSOCIATION FOR REHABILITATION OF COMMUNICATION AND ORAL SKILLS (ARCOS),01/06/2016,675.00,63000-PROFESSIONAL FEES AND SERVICES,INDEPENDENT PROVIDERS - SPECIAL & AP,Supplies & Services,Revenue
Walsall Council,http://opendatacommunities.org/id/metropolitan-district-council/walsall,WC69-324,30/06/2016,Childrens,ASSOCIATION OF EDUCATIONAL PSYCHOLOGISTS,15/06/2016,700.00,34000-RECRUITMENT EXPENSES (ALL TYPES INCL RELOCATION),EDUCATIONAL PSYCHOLOGISTS,Employees,Revenue
Walsall Council,http://opendatacommunities.org/id/metropolitan-district-council/walsall,WC69-325,30/06/2016,Childrens,ASTON CHILDRENS CARE,03/06/2016,"10,714.20",74036-EXTERNAL RESIDENTIAL CARE-OTH AGENCY PROVISION,INDEPENDENT RESIDENTIAL HOMES,Third Party Payments,Revenue
Walsall Council,http://opendatacommunities.org/id/metropolitan-district-council/walsall,WC69-326,30/06/2016,Childrens,ASTON CHILDRENS CARE,13/06/2016,"10,714.20",74036-EXTERNAL RESIDENTIAL CARE-OTH AGENCY PROVISION,INDEPENDENT RESIDENTIAL HOMES,Third Party Payments,Revenue
Walsall Council,http://opendatacommunities.org/id/metropolitan-district-council/walsall,WC69-327,30/06/2016,Childrens,ASTON CHILDRENS CARE,08/06/2016,"11,071.34",74036-EXTERNAL RESIDENTIAL CARE-OTH AGENCY PROVISION,INDEPENDENT RESIDENTIAL HOMES,Third Party Payments,Revenue
Walsall Council,http://opendatacommunities.org/id/metropolitan-district-council/walsall,WC69-328,30/06/2016,Change and Governance,AURORA GRAPHICS & DISPLAYS LTD,03/06/2016,996.35,62008-OUTWORK-PRINT ROOM,PRINTING SERVICES,Supplies & Services,Revenue
Walsall Council,http://opendatacommunities.org/id/metropolitan-district-council/walsall,WC69-329,30/06/2016,Change and Governance,AURORA GRAPHICS & DISPLAYS LTD,20/06/2016,"2,042.50",62008-OUTWORK-PRINT ROOM,PRINTING SERVICES,Supplies & Services,Revenue
Walsall Council,http://opendatacommunities.org/id/metropolitan-district-council/walsall,WC69-330,30/06/2016,Social Care & Inclusion,AUTISM WEST MIDLANDS,07/06/2016,"7,479.01",73373-RESIDENTIAL & NURSING CARE PLACEMENTS,LD COMMISSIONING,Third Party Payments,Revenue
Walsall Council,http://opendatacommunities.org/id/metropolitan-district-council/walsall,WC69-331,30/06/2016,Social Care & Inclusion,AUTISM WEST MIDLANDS,15/06/2016,"11,333.33",70000-SOCIAL SERVICES-FEES TO VOLUNTARY BODIES,COMPLEX NEEDS CONTRACTS/SLA's,Third Party Payments,Revenue
Walsall Council,http://opendatacommunities.org/id/metropolitan-district-council/walsall,WC69-332,30/06/2016,Social Care & Inclusion,AUTISM WEST MIDLANDS 001,07/06/2016,"4,999.33",73373-RESIDENTIAL & NURSING CARE PLACEMENTS,LD COMMISSIONING,Third Party Payments,Revenue
Walsall Council,http://opendatacommunities.org/id/metropolitan-district-council/walsall,WC69-333,30/06/2016,Economy & Environment,AUTO EXTRACT SYSTEMS LTD,21/06/2016,580.00,73025-PROFESSIONAL SERVICES-PRIV CONTRACTOR & OTHER AGENCIES,DEPOT,Third Party Payments,Revenue
Walsall Council,http://opendatacommunities.org/id/metropolitan-district-council/walsall,WC69-334,30/06/2016,Economy & Environment,AUTORITE INDUSTRIES (WILLENHALL)LTD,22/06/2016,220.00,73032-TRANSPORTATION-PRIV CONTRACTOR FEES,REMOVAL OF UNAUTHORISED ENCAMPMENTS,Third Party Payments,Revenue
Walsall Council,http://opendatacommunities.org/id/metropolitan-district-council/walsall,WC69-335,30/06/2016,Economy & Environment,AVIDITY TRAINING LIMITED,23/06/2016,375.00,66500-GRANTS TO OTHER ORGS,RES-WALSALL WORKS,Third Party Payments,Revenue
Walsall Council,http://opendatacommunities.org/id/metropolitan-district-council/walsall,WC69-336,30/06/2016,Economy & Environment,AVIDITY TRAINING LIMITED,08/06/2016,"1,125.00",66500-GRANTS TO OTHER ORGS,RES-WALSALL WORKS,Third Party Payments,Revenue
Walsall Council,http://opendatacommunities.org/id/metropolitan-district-council/walsall,WC69-337,30/06/2016,Economy & Environment,AVIDITY TRAINING LIMITED,08/06/2016,"1,125.00",66500-GRANTS TO OTHER ORGS,RES-WALSALL WORKS,Third Party Payments,Revenue
Walsall Council,http://opendatacommunities.org/id/metropolitan-district-council/walsall,WC69-338,30/06/2016,Economy & Environment,AVIDITY TRAINING LIMITED,15/06/2016,"1,875.00",66500-GRANTS TO OTHER ORGS,RES-WALSALL WORKS,Third Party Payments,Revenue
Walsall Council,http://opendatacommunities.org/id/metropolitan-district-council/walsall,WC69-339,30/06/2016,Social Care & Inclusion,REDACTED,13/06/2016,971.25,76422-DIRECT PAYMENTS TO SOCIAL SERVICES CLIENTS,OP COMMISSIONING,Transfer Payments,Revenue
Walsall Council,http://opendatacommunities.org/id/metropolitan-district-council/walsall,WC69-340,30/06/2016,Economy & Environment,AXIELL LIMITED,17/06/2016,"1,264.90",63000-PROFESSIONAL FEES AND SERVICES,LIBRARY STOCK AND PERFORMANCE,Supplies & Services,Revenue
Walsall Council,http://opendatacommunities.org/id/metropolitan-district-council/walsall,WC69-341,30/06/2016,Childrens,REDACTED,13/06/2016,"1,605.00",76422-DIRECT PAYMENTS TO SOCIAL SERVICES CLIENTS,FAMILY SUPPORT - DIRECT PAYMENTS,Transfer Payments,Revenue
Walsall Council,http://opendatacommunities.org/id/metropolitan-district-council/walsall,WC69-342,30/06/2016,Social Care & Inclusion,REDACTED,13/06/2016,"3,315.00",76422-DIRECT PAYMENTS TO SOCIAL SERVICES CLIENTS,LD COMMISSIONING,Transfer Payments,Revenue
Walsall Council,http://opendatacommunities.org/id/metropolitan-district-council/walsall,WC69-343,30/06/2016,Change and Governance,B E FURNITURE LTD T/A B E EVENTHIRE,29/06/2016,602.00,60009-LEASING/HIRE/RENTAL-EQUIPMENT,ELECTORAL ADMINISTRATION,Supplies & Services,Revenue
Walsall Council,http://opendatacommunities.org/id/metropolitan-district-council/walsall,WC69-344,30/06/2016,Change and Governance,B E FURNITURE LTD T/A B E EVENTHIRE,29/06/2016,"3,793.95",60009-LEASING/HIRE/RENTAL-EQUIPMENT,ELECTORAL ADMINISTRATION,Supplies & Services,Revenue
Walsall Council,http://opendatacommunities.org/id/metropolitan-district-council/walsall,WC69-345,30/06/2016,Childrens,REDACTED,20/06/2016,"1,022.17",62515-MISCELLANEOUS SUPPLIES,INTERNAL FOSTER CARE PROVISION,Supplies & Services,Revenue
Walsall Council,http://opendatacommunities.org/id/metropolitan-district-council/walsall,WC69-346,30/06/2016,Childrens,REDACTED,20/06/2016,"1,725.08",74006-HOLIDAY/CHRISTMAS ALLOWANCE-FOSTER CARERS-OTH AGENCY PROVISION,INTERNAL FOSTER CARE PROVISION,Third Party Payments,Revenue
Walsall Council,http://opendatacommunities.org/id/metropolitan-district-council/walsall,WC69-347,30/06/2016,Childrens,REDACTED,08/06/2016,464.00,76000-TRANSFER PAYMENTS - SOCIAL SERVICES CLIENTS,TRANSITION AND LEAVING CARE,Transfer Payments,Revenue
Walsall Council,http://opendatacommunities.org/id/metropolitan-district-council/walsall,WC69-348,30/06/2016,Childrens,REDACTED,22/06/2016,464.00,76000-TRANSFER PAYMENTS - SOCIAL SERVICES CLIENTS,TRANSITION AND LEAVING CARE,Transfer Payments,Revenue
Walsall Council,http://opendatacommunities.org/id/metropolitan-district-council/walsall,WC69-349,30/06/2016,Childrens,REDACTED,20/06/2016,906.76,62515-MISCELLANEOUS SUPPLIES,INTERNAL FOSTER CARE PROVISION,Supplies & Services,Revenue
Walsall Council,http://opendatacommunities.org/id/metropolitan-district-council/walsall,WC69-350,30/06/2016,Childrens,REDACTED,20/06/2016,985.76,74006-HOLIDAY/CHRISTMAS ALLOWANCE-FOSTER CARERS-OTH AGENCY PROVISION,INTERNAL FOSTER CARE PROVISION,Third Party Payments,Revenue
Walsall Council,http://opendatacommunities.org/id/metropolitan-district-council/walsall,WC69-351,30/06/2016,Childrens,BACHES SOLICITORS,17/06/2016,248.00,63000-PROFESSIONAL FEES AND SERVICES,SAFEGUARDING & FAMILY SUPPORT,Supplies & Services,Revenue
Walsall Council,http://opendatacommunities.org/id/metropolitan-district-council/walsall,WC69-352,30/06/2016,Childrens,BACHES SOLICITORS,27/06/2016,873.34,63109-EXTERNAL SOLICITORS-SERVICES-FEES,LOOKED AFTER CHILDRENS SOCIAL WORK TEAM,Supplies & Services,Revenue
Walsall Council,http://opendatacommunities.org/id/metropolitan-district-council/walsall,WC69-353,30/06/2016,Social Care & Inclusion,REDACTED,13/06/2016,600.00,76422-DIRECT PAYMENTS TO SOCIAL SERVICES CLIENTS,MH COMMISSIONING,Transfer Payments,Revenue
Walsall Council,http://opendatacommunities.org/id/metropolitan-district-council/walsall,WC69-354,30/06/2016,Social Care & Inclusion,REDACTED,13/06/2016,"3,562.40",76422-DIRECT PAYMENTS TO SOCIAL SERVICES CLIENTS,LD COMMISSIONING,Transfer Payments,Revenue
Walsall Council,http://opendatacommunities.org/id/metropolitan-district-council/walsall,WC69-355,30/06/2016,Social Care & Inclusion,REDACTED,13/06/2016,"1,000.00",76422-DIRECT PAYMENTS TO SOCIAL SERVICES CLIENTS,OP COMMISSIONING,Transfer Payments,Revenue
Walsall Council,http://opendatacommunities.org/id/metropolitan-district-council/walsall,WC69-356,30/06/2016,Social Care & Inclusion,REDACTED,13/06/2016,"1,308.13",76422-DIRECT PAYMENTS TO SOCIAL SERVICES CLIENTS,OP COMMISSIONING,Transfer Payments,Revenue
Walsall Council,http://opendatacommunities.org/id/metropolitan-district-council/walsall,WC69-357,30/06/2016,Social Care & Inclusion,REDACTED,13/06/2016,"1,978.58",76422-DIRECT PAYMENTS TO SOCIAL SERVICES CLIENTS,YADS COMMISSIONING,Transfer Payments,Revenue
Walsall Council,http://opendatacommunities.org/id/metropolitan-district-council/walsall,WC69-358,30/06/2016,Social Care & Inclusion,REDACTED,13/06/2016,"1,920.10",76422-DIRECT PAYMENTS TO SOCIAL SERVICES CLIENTS,YADS COMMISSIONING,Transfer Payments,Revenue
Walsall Council,http://opendatacommunities.org/id/metropolitan-district-council/walsall,WC69-359,30/06/2016,Social Care & Inclusion,REDACTED,13/06/2016,790.65,76422-DIRECT PAYMENTS TO SOCIAL SERVICES CLIENTS,OP COMMISSIONING,Transfer Payments,Revenue
Walsall Council,http://opendatacommunities.org/id/metropolitan-district-council/walsall,WC69-360,30/06/2016,Childrens,BARNARDOS SERVICES LTD,27/06/2016,"1,926.00",74037-INDEPENDENT FOSTER CARE-OTH AGENCY PROVISION,EXTERNAL FOSTER CARE PROVISION,Third Party Payments,Revenue
Walsall Council,http://opendatacommunities.org/id/metropolitan-district-council/walsall,WC69-361,30/06/2016,Childrens,BARNARDOS SERVICES LTD,27/06/2016,"1,926.00",74037-INDEPENDENT FOSTER CARE-OTH AGENCY PROVISION,EXTERNAL FOSTER CARE PROVISION,Third Party Payments,Revenue
Walsall Council,http://opendatacommunities.org/id/metropolitan-district-council/walsall,WC69-362,30/06/2016,Childrens,BARNARDOS SERVICES LTD,23/06/2016,"3,078.00",74037-INDEPENDENT FOSTER CARE-OTH AGENCY PROVISION,EXTERNAL FOSTER CARE PROVISION,Third Party Payments,Revenue
Walsall Council,http://opendatacommunities.org/id/metropolitan-district-council/walsall,WC69-363,30/06/2016,Childrens,BARNARDOS SERVICES LTD,08/06/2016,"3,091.20",74037-INDEPENDENT FOSTER CARE-OTH AGENCY PROVISION,EXTERNAL FOSTER CARE PROVISION,Third Party Payments,Revenue
Walsall Council,http://opendatacommunities.org/id/metropolitan-district-council/walsall,WC69-364,30/06/2016,Childrens,BARNARDOS SERVICES LTD,08/06/2016,"3,180.60",74037-INDEPENDENT FOSTER CARE-OTH AGENCY PROVISION,EXTERNAL FOSTER CARE PROVISION,Third Party Payments,Revenue
Walsall Council,http://opendatacommunities.org/id/metropolitan-district-council/walsall,WC69-365,30/06/2016,Childrens,BARNARDOS SERVICES LTD,08/06/2016,"3,210.00",74037-INDEPENDENT FOSTER CARE-OTH AGENCY PROVISION,EXTERNAL FOSTER CARE PROVISION,Third Party Payments,Revenue
Walsall Council,http://opendatacommunities.org/id/metropolitan-district-council/walsall,WC69-366,30/06/2016,Childrens,BARNARDOS SERVICES LTD,23/06/2016,"3,210.00",74037-INDEPENDENT FOSTER CARE-OTH AGENCY PROVISION,EXTERNAL FOSTER CARE PROVISION,Third Party Payments,Revenue
Walsall Council,http://opendatacommunities.org/id/metropolitan-district-council/walsall,WC69-367,30/06/2016,Childrens,BARNARDOS SERVICES LTD,08/06/2016,"3,317.00",74037-INDEPENDENT FOSTER CARE-OTH AGENCY PROVISION,EXTERNAL FOSTER CARE PROVISION,Third Party Payments,Revenue
Walsall Council,http://opendatacommunities.org/id/metropolitan-district-council/walsall,WC69-368,30/06/2016,Childrens,BARNARDOS SERVICES LTD,03/06/2016,"4,884.00",63000-PROFESSIONAL FEES AND SERVICES,DIRECTLY COMMISSIONED NURSING SERVICES,Supplies & Services,Revenue
Walsall Council,http://opendatacommunities.org/id/metropolitan-district-council/walsall,WC69-369,30/06/2016,Economy & Environment,BAT FABRICATIONS LTD,06/06/2016,360.00,60006-NEW-FURNITURE & EQUIPMENT,INFRASTRUCTURE MAINTENANCE,Supplies & Services,Revenue
Walsall Council,http://opendatacommunities.org/id/metropolitan-district-council/walsall,WC69-370,30/06/2016,Economy & Environment,BAT FABRICATIONS LTD,06/06/2016,585.00,60006-NEW-FURNITURE & EQUIPMENT,INFRASTRUCTURE MAINTENANCE,Supplies & Services,Revenue
Walsall Council,http://opendatacommunities.org/id/metropolitan-district-council/walsall,WC69-371,30/06/2016,Economy & Environment,BAT FABRICATIONS LTD,16/06/2016,900.00,60006-NEW-FURNITURE & EQUIPMENT,COMMUNITY LIAISON,Supplies & Services,Revenue
Walsall Council,http://opendatacommunities.org/id/metropolitan-district-council/walsall,WC69-372,30/06/2016,Economy & Environment,BAT FABRICATIONS LTD,06/06/2016,920.00,60006-NEW-FURNITURE & EQUIPMENT,COMMUNITY LIAISON,Supplies & Services,Revenue
Walsall Council,http://opendatacommunities.org/id/metropolitan-district-council/walsall,WC69-373,30/06/2016,Economy & Environment,BAT FABRICATIONS LTD,07/06/2016,"4,130.00",60006-NEW-FURNITURE & EQUIPMENT,COMMUNITY LIAISON,Supplies & Services,Revenue
Walsall Council,http://opendatacommunities.org/id/metropolitan-district-council/walsall,WC69-374,30/06/2016,Change and Governance,BEADEN POWERLEC LIMITED,20/06/2016,330.00,"40000-REPAIRS,ALTERATIONS & MAINTENANCE-PREM",CENTRALISED MAINTENANCE,Premises,Revenue
Walsall Council,http://opendatacommunities.org/id/metropolitan-district-council/walsall,WC69-375,30/06/2016,Childrens,BEADEN POWERLEC LIMITED,20/06/2016,"1,979.00",60006-NEW-FURNITURE & EQUIPMENT,CHILDRENS RESIDENTIAL SVCS,Supplies & Services,Revenue
Walsall Council,http://opendatacommunities.org/id/metropolitan-district-council/walsall,WC69-376,30/06/2016,Childrens,REDACTED,20/06/2016,"1,227.58",62515-MISCELLANEOUS SUPPLIES,INTERNAL FOSTER CARE PROVISION,Supplies & Services,Revenue
Walsall Council,http://opendatacommunities.org/id/metropolitan-district-council/walsall,WC69-377,30/06/2016,Childrens,REDACTED,20/06/2016,"1,301.84",74006-HOLIDAY/CHRISTMAS ALLOWANCE-FOSTER CARERS-OTH AGENCY PROVISION,INTERNAL FOSTER CARE PROVISION,Third Party Payments,Revenue
Walsall Council,http://opendatacommunities.org/id/metropolitan-district-council/walsall,WC69-378,30/06/2016,Social Care & Inclusion,BEARWOOD NURSING HOME LTD,28/06/2016,"1,527.60",73373-RESIDENTIAL & NURSING CARE PLACEMENTS,OP COMMISSIONING,Third Party Payments,Revenue
Walsall Council,http://opendatacommunities.org/id/metropolitan-district-council/walsall,WC69-379,30/06/2016,Social Care & Inclusion,REDACTED,13/06/2016,802.20,76422-DIRECT PAYMENTS TO SOCIAL SERVICES CLIENTS,OP COMMISSIONING,Transfer Payments,Revenue
Walsall Council,http://opendatacommunities.org/id/metropolitan-district-council/walsall,WC69-380,30/06/2016,Economy & Environment,BEAVER 84 LTD,06/06/2016,609.50,62523-EVENTS,LEISURE - MANAGEMENT AND ADMIN,Supplies & Services,Revenue
Walsall Council,http://opendatacommunities.org/id/metropolitan-district-council/walsall,WC69-381,30/06/2016,Childrens,REDACTED,20/06/2016,510.94,62515-MISCELLANEOUS SUPPLIES,INTERNAL FOSTER CARE PROVISION,Supplies & Services,Revenue
Walsall Council,http://opendatacommunities.org/id/metropolitan-district-council/walsall,WC69-382,30/06/2016,Childrens,REDACTED,20/06/2016,857.16,74006-HOLIDAY/CHRISTMAS ALLOWANCE-FOSTER CARERS-OTH AGENCY PROVISION,INTERNAL FOSTER CARE PROVISION,Third Party Payments,Revenue
Walsall Council,http://opendatacommunities.org/id/metropolitan-district-council/walsall,WC69-383,30/06/2016,Social Care & Inclusion,REDACTED,13/06/2016,"2,756.25",76422-DIRECT PAYMENTS TO SOCIAL SERVICES CLIENTS,LD COMMISSIONING,Transfer Payments,Revenue
Walsall Council,http://opendatacommunities.org/id/metropolitan-district-council/walsall,WC69-384,30/06/2016,Social Care & Inclusion,BENTLEY COURT PRIORY,07/06/2016,"1,853.36",73373-RESIDENTIAL & NURSING CARE PLACEMENTS,OP COMMISSIONING,Third Party Payments,Revenue
Walsall Council,http://opendatacommunities.org/id/metropolitan-district-council/walsall,WC69-385,30/06/2016,Social Care & Inclusion,BENTLEY COURT PRIORY,07/06/2016,"1,917.57",73373-RESIDENTIAL & NURSING CARE PLACEMENTS,OP COMMISSIONING,Third Party Payments,Revenue
Walsall Council,http://opendatacommunities.org/id/metropolitan-district-council/walsall,WC69-386,30/06/2016,Social Care & Inclusion,REDACTED,13/06/2016,"1,140.00",76422-DIRECT PAYMENTS TO SOCIAL SERVICES CLIENTS,OP COMMISSIONING,Transfer Payments,Revenue
Walsall Council,http://opendatacommunities.org/id/metropolitan-district-council/walsall,WC69-387,30/06/2016,Childrens,REDACTED,20/06/2016,523.01,74006-HOLIDAY/CHRISTMAS ALLOWANCE-FOSTER CARERS-OTH AGENCY PROVISION,INTERNAL FOSTER CARE PROVISION,Third Party Payments,Revenue
Walsall Council,http://opendatacommunities.org/id/metropolitan-district-council/walsall,WC69-388,30/06/2016,Childrens,REDACTED,20/06/2016,"1,445.32",62515-MISCELLANEOUS SUPPLIES,INTERNAL FOSTER CARE PROVISION,Supplies & Services,Revenue
Walsall Council,http://opendatacommunities.org/id/metropolitan-district-council/walsall,WC69-389,30/06/2016,Social Care & Inclusion,REDACTED,13/06/2016,"1,210.00",76422-DIRECT PAYMENTS TO SOCIAL SERVICES CLIENTS,OP COMMISSIONING,Transfer Payments,Revenue
Walsall Council,http://opendatacommunities.org/id/metropolitan-district-council/walsall,WC69-390,30/06/2016,Social Care & Inclusion,BESCOT LODGE RESIDENTIAL CARE HOME,22/06/2016,448.18,73373-RESIDENTIAL & NURSING CARE PLACEMENTS,OP COMMISSIONING,Third Party Payments,Revenue
Walsall Council,http://opendatacommunities.org/id/metropolitan-district-council/walsall,WC69-391,30/06/2016,Social Care & Inclusion,BESCOT LODGE RESIDENTIAL CARE HOME,22/06/2016,"1,568.64",73373-RESIDENTIAL & NURSING CARE PLACEMENTS,OP COMMISSIONING,Third Party Payments,Revenue
Walsall Council,http://opendatacommunities.org/id/metropolitan-district-council/walsall,WC69-392,30/06/2016,Social Care & Inclusion,BESCOT LODGE RESIDENTIAL CARE HOME,22/06/2016,"1,624.66",73373-RESIDENTIAL & NURSING CARE PLACEMENTS,OP COMMISSIONING,Third Party Payments,Revenue
Walsall Council,http://opendatacommunities.org/id/metropolitan-district-council/walsall,WC69-393,30/06/2016,Social Care & Inclusion,BESCOT LODGE RESIDENTIAL CARE HOME,22/06/2016,"1,624.66",73373-RESIDENTIAL & NURSING CARE PLACEMENTS,OP COMMISSIONING,Third Party Payments,Revenue
Walsall Council,http://opendatacommunities.org/id/metropolitan-district-council/walsall,WC69-394,30/06/2016,Social Care & Inclusion,BESCOT LODGE RESIDENTIAL CARE HOME,22/06/2016,"1,680.69",73373-RESIDENTIAL & NURSING CARE PLACEMENTS,OP COMMISSIONING,Third Party Payments,Revenue
Walsall Council,http://opendatacommunities.org/id/metropolitan-district-council/walsall,WC69-395,30/06/2016,Social Care & Inclusion,BESCOT LODGE RESIDENTIAL CARE HOME,22/06/2016,"1,735.71",73373-RESIDENTIAL & NURSING CARE PLACEMENTS,OP COMMISSIONING,Third Party Payments,Revenue
Walsall Council,http://opendatacommunities.org/id/metropolitan-district-council/walsall,WC69-396,30/06/2016,Social Care & Inclusion,BESCOT LODGE RESIDENTIAL CARE HOME,22/06/2016,"1,736.71",73373-RESIDENTIAL & NURSING CARE PLACEMENTS,OP COMMISSIONING,Third Party Payments,Revenue
Walsall Council,http://opendatacommunities.org/id/metropolitan-district-council/walsall,WC69-397,30/06/2016,Social Care & Inclusion,BESCOT LODGE RESIDENTIAL CARE HOME,22/06/2016,"1,736.71",73373-RESIDENTIAL & NURSING CARE PLACEMENTS,OP COMMISSIONING,Third Party Payments,Revenue
Walsall Council,http://opendatacommunities.org/id/metropolitan-district-council/walsall,WC69-398,30/06/2016,Social Care & Inclusion,BESCOT LODGE RESIDENTIAL CARE HOME,22/06/2016,"1,793.57",73373-RESIDENTIAL & NURSING CARE PLACEMENTS,OP COMMISSIONING,Third Party Payments,Revenue
Walsall Council,http://opendatacommunities.org/id/metropolitan-district-council/walsall,WC69-399,30/06/2016,Social Care & Inclusion,BESCOT LODGE RESIDENTIAL CARE HOME,22/06/2016,"1,929.38",73373-RESIDENTIAL & NURSING CARE PLACEMENTS,OP COMMISSIONING,Third Party Payments,Revenue
Walsall Council,http://opendatacommunities.org/id/metropolitan-district-council/walsall,WC69-400,30/06/2016,Social Care & Inclusion,BESCOT LODGE RESIDENTIAL CARE HOME,22/06/2016,"1,929.38",73373-RESIDENTIAL & NURSING CARE PLACEMENTS,OP COMMISSIONING,Third Party Payments,Revenue
Walsall Council,http://opendatacommunities.org/id/metropolitan-district-council/walsall,WC69-401,30/06/2016,Social Care & Inclusion,BESCOT LODGE RESIDENTIAL CARE HOME,22/06/2016,"1,929.39",73373-RESIDENTIAL & NURSING CARE PLACEMENTS,OP COMMISSIONING,Third Party Payments,Revenue
Walsall Council,http://opendatacommunities.org/id/metropolitan-district-council/walsall,WC69-402,30/06/2016,Social Care & Inclusion,BESCOT LODGE RESIDENTIAL CARE HOME,22/06/2016,"2,222.70",73373-RESIDENTIAL & NURSING CARE PLACEMENTS,OP COMMISSIONING,Third Party Payments,Revenue
Walsall Council,http://opendatacommunities.org/id/metropolitan-district-council/walsall,WC69-403,30/06/2016,Social Care & Inclusion,BESCOT LODGE RESIDENTIAL CARE HOME,22/06/2016,"2,240.75",73373-RESIDENTIAL & NURSING CARE PLACEMENTS,OP COMMISSIONING,Third Party Payments,Revenue
Walsall Council,http://opendatacommunities.org/id/metropolitan-district-council/walsall,WC69-404,30/06/2016,Social Care & Inclusion,BESCOT LODGE RESIDENTIAL CARE HOME,22/06/2016,"2,240.75",73373-RESIDENTIAL & NURSING CARE PLACEMENTS,OP COMMISSIONING,Third Party Payments,Revenue
Walsall Council,http://opendatacommunities.org/id/metropolitan-district-council/walsall,WC69-405,30/06/2016,Economy & Environment,BESCOT STADIUM SUNDAY MARKET LTD,13/06/2016,"2,800.00",73025-PROFESSIONAL SERVICES-PRIV CONTRACTOR & OTHER AGENCIES,WILLENHALL MARKET,Third Party Payments,Revenue
Walsall Council,http://opendatacommunities.org/id/metropolitan-district-council/walsall,WC69-406,30/06/2016,Social Care & Inclusion,REDACTED,13/06/2016,"1,186.90",76422-DIRECT PAYMENTS TO SOCIAL SERVICES CLIENTS,MH COMMISSIONING,Transfer Payments,Revenue
Walsall Council,http://opendatacommunities.org/id/metropolitan-district-council/walsall,WC69-407,30/06/2016,Social Care & Inclusion,REDACTED,13/06/2016,"3,852.25",76422-DIRECT PAYMENTS TO SOCIAL SERVICES CLIENTS,OP COMMISSIONING,Transfer Payments,Revenue
Walsall Council,http://opendatacommunities.org/id/metropolitan-district-council/walsall,WC69-408,30/06/2016,Economy & Environment,BIBLIOGRAPHIC DATA SERVICES LTD,03/06/2016,"2,790.00",63000-PROFESSIONAL FEES AND SERVICES,NETWORK SUPPORT,Supplies & Services,Revenue
Walsall Council,http://opendatacommunities.org/id/metropolitan-district-council/walsall,WC69-409,30/06/2016,Childrens,REDACTED,13/06/2016,609.65,76422-DIRECT PAYMENTS TO SOCIAL SERVICES CLIENTS,FAMILY SUPPORT - DIRECT PAYMENTS,Transfer Payments,Revenue
Walsall Council,http://opendatacommunities.org/id/metropolitan-district-council/walsall,WC69-410,30/06/2016,Childrens,REDACTED,13/06/2016,671.50,76422-DIRECT PAYMENTS TO SOCIAL SERVICES CLIENTS,FAMILY SUPPORT - DIRECT PAYMENTS,Transfer Payments,Revenue
Walsall Council,http://opendatacommunities.org/id/metropolitan-district-council/walsall,WC69-411,30/06/2016,Change and Governance,BIRMINGHAM CITY COUNCIL,15/06/2016,"11,227.84",63000-PROFESSIONAL FEES AND SERVICES,CORPORATE EXPENSES,Supplies & Services,Revenue
Walsall Council,http://opendatacommunities.org/id/metropolitan-district-council/walsall,WC69-412,30/06/2016,Economy & Environment,BIRMINGHAM WOMENS NHS FOUNDATION TRUST,03/06/2016,900.00,74000-OTHER AGENCY FEES,CORONERS SERVICE,Third Party Payments,Revenue
Walsall Council,http://opendatacommunities.org/id/metropolitan-district-council/walsall,WC69-413,30/06/2016,Economy & Environment,BIRMINGHAM WOMENS NHS FOUNDATION TRUST,22/06/2016,900.00,74000-OTHER AGENCY FEES,CORONERS SERVICE,Third Party Payments,Revenue
Walsall Council,http://opendatacommunities.org/id/metropolitan-district-council/walsall,WC69-414,30/06/2016,Social Care & Inclusion,BLACK COUNTRY PARTNERSHIP NHS,15/06/2016,"16,704.00",73375-IN PATIENT BEDS,LD COMMISSIONING,Third Party Payments,Revenue
Walsall Council,http://opendatacommunities.org/id/metropolitan-district-council/walsall,WC69-415,30/06/2016,Social Care & Inclusion,BLACK COUNTRY PARTNERSHIP NHS,17/06/2016,"17,280.00",73375-IN PATIENT BEDS,LD COMMISSIONING,Third Party Payments,Revenue
Walsall Council,http://opendatacommunities.org/id/metropolitan-district-council/walsall,WC69-416,30/06/2016,Social Care & Inclusion,BLACK COUNTRY PARTNERSHIP NHS,16/06/2016,"17,856.00",73375-IN PATIENT BEDS,LD COMMISSIONING,Third Party Payments,Revenue
Walsall Council,http://opendatacommunities.org/id/metropolitan-district-council/walsall,WC69-417,30/06/2016,Social Care & Inclusion,BLACK COUNTRY PARTNERSHIP NHS,17/06/2016,"18,000.00",73375-IN PATIENT BEDS,LD COMMISSIONING,Third Party Payments,Revenue
Walsall Council,http://opendatacommunities.org/id/metropolitan-district-council/walsall,WC69-418,30/06/2016,Social Care & Inclusion,BLACK COUNTRY PARTNERSHIP NHS,16/06/2016,"18,600.00",73375-IN PATIENT BEDS,LD COMMISSIONING,Third Party Payments,Revenue
Walsall Council,http://opendatacommunities.org/id/metropolitan-district-council/walsall,WC69-419,30/06/2016,Social Care & Inclusion,BLACK COUNTRY PARTNERSHIP NHS,28/06/2016,"148,341.64",71007-CONTRIBUTION TO PCT,BCPFT,Third Party Payments,Revenue
Walsall Council,http://opendatacommunities.org/id/metropolitan-district-council/walsall,WC69-420,30/06/2016,Childrens,BLAKENALL HEATH JMI SCHOOL,01/06/2016,"91,561.92",77300-ISB-FORMULA ALLOCATION,BLAKENALL HEATH JUNIOR SCHOOL,Transfer Payments,Revenue
Walsall Council,http://opendatacommunities.org/id/metropolitan-district-council/walsall,WC69-421,30/06/2016,Social Care & Inclusion,BLOXWICH COMMUNITY PARTNERSHIP.,20/06/2016,294.00,73374-SUPPORTED & OTHER ACCOMMODATION,MH COMMISSIONING,Third Party Payments,Revenue
Walsall Council,http://opendatacommunities.org/id/metropolitan-district-council/walsall,WC69-422,30/06/2016,Social Care & Inclusion,BLOXWICH COMMUNITY PARTNERSHIP.,20/06/2016,336.00,73374-SUPPORTED & OTHER ACCOMMODATION,MH COMMISSIONING,Third Party Payments,Revenue
Walsall Council,http://opendatacommunities.org/id/metropolitan-district-council/walsall,WC69-423,30/06/2016,Social Care & Inclusion,BLOXWICH COMMUNITY PARTNERSHIP.,27/06/2016,378.00,73372-DOMICILIARY CARE,OP COMMISSIONING,Third Party Payments,Revenue
Walsall Council,http://opendatacommunities.org/id/metropolitan-district-council/walsall,WC69-424,30/06/2016,Change and Governance,BLOXWICH UNITED AFC,01/06/2016,500.00,63128-HIRE OF ROOM-SERVICES-FEES,ELECTORAL ADMINISTRATION,Supplies & Services,Revenue
Walsall Council,http://opendatacommunities.org/id/metropolitan-district-council/walsall,WC69-425,30/06/2016,Childrens,BLUE GIRAFFE CHILDCARE,28/06/2016,888.68,63000-PROFESSIONAL FEES AND SERVICES,SAFEGUARDING & FAMILY SUPPORT,Supplies & Services,Revenue
Walsall Council,http://opendatacommunities.org/id/metropolitan-district-council/walsall,WC69-426,30/06/2016,Economy & Environment,BME UNITED LTD,21/06/2016,"3,990.00",63000-PROFESSIONAL FEES AND SERVICES,SMOKING CESSATION,Supplies & Services,Revenue
Walsall Council,http://opendatacommunities.org/id/metropolitan-district-council/walsall,WC69-427,30/06/2016,Economy & Environment,BME UNITED LTD,22/06/2016,"5,306.00",63000-PROFESSIONAL FEES AND SERVICES,SMOKING CESSATION,Supplies & Services,Revenue
Walsall Council,http://opendatacommunities.org/id/metropolitan-district-council/walsall,WC69-428,30/06/2016,Economy & Environment,BME UNITED LTD,01/06/2016,"8,345.00",63000-PROFESSIONAL FEES AND SERVICES,SMOKING CESSATION,Supplies & Services,Revenue
Walsall Council,http://opendatacommunities.org/id/metropolitan-district-council/walsall,WC69-429,30/06/2016,Economy & Environment,BOC LTD,23/06/2016,-530.75,73025-PROFESSIONAL SERVICES-PRIV CONTRACTOR & OTHER AGENCIES,FLEET,Third Party Payments,Revenue
Walsall Council,http://opendatacommunities.org/id/metropolitan-district-council/walsall,WC69-430,30/06/2016,Economy & Environment,BOC LTD,23/06/2016,215.09,60514-MATERIALS TO STORES,FLEET PARTS STOCK ACCOUNT,Supplies & Services,Revenue
Walsall Council,http://opendatacommunities.org/id/metropolitan-district-council/walsall,WC69-431,30/06/2016,Economy & Environment,BOC LTD,23/06/2016,651.95,73025-PROFESSIONAL SERVICES-PRIV CONTRACTOR & OTHER AGENCIES,FLEET,Third Party Payments,Revenue
Walsall Council,http://opendatacommunities.org/id/metropolitan-district-council/walsall,WC69-432,30/06/2016,Social Care & Inclusion,BOLDMERE COURT CARE HOME,22/06/2016,"1,636.71",73373-RESIDENTIAL & NURSING CARE PLACEMENTS,OP COMMISSIONING,Third Party Payments,Revenue
Walsall Council,http://opendatacommunities.org/id/metropolitan-district-council/walsall,WC69-433,30/06/2016,Social Care & Inclusion,BOLDMERE COURT CARE HOME,22/06/2016,"3,327.98",73373-RESIDENTIAL & NURSING CARE PLACEMENTS,OP COMMISSIONING,Third Party Payments,Revenue
Walsall Council,http://opendatacommunities.org/id/metropolitan-district-council/walsall,WC69-434,30/06/2016,Social Care & Inclusion,BOLDMERE COURT CARE HOME,22/06/2016,"6,214.29",73373-RESIDENTIAL & NURSING CARE PLACEMENTS,MH COMMISSIONING,Third Party Payments,Revenue
Walsall Council,http://opendatacommunities.org/id/metropolitan-district-council/walsall,WC69-435,30/06/2016,Economy & Environment,BOOKS ASIA,17/06/2016,254.73,60501-LIBRARY BOOKS,LIBRARY STOCK AND PERFORMANCE,Supplies & Services,Revenue
Walsall Council,http://opendatacommunities.org/id/metropolitan-district-council/walsall,WC69-436,30/06/2016,Economy & Environment,BORN TO PERFORM,23/06/2016,300.00,62523-EVENTS,BLOXWICH DISTRICT CENTRE,Supplies & Services,Revenue
Walsall Council,http://opendatacommunities.org/id/metropolitan-district-council/walsall,WC69-437,30/06/2016,Economy & Environment,BORN TO PERFORM,16/06/2016,465.00,62523-EVENTS,WALSALL TOWN CENTRE,Supplies & Services,Revenue
Walsall Council,http://opendatacommunities.org/id/metropolitan-district-council/walsall,WC69-438,30/06/2016,Childrens,BOULTON TRAVEL LIMITED,03/06/2016,"2,147.00",52000-WITH DRIVER-HIRE OF VEHICLES,SCHOOL TRANSPORT,Transport,Revenue
Walsall Council,http://opendatacommunities.org/id/metropolitan-district-council/walsall,WC69-439,30/06/2016,Childrens,BOULTON TRAVEL LIMITED,03/06/2016,"2,196.00",52000-WITH DRIVER-HIRE OF VEHICLES,SCHOOL TRANSPORT,Transport,Revenue
Walsall Council,http://opendatacommunities.org/id/metropolitan-district-council/walsall,WC69-440,30/06/2016,Change and Governance,BOURNEMOUTH CONVENTION BUREAU LTD,02/06/2016,353.98,34329-HOTEL ACCOMMODATION-EMPLOYEES,CORPORATE MANAGEMENT TEAM,Employees,Revenue
Walsall Council,http://opendatacommunities.org/id/metropolitan-district-council/walsall,WC69-441,30/06/2016,Economy & Environment,BRADVALE LTD T/A INSPIRE HEALTHCARE SERVICES,06/06/2016,247.80,60500-GENERAL MATERIALS,ARBORETUM VISITOR CENTRE,Supplies & Services,Revenue
Walsall Council,http://opendatacommunities.org/id/metropolitan-district-council/walsall,WC69-442,30/06/2016,Economy & Environment,BRADVALE LTD T/A INSPIRE HEALTHCARE SERVICES,15/06/2016,288.88,60008-MAINTENANCE-FURNITURE & EQUIPMENT,WALSALL GALA CENTRE,Supplies & Services,Revenue
Walsall Council,http://opendatacommunities.org/id/metropolitan-district-council/walsall,WC69-443,30/06/2016,Economy & Environment,BRADVALE LTD T/A INSPIRE HEALTHCARE SERVICES,06/06/2016,324.87,60500-GENERAL MATERIALS,ARBORETUM VISITOR CENTRE,Supplies & Services,Revenue
Walsall Council,http://opendatacommunities.org/id/metropolitan-district-council/walsall,WC69-444,30/06/2016,Economy & Environment,BRADVALE LTD T/A INSPIRE HEALTHCARE SERVICES,13/06/2016,555.51,60500-GENERAL MATERIALS,ARBORETUM VISITOR CENTRE,Supplies & Services,Revenue
Walsall Council,http://opendatacommunities.org/id/metropolitan-district-council/walsall,WC69-445,30/06/2016,Economy & Environment,BRADVALE LTD T/A INSPIRE HEALTHCARE SERVICES,29/06/2016,555.51,60500-GENERAL MATERIALS,ARBORETUM VISITOR CENTRE,Supplies & Services,Revenue
Walsall Council,http://opendatacommunities.org/id/metropolitan-district-council/walsall,WC69-446,30/06/2016,Economy & Environment,BRELMAYNE LTD,06/06/2016,281.90,60008-MAINTENANCE-FURNITURE & EQUIPMENT,LEATHER MUSEUM,Supplies & Services,Revenue
Walsall Council,http://opendatacommunities.org/id/metropolitan-district-council/walsall,WC69-447,30/06/2016,Social Care & Inclusion,REDACTED,13/06/2016,550.00,76422-DIRECT PAYMENTS TO SOCIAL SERVICES CLIENTS,LD COMMISSIONING,Transfer Payments,Revenue
Walsall Council,http://opendatacommunities.org/id/metropolitan-district-council/walsall,WC69-448,30/06/2016,Childrens,REDACTED,20/06/2016,"1,445.32",62515-MISCELLANEOUS SUPPLIES,INTERNAL FOSTER CARE PROVISION,Supplies & Services,Revenue
Walsall Council,http://opendatacommunities.org/id/metropolitan-district-council/walsall,WC69-449,30/06/2016,Childrens,REDACTED,20/06/2016,"2,155.34",74006-HOLIDAY/CHRISTMAS ALLOWANCE-FOSTER CARERS-OTH AGENCY PROVISION,INTERNAL FOSTER CARE PROVISION,Third Party Payments,Revenue
Walsall Council,http://opendatacommunities.org/id/metropolitan-district-council/walsall,WC69-450,30/06/2016,Social Care & Inclusion,REDACTED,10/06/2016,"1,337.64",73374-SUPPORTED & OTHER ACCOMMODATION,LD COMMISSIONING,Third Party Payments,Revenue
Walsall Council,http://opendatacommunities.org/id/metropolitan-district-council/walsall,WC69-451,30/06/2016,Social Care & Inclusion,REDACTED,14/06/2016,"1,597.60",73374-SUPPORTED & OTHER ACCOMMODATION,LD COMMISSIONING,Third Party Payments,Revenue
Walsall Council,http://opendatacommunities.org/id/metropolitan-district-council/walsall,WC69-452,30/06/2016,Social Care & Inclusion,REDACTED,13/06/2016,"1,618.50",76422-DIRECT PAYMENTS TO SOCIAL SERVICES CLIENTS,OP COMMISSIONING,Transfer Payments,Revenue
Walsall Council,http://opendatacommunities.org/id/metropolitan-district-council/walsall,WC69-453,30/06/2016,Social Care & Inclusion,REDACTED,13/06/2016,871.25,76422-DIRECT PAYMENTS TO SOCIAL SERVICES CLIENTS,OP COMMISSIONING,Transfer Payments,Revenue
Walsall Council,http://opendatacommunities.org/id/metropolitan-district-council/walsall,WC69-454,30/06/2016,Social Care & Inclusion,BRIDGEWOOD HEALTH CARE LTD,28/06/2016,"5,513.72",73373-RESIDENTIAL & NURSING CARE PLACEMENTS,YADS COMMISSIONING,Third Party Payments,Revenue
Walsall Council,http://opendatacommunities.org/id/metropolitan-district-council/walsall,WC69-455,30/06/2016,Childrens,BRIGHT HORIZONS (WISHING WILLOW),16/06/2016,"1,099.63",63000-PROFESSIONAL FEES AND SERVICES,SAFEGUARDING & FAMILY SUPPORT,Supplies & Services,Revenue
Walsall Council,http://opendatacommunities.org/id/metropolitan-district-council/walsall,WC69-456,30/06/2016,Change and Governance,BRITISH GAS BUSINESS,13/06/2016,275.47,42000-GAS-ENERGY COSTS,CENTRALISED ENERGY,Premises,Revenue
Walsall Council,http://opendatacommunities.org/id/metropolitan-district-council/walsall,WC69-457,30/06/2016,Childrens,BRITISH GAS BUSINESS,17/06/2016,"5,227.10",42000-GAS-ENERGY COSTS,PELSALL EDC,Premises,Revenue
Walsall Council,http://opendatacommunities.org/id/metropolitan-district-council/walsall,WC69-458,30/06/2016,Change and Governance,BRITISH GAS TRADING LIMITED 002,23/06/2016,97.80,42003-ELECTRICITY-ENERGY COSTS,REDUNDANT BUILDINGS,Premises,Revenue
Walsall Council,http://opendatacommunities.org/id/metropolitan-district-council/walsall,WC69-459,30/06/2016,Change and Governance,BRITISH GAS TRADING LIMITED 002,23/06/2016,436.86,42000-GAS-ENERGY COSTS,REDUNDANT BUILDINGS,Premises,Revenue
Walsall Council,http://opendatacommunities.org/id/metropolitan-district-council/walsall,WC69-460,30/06/2016,Childrens,BROADLAND GROUP LTD,22/06/2016,"16,000.00",01006-SITE WORKS MAIN CONTRACTORS,CFR 1017 BLACKWOOD HEATING & UPGRADE OF GAS SUPPLY,Capital,Capital
Walsall Council,http://opendatacommunities.org/id/metropolitan-district-council/walsall,WC69-461,30/06/2016,Childrens,BROADWAY TRAVEL CONNECTIONS,03/06/2016,"2,375.00",52000-WITH DRIVER-HIRE OF VEHICLES,SCHOOL TRANSPORT,Transport,Revenue
Walsall Council,http://opendatacommunities.org/id/metropolitan-district-council/walsall,WC69-462,30/06/2016,Change and Governance,BROADWAY UNITED REFORMED CHURCH,01/06/2016,400.00,63128-HIRE OF ROOM-SERVICES-FEES,ELECTORAL ADMINISTRATION,Supplies & Services,Revenue
Walsall Council,http://opendatacommunities.org/id/metropolitan-district-council/walsall,WC69-463,30/06/2016,Economy & Environment,BROWNHILLS ASPHALT & TARMAC LIMITED,23/06/2016,696.00,60500-GENERAL MATERIALS,INFRASTRUCTURE MAINTENANCE,Supplies & Services,Revenue
Walsall Council,http://opendatacommunities.org/id/metropolitan-district-council/walsall,WC69-464,30/06/2016,Economy & Environment,BROWNHILLS ASPHALT & TARMAC LIMITED,23/06/2016,"1,150.00",60500-GENERAL MATERIALS,INFRASTRUCTURE MAINTENANCE,Supplies & Services,Revenue
Walsall Council,http://opendatacommunities.org/id/metropolitan-district-council/walsall,WC69-465,30/06/2016,Economy & Environment,BROWNHILLS ASPHALT & TARMAC LIMITED,16/06/2016,"3,196.00","40000-REPAIRS,ALTERATIONS & MAINTENANCE-PREM",INFRASTRUCTURE MAINTENANCE,Premises,Revenue
Walsall Council,http://opendatacommunities.org/id/metropolitan-district-council/walsall,WC69-466,30/06/2016,Change and Governance,BROWNHILLS PARISH CHURCH,01/06/2016,256.00,63128-HIRE OF ROOM-SERVICES-FEES,ELECTORAL ADMINISTRATION,Supplies & Services,Revenue
Walsall Council,http://opendatacommunities.org/id/metropolitan-district-council/walsall,WC69-467,30/06/2016,Social Care & Inclusion,BROWNLANDS NURSING HOME,22/06/2016,"6,265.85",73373-RESIDENTIAL & NURSING CARE PLACEMENTS,OP COMMISSIONING,Third Party Payments,Revenue
Walsall Council,http://opendatacommunities.org/id/metropolitan-district-council/walsall,WC69-468,30/06/2016,Social Care & Inclusion,BROWNLANDS NURSING HOME,22/06/2016,"6,367.83",73373-RESIDENTIAL & NURSING CARE PLACEMENTS,OP COMMISSIONING,Third Party Payments,Revenue
Walsall Council,http://opendatacommunities.org/id/metropolitan-district-council/walsall,WC69-469,30/06/2016,Social Care & Inclusion,BROWNLANDS NURSING HOME,22/06/2016,"9,218.06",73373-RESIDENTIAL & NURSING CARE PLACEMENTS,OP COMMISSIONING,Third Party Payments,Revenue
Walsall Council,http://opendatacommunities.org/id/metropolitan-district-council/walsall,WC69-470,30/06/2016,Social Care & Inclusion,REDACTED,13/06/2016,"1,806.25",76422-DIRECT PAYMENTS TO SOCIAL SERVICES CLIENTS,LD COMMISSIONING,Transfer Payments,Revenue
Walsall Council,http://opendatacommunities.org/id/metropolitan-district-council/walsall,WC69-471,30/06/2016,Change and Governance,REDACTED,02/06/2016,300.00,"40000-REPAIRS,ALTERATIONS & MAINTENANCE-PREM",CENTRALISED MAINTENANCE,Premises,Revenue
Walsall Council,http://opendatacommunities.org/id/metropolitan-district-council/walsall,WC69-472,30/06/2016,Economy & Environment,REDACTED,09/06/2016,600.00,62527-VISUAL ARTS,NAG - TEMPORARY EXHIBITIONS,Supplies & Services,Revenue
Walsall Council,http://opendatacommunities.org/id/metropolitan-district-council/walsall,WC69-473,30/06/2016,Change and Governance,B-SURE SECURITY SERVICES LTD,20/06/2016,594.50,"40000-REPAIRS,ALTERATIONS & MAINTENANCE-PREM",CENTRALISED MAINTENANCE,Premises,Revenue
Walsall Council,http://opendatacommunities.org/id/metropolitan-district-council/walsall,WC69-474,30/06/2016,Change and Governance,BT,15/06/2016,970.00,63603-COST OF CALLS-TELEPHONES,PROCESSING,Supplies & Services,Revenue
Walsall Council,http://opendatacommunities.org/id/metropolitan-district-council/walsall,WC69-475,30/06/2016,Change and Governance,BT,15/06/2016,"9,896.66",63601-COSTS (NOT INTERNAL RECHARGES)-TELEPHONES,CENTRAL COMMUNICATIONS RECHARGES,Supplies & Services,Revenue
Walsall Council,http://opendatacommunities.org/id/metropolitan-district-council/walsall,WC69-476,30/06/2016,Change and Governance,BT,14/06/2016,"15,315.69",63601-COSTS (NOT INTERNAL RECHARGES)-TELEPHONES,CENTRAL COMMUNICATIONS RECHARGES,Supplies & Services,Revenue
Walsall Council,http://opendatacommunities.org/id/metropolitan-district-council/walsall,WC69-477,30/06/2016,Change and Governance,BT PLC,13/06/2016,349.62,63800-COMPUTER EQUIPMENT AND SUPPLIES,RECHARGEABLE EQUIPMENT,Supplies & Services,Revenue
Walsall Council,http://opendatacommunities.org/id/metropolitan-district-council/walsall,WC69-478,30/06/2016,Change and Governance,BT PLC,29/06/2016,349.62,63800-COMPUTER EQUIPMENT AND SUPPLIES,RECHARGEABLE EQUIPMENT,Supplies & Services,Revenue
Walsall Council,http://opendatacommunities.org/id/metropolitan-district-council/walsall,WC69-479,30/06/2016,Change and Governance,BUILDING RECRUITMENT COMPANY,02/06/2016,"1,099.50",73025-PROFESSIONAL SERVICES-PRIV CONTRACTOR & OTHER AGENCIES,INTEGRATED FACILITIES MANAGEMENT,Third Party Payments,Revenue
Walsall Council,http://opendatacommunities.org/id/metropolitan-district-council/walsall,WC69-480,30/06/2016,Change and Governance,BUILDING RECRUITMENT COMPANY,07/06/2016,"1,099.50",73025-PROFESSIONAL SERVICES-PRIV CONTRACTOR & OTHER AGENCIES,INTEGRATED FACILITIES MANAGEMENT,Third Party Payments,Revenue
Walsall Council,http://opendatacommunities.org/id/metropolitan-district-council/walsall,WC69-481,30/06/2016,Change and Governance,BUILDING RECRUITMENT COMPANY,02/06/2016,"1,102.75",73025-PROFESSIONAL SERVICES-PRIV CONTRACTOR & OTHER AGENCIES,INTEGRATED FACILITIES MANAGEMENT,Third Party Payments,Revenue
Walsall Council,http://opendatacommunities.org/id/metropolitan-district-council/walsall,WC69-482,30/06/2016,Change and Governance,BUILDING RECRUITMENT COMPANY,07/06/2016,"1,114.50",73025-PROFESSIONAL SERVICES-PRIV CONTRACTOR & OTHER AGENCIES,INTEGRATED FACILITIES MANAGEMENT,Third Party Payments,Revenue
Walsall Council,http://opendatacommunities.org/id/metropolitan-district-council/walsall,WC69-483,30/06/2016,Change and Governance,BUILDING RECRUITMENT COMPANY,02/06/2016,"1,117.75",73025-PROFESSIONAL SERVICES-PRIV CONTRACTOR & OTHER AGENCIES,INTEGRATED FACILITIES MANAGEMENT,Third Party Payments,Revenue
Walsall Council,http://opendatacommunities.org/id/metropolitan-district-council/walsall,WC69-484,30/06/2016,Change and Governance,BUILDING RECRUITMENT COMPANY,02/06/2016,"1,132.75",73025-PROFESSIONAL SERVICES-PRIV CONTRACTOR & OTHER AGENCIES,INTEGRATED FACILITIES MANAGEMENT,Third Party Payments,Revenue
Walsall Council,http://opendatacommunities.org/id/metropolitan-district-council/walsall,WC69-485,30/06/2016,Change and Governance,BUILDING RECRUITMENT COMPANY,02/06/2016,"1,132.75",73025-PROFESSIONAL SERVICES-PRIV CONTRACTOR & OTHER AGENCIES,INTEGRATED FACILITIES MANAGEMENT,Third Party Payments,Revenue
Walsall Council,http://opendatacommunities.org/id/metropolitan-district-council/walsall,WC69-486,30/06/2016,Change and Governance,BUILDING RECRUITMENT COMPANY,02/06/2016,"1,132.75",73025-PROFESSIONAL SERVICES-PRIV CONTRACTOR & OTHER AGENCIES,INTEGRATED FACILITIES MANAGEMENT,Third Party Payments,Revenue
Walsall Council,http://opendatacommunities.org/id/metropolitan-district-council/walsall,WC69-487,30/06/2016,Change and Governance,BUILDING RECRUITMENT COMPANY,02/06/2016,"1,132.75",73025-PROFESSIONAL SERVICES-PRIV CONTRACTOR & OTHER AGENCIES,INTEGRATED FACILITIES MANAGEMENT,Third Party Payments,Revenue
Walsall Council,http://opendatacommunities.org/id/metropolitan-district-council/walsall,WC69-488,30/06/2016,Change and Governance,BUILDING RECRUITMENT COMPANY,07/06/2016,"1,132.75",73025-PROFESSIONAL SERVICES-PRIV CONTRACTOR & OTHER AGENCIES,INTEGRATED FACILITIES MANAGEMENT,Third Party Payments,Revenue
Walsall Council,http://opendatacommunities.org/id/metropolitan-district-council/walsall,WC69-489,30/06/2016,Change and Governance,BUILDING RECRUITMENT COMPANY,07/06/2016,"1,132.75",73025-PROFESSIONAL SERVICES-PRIV CONTRACTOR & OTHER AGENCIES,INTEGRATED FACILITIES MANAGEMENT,Third Party Payments,Revenue
Walsall Council,http://opendatacommunities.org/id/metropolitan-district-council/walsall,WC69-490,30/06/2016,Social Care & Inclusion,BUPA CARE HOMES (CFHCARE) LTD,28/06/2016,"3,129.80",73373-RESIDENTIAL & NURSING CARE PLACEMENTS,OP COMMISSIONING,Third Party Payments,Revenue
Walsall Council,http://opendatacommunities.org/id/metropolitan-district-council/walsall,WC69-491,30/06/2016,Economy & Environment,BURTON ADDICTION CENTRE,29/06/2016,"1,350.00",63000-PROFESSIONAL FEES AND SERVICES,ALCOHOL & DRUGS MISUSE/TOBACCO CONTROL,Supplies & Services,Revenue
Walsall Council,http://opendatacommunities.org/id/metropolitan-district-council/walsall,WC69-492,30/06/2016,Social Care & Inclusion,BUSH HOME LTD,22/06/2016,385.10,73373-RESIDENTIAL & NURSING CARE PLACEMENTS,OP COMMISSIONING,Third Party Payments,Revenue
Walsall Council,http://opendatacommunities.org/id/metropolitan-district-council/walsall,WC69-493,30/06/2016,Social Care & Inclusion,BUSH HOME LTD,14/06/2016,429.52,73373-RESIDENTIAL & NURSING CARE PLACEMENTS,OP COMMISSIONING,Third Party Payments,Revenue
Walsall Council,http://opendatacommunities.org/id/metropolitan-district-council/walsall,WC69-494,30/06/2016,Social Care & Inclusion,BUSH HOME LTD,14/06/2016,429.52,73373-RESIDENTIAL & NURSING CARE PLACEMENTS,OP COMMISSIONING,Third Party Payments,Revenue
Walsall Council,http://opendatacommunities.org/id/metropolitan-district-council/walsall,WC69-495,30/06/2016,Social Care & Inclusion,BUSH HOME LTD,14/06/2016,429.52,73373-RESIDENTIAL & NURSING CARE PLACEMENTS,OP COMMISSIONING,Third Party Payments,Revenue
Walsall Council,http://opendatacommunities.org/id/metropolitan-district-council/walsall,WC69-496,30/06/2016,Social Care & Inclusion,BUSH HOME LTD,14/06/2016,429.52,73373-RESIDENTIAL & NURSING CARE PLACEMENTS,OP COMMISSIONING,Third Party Payments,Revenue
Walsall Council,http://opendatacommunities.org/id/metropolitan-district-council/walsall,WC69-497,30/06/2016,Social Care & Inclusion,BUSH HOME LTD,14/06/2016,429.52,73373-RESIDENTIAL & NURSING CARE PLACEMENTS,OP COMMISSIONING,Third Party Payments,Revenue
Walsall Council,http://opendatacommunities.org/id/metropolitan-district-council/walsall,WC69-498,30/06/2016,Social Care & Inclusion,BUSH HOME LTD,14/06/2016,429.52,73373-RESIDENTIAL & NURSING CARE PLACEMENTS,OP COMMISSIONING,Third Party Payments,Revenue
Walsall Council,http://opendatacommunities.org/id/metropolitan-district-council/walsall,WC69-499,30/06/2016,Social Care & Inclusion,BUSH HOME LTD,14/06/2016,429.52,73373-RESIDENTIAL & NURSING CARE PLACEMENTS,OP COMMISSIONING,Third Party Payments,Revenue
Walsall Council,http://opendatacommunities.org/id/metropolitan-district-council/walsall,WC69-500,30/06/2016,Social Care & Inclusion,BUSH HOME LTD,14/06/2016,429.52,73373-RESIDENTIAL & NURSING CARE PLACEMENTS,MH COMMISSIONING,Third Party Payments,Revenue
Walsall Council,http://opendatacommunities.org/id/metropolitan-district-council/walsall,WC69-501,30/06/2016,Social Care & Inclusion,BUSH HOME LTD,14/06/2016,429.52,73373-RESIDENTIAL & NURSING CARE PLACEMENTS,OP COMMISSIONING,Third Party Payments,Revenue
Walsall Council,http://opendatacommunities.org/id/metropolitan-district-council/walsall,WC69-502,30/06/2016,Social Care & Inclusion,BUSH HOME LTD,22/06/2016,429.66,73373-RESIDENTIAL & NURSING CARE PLACEMENTS,MH COMMISSIONING,Third Party Payments,Revenue
Walsall Council,http://opendatacommunities.org/id/metropolitan-district-council/walsall,WC69-503,30/06/2016,Social Care & Inclusion,BUSH HOME LTD,14/06/2016,430.35,73373-RESIDENTIAL & NURSING CARE PLACEMENTS,OP COMMISSIONING,Third Party Payments,Revenue
Walsall Council,http://opendatacommunities.org/id/metropolitan-district-council/walsall,WC69-504,30/06/2016,Social Care & Inclusion,BUSH HOME LTD,14/06/2016,"1,620.00",73373-RESIDENTIAL & NURSING CARE PLACEMENTS,OP COMMISSIONING,Third Party Payments,Revenue
Walsall Council,http://opendatacommunities.org/id/metropolitan-district-council/walsall,WC69-505,30/06/2016,Social Care & Inclusion,BUSH HOME LTD,14/06/2016,"1,620.00",73373-RESIDENTIAL & NURSING CARE PLACEMENTS,OP COMMISSIONING,Third Party Payments,Revenue
Walsall Council,http://opendatacommunities.org/id/metropolitan-district-council/walsall,WC69-506,30/06/2016,Social Care & Inclusion,BUSH HOME LTD,14/06/2016,"1,620.00",73373-RESIDENTIAL & NURSING CARE PLACEMENTS,OP COMMISSIONING,Third Party Payments,Revenue
Walsall Council,http://opendatacommunities.org/id/metropolitan-district-council/walsall,WC69-507,30/06/2016,Social Care & Inclusion,BUSH HOME LTD,14/06/2016,"1,620.00",73373-RESIDENTIAL & NURSING CARE PLACEMENTS,OP COMMISSIONING,Third Party Payments,Revenue
Walsall Council,http://opendatacommunities.org/id/metropolitan-district-council/walsall,WC69-508,30/06/2016,Social Care & Inclusion,BUSH HOME LTD,14/06/2016,"1,620.00",73373-RESIDENTIAL & NURSING CARE PLACEMENTS,OP COMMISSIONING,Third Party Payments,Revenue
Walsall Council,http://opendatacommunities.org/id/metropolitan-district-council/walsall,WC69-509,30/06/2016,Social Care & Inclusion,BUSH HOME LTD,14/06/2016,"1,620.00",73373-RESIDENTIAL & NURSING CARE PLACEMENTS,OP COMMISSIONING,Third Party Payments,Revenue
Walsall Council,http://opendatacommunities.org/id/metropolitan-district-council/walsall,WC69-510,30/06/2016,Social Care & Inclusion,BUSH HOME LTD,28/06/2016,"1,620.00",73373-RESIDENTIAL & NURSING CARE PLACEMENTS,OP COMMISSIONING,Third Party Payments,Revenue
Walsall Council,http://opendatacommunities.org/id/metropolitan-district-council/walsall,WC69-511,30/06/2016,Social Care & Inclusion,BUSH HOME LTD,28/06/2016,"1,620.00",73373-RESIDENTIAL & NURSING CARE PLACEMENTS,OP COMMISSIONING,Third Party Payments,Revenue
Walsall Council,http://opendatacommunities.org/id/metropolitan-district-council/walsall,WC69-512,30/06/2016,Social Care & Inclusion,BUSH HOME LTD,28/06/2016,"1,620.00",73373-RESIDENTIAL & NURSING CARE PLACEMENTS,OP COMMISSIONING,Third Party Payments,Revenue
Walsall Council,http://opendatacommunities.org/id/metropolitan-district-council/walsall,WC69-513,30/06/2016,Social Care & Inclusion,BUSH HOME LTD,28/06/2016,"1,620.00",73373-RESIDENTIAL & NURSING CARE PLACEMENTS,OP COMMISSIONING,Third Party Payments,Revenue
Walsall Council,http://opendatacommunities.org/id/metropolitan-district-council/walsall,WC69-514,30/06/2016,Social Care & Inclusion,BUSH HOME LTD,28/06/2016,"1,620.00",73373-RESIDENTIAL & NURSING CARE PLACEMENTS,OP COMMISSIONING,Third Party Payments,Revenue
Walsall Council,http://opendatacommunities.org/id/metropolitan-district-council/walsall,WC69-515,30/06/2016,Social Care & Inclusion,BUSH HOME LTD,14/06/2016,"1,800.00",73373-RESIDENTIAL & NURSING CARE PLACEMENTS,OP COMMISSIONING,Third Party Payments,Revenue
Walsall Council,http://opendatacommunities.org/id/metropolitan-district-council/walsall,WC69-516,30/06/2016,Social Care & Inclusion,BUSH HOME LTD,14/06/2016,"1,800.00",73373-RESIDENTIAL & NURSING CARE PLACEMENTS,OP COMMISSIONING,Third Party Payments,Revenue
Walsall Council,http://opendatacommunities.org/id/metropolitan-district-council/walsall,WC69-517,30/06/2016,Social Care & Inclusion,BUSH HOME LTD,14/06/2016,"1,800.00",73373-RESIDENTIAL & NURSING CARE PLACEMENTS,OP COMMISSIONING,Third Party Payments,Revenue
Walsall Council,http://opendatacommunities.org/id/metropolitan-district-council/walsall,WC69-518,30/06/2016,Social Care & Inclusion,BUSH HOME LTD,14/06/2016,"1,800.00",73373-RESIDENTIAL & NURSING CARE PLACEMENTS,OP COMMISSIONING,Third Party Payments,Revenue
Walsall Council,http://opendatacommunities.org/id/metropolitan-district-council/walsall,WC69-519,30/06/2016,Social Care & Inclusion,BUSH HOME LTD,14/06/2016,"1,800.00",73373-RESIDENTIAL & NURSING CARE PLACEMENTS,OP COMMISSIONING,Third Party Payments,Revenue
Walsall Council,http://opendatacommunities.org/id/metropolitan-district-council/walsall,WC69-520,30/06/2016,Social Care & Inclusion,BUSH HOME LTD,14/06/2016,"1,800.00",73373-RESIDENTIAL & NURSING CARE PLACEMENTS,MH COMMISSIONING,Third Party Payments,Revenue
Walsall Council,http://opendatacommunities.org/id/metropolitan-district-council/walsall,WC69-521,30/06/2016,Social Care & Inclusion,BUSH HOME LTD,14/06/2016,"1,800.00",73373-RESIDENTIAL & NURSING CARE PLACEMENTS,OP COMMISSIONING,Third Party Payments,Revenue
Walsall Council,http://opendatacommunities.org/id/metropolitan-district-council/walsall,WC69-522,30/06/2016,Social Care & Inclusion,BUSH HOME LTD,14/06/2016,"1,800.00",73373-RESIDENTIAL & NURSING CARE PLACEMENTS,OP COMMISSIONING,Third Party Payments,Revenue
Walsall Council,http://opendatacommunities.org/id/metropolitan-district-council/walsall,WC69-523,30/06/2016,Social Care & Inclusion,BUSH HOME LTD,14/06/2016,"1,800.00",73373-RESIDENTIAL & NURSING CARE PLACEMENTS,OP COMMISSIONING,Third Party Payments,Revenue
Walsall Council,http://opendatacommunities.org/id/metropolitan-district-council/walsall,WC69-524,30/06/2016,Social Care & Inclusion,BUSH HOME LTD,14/06/2016,"1,800.00",73373-RESIDENTIAL & NURSING CARE PLACEMENTS,OP COMMISSIONING,Third Party Payments,Revenue
Walsall Council,http://opendatacommunities.org/id/metropolitan-district-council/walsall,WC69-525,30/06/2016,Social Care & Inclusion,BUSH HOME LTD,14/06/2016,"1,800.00",73373-RESIDENTIAL & NURSING CARE PLACEMENTS,MH COMMISSIONING,Third Party Payments,Revenue
Walsall Council,http://opendatacommunities.org/id/metropolitan-district-council/walsall,WC69-526,30/06/2016,Social Care & Inclusion,BUSH HOME LTD,14/06/2016,"1,800.00",73373-RESIDENTIAL & NURSING CARE PLACEMENTS,OP COMMISSIONING,Third Party Payments,Revenue
Walsall Council,http://opendatacommunities.org/id/metropolitan-district-council/walsall,WC69-527,30/06/2016,Social Care & Inclusion,BUSH HOME LTD,14/06/2016,"1,800.00",73373-RESIDENTIAL & NURSING CARE PLACEMENTS,OP COMMISSIONING,Third Party Payments,Revenue
Walsall Council,http://opendatacommunities.org/id/metropolitan-district-council/walsall,WC69-528,30/06/2016,Social Care & Inclusion,BUSH HOME LTD,28/06/2016,"1,800.00",73373-RESIDENTIAL & NURSING CARE PLACEMENTS,OP COMMISSIONING,Third Party Payments,Revenue
Walsall Council,http://opendatacommunities.org/id/metropolitan-district-council/walsall,WC69-529,30/06/2016,Social Care & Inclusion,BUSH HOME LTD,28/06/2016,"1,800.00",73373-RESIDENTIAL & NURSING CARE PLACEMENTS,OP COMMISSIONING,Third Party Payments,Revenue
Walsall Council,http://opendatacommunities.org/id/metropolitan-district-council/walsall,WC69-530,30/06/2016,Social Care & Inclusion,BUSH HOME LTD,28/06/2016,"1,800.00",73373-RESIDENTIAL & NURSING CARE PLACEMENTS,OP COMMISSIONING,Third Party Payments,Revenue
Walsall Council,http://opendatacommunities.org/id/metropolitan-district-council/walsall,WC69-531,30/06/2016,Social Care & Inclusion,BUSH HOME LTD,28/06/2016,"1,800.00",73373-RESIDENTIAL & NURSING CARE PLACEMENTS,OP COMMISSIONING,Third Party Payments,Revenue
Walsall Council,http://opendatacommunities.org/id/metropolitan-district-council/walsall,WC69-532,30/06/2016,Social Care & Inclusion,BUSH HOME LTD,28/06/2016,"1,800.00",73373-RESIDENTIAL & NURSING CARE PLACEMENTS,OP COMMISSIONING,Third Party Payments,Revenue
Walsall Council,http://opendatacommunities.org/id/metropolitan-district-council/walsall,WC69-533,30/06/2016,Social Care & Inclusion,BUSH HOME LTD,28/06/2016,"1,800.00",73373-RESIDENTIAL & NURSING CARE PLACEMENTS,OP COMMISSIONING,Third Party Payments,Revenue
Walsall Council,http://opendatacommunities.org/id/metropolitan-district-council/walsall,WC69-534,30/06/2016,Social Care & Inclusion,BUSH HOME LTD,28/06/2016,"1,800.00",73373-RESIDENTIAL & NURSING CARE PLACEMENTS,MH COMMISSIONING,Third Party Payments,Revenue
Walsall Council,http://opendatacommunities.org/id/metropolitan-district-council/walsall,WC69-535,30/06/2016,Social Care & Inclusion,BUSH HOME LTD,28/06/2016,"1,800.00",73373-RESIDENTIAL & NURSING CARE PLACEMENTS,OP COMMISSIONING,Third Party Payments,Revenue
Walsall Council,http://opendatacommunities.org/id/metropolitan-district-council/walsall,WC69-536,30/06/2016,Social Care & Inclusion,BUSH HOME LTD,28/06/2016,"1,800.00",73373-RESIDENTIAL & NURSING CARE PLACEMENTS,OP COMMISSIONING,Third Party Payments,Revenue
Walsall Council,http://opendatacommunities.org/id/metropolitan-district-council/walsall,WC69-537,30/06/2016,Social Care & Inclusion,BUSH HOME LTD,28/06/2016,"1,800.00",73373-RESIDENTIAL & NURSING CARE PLACEMENTS,OP COMMISSIONING,Third Party Payments,Revenue
Walsall Council,http://opendatacommunities.org/id/metropolitan-district-council/walsall,WC69-538,30/06/2016,Social Care & Inclusion,BUSH HOME LTD,28/06/2016,"1,800.00",73373-RESIDENTIAL & NURSING CARE PLACEMENTS,MH COMMISSIONING,Third Party Payments,Revenue
Walsall Council,http://opendatacommunities.org/id/metropolitan-district-council/walsall,WC69-539,30/06/2016,Social Care & Inclusion,BUSH HOME LTD,28/06/2016,"1,800.00",73373-RESIDENTIAL & NURSING CARE PLACEMENTS,OP COMMISSIONING,Third Party Payments,Revenue
Walsall Council,http://opendatacommunities.org/id/metropolitan-district-council/walsall,WC69-540,30/06/2016,Social Care & Inclusion,BUSH HOME LTD,28/06/2016,"1,800.00",73373-RESIDENTIAL & NURSING CARE PLACEMENTS,OP COMMISSIONING,Third Party Payments,Revenue
Walsall Council,http://opendatacommunities.org/id/metropolitan-district-council/walsall,WC69-541,30/06/2016,Social Care & Inclusion,BUSH HOME LTD,22/06/2016,"3,342.86",73373-RESIDENTIAL & NURSING CARE PLACEMENTS,OP COMMISSIONING,Third Party Payments,Revenue
Walsall Council,http://opendatacommunities.org/id/metropolitan-district-council/walsall,WC69-542,30/06/2016,Childrens,BY THE BRIDGE,13/06/2016,"5,923.93",74037-INDEPENDENT FOSTER CARE-OTH AGENCY PROVISION,EXTERNAL FOSTER CARE PROVISION,Third Party Payments,Revenue
Walsall Council,http://opendatacommunities.org/id/metropolitan-district-council/walsall,WC69-543,30/06/2016,Social Care & Inclusion,C & V ORCHARD MANOR LTD,07/06/2016,"1,733.09",73373-RESIDENTIAL & NURSING CARE PLACEMENTS,OP COMMISSIONING,Third Party Payments,Revenue
Walsall Council,http://opendatacommunities.org/id/metropolitan-district-council/walsall,WC69-544,30/06/2016,Social Care & Inclusion,C & V ORCHARD MANOR LTD,07/06/2016,"1,733.15",73373-RESIDENTIAL & NURSING CARE PLACEMENTS,LD COMMISSIONING,Third Party Payments,Revenue
Walsall Council,http://opendatacommunities.org/id/metropolitan-district-council/walsall,WC69-545,30/06/2016,Social Care & Inclusion,C & V ORCHARD MANOR LTD,07/06/2016,"1,733.15",73373-RESIDENTIAL & NURSING CARE PLACEMENTS,OP COMMISSIONING,Third Party Payments,Revenue
Walsall Council,http://opendatacommunities.org/id/metropolitan-district-council/walsall,WC69-546,30/06/2016,Social Care & Inclusion,C & V ORCHARD MANOR LTD,07/06/2016,"1,752.00",73373-RESIDENTIAL & NURSING CARE PLACEMENTS,OP COMMISSIONING,Third Party Payments,Revenue
Walsall Council,http://opendatacommunities.org/id/metropolitan-district-council/walsall,WC69-547,30/06/2016,Social Care & Inclusion,C & V ORCHARD MANOR LTD,07/06/2016,"2,006.56",73373-RESIDENTIAL & NURSING CARE PLACEMENTS,OP COMMISSIONING,Third Party Payments,Revenue
Walsall Council,http://opendatacommunities.org/id/metropolitan-district-council/walsall,WC69-548,30/06/2016,Social Care & Inclusion,C & V ORCHARD MANOR LTD,07/06/2016,"2,006.56",73373-RESIDENTIAL & NURSING CARE PLACEMENTS,MH COMMISSIONING,Third Party Payments,Revenue
Walsall Council,http://opendatacommunities.org/id/metropolitan-district-council/walsall,WC69-549,30/06/2016,Social Care & Inclusion,C & V ORCHARD MANOR LTD,07/06/2016,"2,008.75",73373-RESIDENTIAL & NURSING CARE PLACEMENTS,OP COMMISSIONING,Third Party Payments,Revenue
Walsall Council,http://opendatacommunities.org/id/metropolitan-district-council/walsall,WC69-550,30/06/2016,Social Care & Inclusion,C & V ORCHARD RESIDENTIAL LTD,07/06/2016,"1,620.00",73373-RESIDENTIAL & NURSING CARE PLACEMENTS,OP COMMISSIONING,Third Party Payments,Revenue
Walsall Council,http://opendatacommunities.org/id/metropolitan-district-council/walsall,WC69-551,30/06/2016,Social Care & Inclusion,C & V ORCHARD RESIDENTIAL LTD,28/06/2016,"1,620.00",73373-RESIDENTIAL & NURSING CARE PLACEMENTS,OP COMMISSIONING,Third Party Payments,Revenue
Walsall Council,http://opendatacommunities.org/id/metropolitan-district-council/walsall,WC69-552,30/06/2016,Social Care & Inclusion,C & V ORCHARD RESIDENTIAL LTD,28/06/2016,"1,620.00",73373-RESIDENTIAL & NURSING CARE PLACEMENTS,OP COMMISSIONING,Third Party Payments,Revenue
Walsall Council,http://opendatacommunities.org/id/metropolitan-district-council/walsall,WC69-553,30/06/2016,Social Care & Inclusion,C & V ORCHARD RESIDENTIAL LTD,07/06/2016,"1,728.63",73373-RESIDENTIAL & NURSING CARE PLACEMENTS,OP COMMISSIONING,Third Party Payments,Revenue
Walsall Council,http://opendatacommunities.org/id/metropolitan-district-council/walsall,WC69-554,30/06/2016,Social Care & Inclusion,C & V ORCHARD RESIDENTIAL LTD,28/06/2016,"1,799.96",73373-RESIDENTIAL & NURSING CARE PLACEMENTS,OP COMMISSIONING,Third Party Payments,Revenue
Walsall Council,http://opendatacommunities.org/id/metropolitan-district-council/walsall,WC69-555,30/06/2016,Social Care & Inclusion,C & V ORCHARD RESIDENTIAL LTD,07/06/2016,"1,800.00",73373-RESIDENTIAL & NURSING CARE PLACEMENTS,OP COMMISSIONING,Third Party Payments,Revenue
Walsall Council,http://opendatacommunities.org/id/metropolitan-district-council/walsall,WC69-556,30/06/2016,Social Care & Inclusion,C & V ORCHARD RESIDENTIAL LTD,07/06/2016,"1,800.00",73373-RESIDENTIAL & NURSING CARE PLACEMENTS,OP COMMISSIONING,Third Party Payments,Revenue
Walsall Council,http://opendatacommunities.org/id/metropolitan-district-council/walsall,WC69-557,30/06/2016,Social Care & Inclusion,C & V ORCHARD RESIDENTIAL LTD,07/06/2016,"1,800.00",73373-RESIDENTIAL & NURSING CARE PLACEMENTS,OP COMMISSIONING,Third Party Payments,Revenue
Walsall Council,http://opendatacommunities.org/id/metropolitan-district-council/walsall,WC69-558,30/06/2016,Social Care & Inclusion,C & V ORCHARD RESIDENTIAL LTD,07/06/2016,"1,800.00",73373-RESIDENTIAL & NURSING CARE PLACEMENTS,OP COMMISSIONING,Third Party Payments,Revenue
Walsall Council,http://opendatacommunities.org/id/metropolitan-district-council/walsall,WC69-559,30/06/2016,Social Care & Inclusion,C & V ORCHARD RESIDENTIAL LTD,28/06/2016,"1,800.00",73373-RESIDENTIAL & NURSING CARE PLACEMENTS,OP COMMISSIONING,Third Party Payments,Revenue
Walsall Council,http://opendatacommunities.org/id/metropolitan-district-council/walsall,WC69-560,30/06/2016,Social Care & Inclusion,C & V ORCHARD RESIDENTIAL LTD,28/06/2016,"1,800.00",73373-RESIDENTIAL & NURSING CARE PLACEMENTS,OP COMMISSIONING,Third Party Payments,Revenue
Walsall Council,http://opendatacommunities.org/id/metropolitan-district-council/walsall,WC69-561,30/06/2016,Social Care & Inclusion,C & V ORCHARD RESIDENTIAL LTD,28/06/2016,"1,800.00",73373-RESIDENTIAL & NURSING CARE PLACEMENTS,OP COMMISSIONING,Third Party Payments,Revenue
Walsall Council,http://opendatacommunities.org/id/metropolitan-district-council/walsall,WC69-562,30/06/2016,Social Care & Inclusion,C & V ORCHARD RESIDENTIAL LTD,28/06/2016,"1,800.00",73373-RESIDENTIAL & NURSING CARE PLACEMENTS,OP COMMISSIONING,Third Party Payments,Revenue
Walsall Council,http://opendatacommunities.org/id/metropolitan-district-council/walsall,WC69-563,30/06/2016,Social Care & Inclusion,C & V ORCHARD RESIDENTIAL LTD,28/06/2016,"1,800.00",73373-RESIDENTIAL & NURSING CARE PLACEMENTS,OP COMMISSIONING,Third Party Payments,Revenue
Walsall Council,http://opendatacommunities.org/id/metropolitan-district-council/walsall,WC69-564,30/06/2016,Social Care & Inclusion,C & V ORCHARD RESIDENTIAL LTD,28/06/2016,"1,800.00",73373-RESIDENTIAL & NURSING CARE PLACEMENTS,OP COMMISSIONING,Third Party Payments,Revenue
Walsall Council,http://opendatacommunities.org/id/metropolitan-district-council/walsall,WC69-565,30/06/2016,Social Care & Inclusion,C & V ORCHARD RESIDENTIAL LTD,28/06/2016,"1,800.00",73373-RESIDENTIAL & NURSING CARE PLACEMENTS,OP COMMISSIONING,Third Party Payments,Revenue
Walsall Council,http://opendatacommunities.org/id/metropolitan-district-council/walsall,WC69-566,30/06/2016,Social Care & Inclusion,C & V ORCHARD RESIDENTIAL LTD,28/06/2016,"1,800.00",73373-RESIDENTIAL & NURSING CARE PLACEMENTS,OP COMMISSIONING,Third Party Payments,Revenue
Walsall Council,http://opendatacommunities.org/id/metropolitan-district-council/walsall,WC69-567,30/06/2016,Social Care & Inclusion,C & V ORCHARD RESIDENTIAL LTD,28/06/2016,"1,800.00",73373-RESIDENTIAL & NURSING CARE PLACEMENTS,OP COMMISSIONING,Third Party Payments,Revenue
Walsall Council,http://opendatacommunities.org/id/metropolitan-district-council/walsall,WC69-568,30/06/2016,Social Care & Inclusion,C & V ORCHARD RESIDENTIAL LTD,28/06/2016,"1,800.00",73373-RESIDENTIAL & NURSING CARE PLACEMENTS,OP COMMISSIONING,Third Party Payments,Revenue
Walsall Council,http://opendatacommunities.org/id/metropolitan-district-council/walsall,WC69-569,30/06/2016,Social Care & Inclusion,C & V ORCHARD RESIDENTIAL LTD,28/06/2016,"1,800.00",73373-RESIDENTIAL & NURSING CARE PLACEMENTS,OP COMMISSIONING,Third Party Payments,Revenue
Walsall Council,http://opendatacommunities.org/id/metropolitan-district-council/walsall,WC69-570,30/06/2016,Social Care & Inclusion,C & V ORCHARD RESIDENTIAL LTD,07/06/2016,"1,998.30",73373-RESIDENTIAL & NURSING CARE PLACEMENTS,OP COMMISSIONING,Third Party Payments,Revenue
Walsall Council,http://opendatacommunities.org/id/metropolitan-district-council/walsall,WC69-571,30/06/2016,Social Care & Inclusion,C & V ORCHARD RESIDENTIAL LTD,07/06/2016,"1,998.30",73373-RESIDENTIAL & NURSING CARE PLACEMENTS,OP COMMISSIONING,Third Party Payments,Revenue
Walsall Council,http://opendatacommunities.org/id/metropolitan-district-council/walsall,WC69-572,30/06/2016,Social Care & Inclusion,C & V ORCHARD RESIDENTIAL LTD,07/06/2016,"1,998.30",73373-RESIDENTIAL & NURSING CARE PLACEMENTS,OP COMMISSIONING,Third Party Payments,Revenue
Walsall Council,http://opendatacommunities.org/id/metropolitan-district-council/walsall,WC69-573,30/06/2016,Social Care & Inclusion,C & V ORCHARD RESIDENTIAL LTD,07/06/2016,"1,998.33",73373-RESIDENTIAL & NURSING CARE PLACEMENTS,OP COMMISSIONING,Third Party Payments,Revenue
Walsall Council,http://opendatacommunities.org/id/metropolitan-district-council/walsall,WC69-574,30/06/2016,Social Care & Inclusion,C & V ORCHARD RESIDENTIAL LTD,07/06/2016,"2,000.40",73373-RESIDENTIAL & NURSING CARE PLACEMENTS,OP COMMISSIONING,Third Party Payments,Revenue
Walsall Council,http://opendatacommunities.org/id/metropolitan-district-council/walsall,WC69-575,30/06/2016,Social Care & Inclusion,C & V ORCHARD RESIDENTIAL LTD,07/06/2016,"2,000.40",73373-RESIDENTIAL & NURSING CARE PLACEMENTS,OP COMMISSIONING,Third Party Payments,Revenue
Walsall Council,http://opendatacommunities.org/id/metropolitan-district-council/walsall,WC69-576,30/06/2016,Social Care & Inclusion,C & V ORCHARD RESIDENTIAL LTD,28/06/2016,"4,628.55",73373-RESIDENTIAL & NURSING CARE PLACEMENTS,OP COMMISSIONING,Third Party Payments,Revenue
Walsall Council,http://opendatacommunities.org/id/metropolitan-district-council/walsall,WC69-577,30/06/2016,Social Care & Inclusion,C & V ORCHARD RESIDENTIAL LTD,28/06/2016,"10,879.32",73373-RESIDENTIAL & NURSING CARE PLACEMENTS,OP COMMISSIONING,Third Party Payments,Revenue
Walsall Council,http://opendatacommunities.org/id/metropolitan-district-council/walsall,WC69-578,30/06/2016,Economy & Environment,C ART ART TRANSPORT LTD,27/06/2016,625.00,73032-TRANSPORTATION-PRIV CONTRACTOR FEES,NAG - TEMPORARY EXHIBITIONS,Third Party Payments,Revenue
Walsall Council,http://opendatacommunities.org/id/metropolitan-district-council/walsall,WC69-579,30/06/2016,Childrens,REDACTED,20/06/2016,"4,317.64",62515-MISCELLANEOUS SUPPLIES,INTERNAL FOSTER CARE PROVISION,Supplies & Services,Revenue
Walsall Council,http://opendatacommunities.org/id/metropolitan-district-council/walsall,WC69-580,30/06/2016,Childrens,REDACTED,20/06/2016,"4,877.96",74006-HOLIDAY/CHRISTMAS ALLOWANCE-FOSTER CARERS-OTH AGENCY PROVISION,INTERNAL FOSTER CARE PROVISION,Third Party Payments,Revenue
Walsall Council,http://opendatacommunities.org/id/metropolitan-district-council/walsall,WC69-581,30/06/2016,Childrens,REDACTED,20/06/2016,"1,445.32",62515-MISCELLANEOUS SUPPLIES,INTERNAL FOSTER CARE PROVISION,Supplies & Services,Revenue
Walsall Council,http://opendatacommunities.org/id/metropolitan-district-council/walsall,WC69-582,30/06/2016,Childrens,REDACTED,20/06/2016,"1,620.64",74006-HOLIDAY/CHRISTMAS ALLOWANCE-FOSTER CARERS-OTH AGENCY PROVISION,INTERNAL FOSTER CARE PROVISION,Third Party Payments,Revenue
Walsall Council,http://opendatacommunities.org/id/metropolitan-district-council/walsall,WC69-583,30/06/2016,Economy & Environment,C P DAVIDSON & SONS LTD,03/06/2016,362.00,60514-MATERIALS TO STORES,FLEET PARTS STOCK ACCOUNT,Supplies & Services,Revenue
Walsall Council,http://opendatacommunities.org/id/metropolitan-district-council/walsall,WC69-584,30/06/2016,Economy & Environment,C P DAVIDSON & SONS LTD,06/06/2016,750.00,60500-GENERAL MATERIALS,FLEET,Supplies & Services,Revenue
Walsall Council,http://opendatacommunities.org/id/metropolitan-district-council/walsall,WC69-585,30/06/2016,Economy & Environment,C P DAVIDSON & SONS LTD,03/06/2016,851.00,60514-MATERIALS TO STORES,FLEET PARTS STOCK ACCOUNT,Supplies & Services,Revenue
Walsall Council,http://opendatacommunities.org/id/metropolitan-district-council/walsall,WC69-586,30/06/2016,Childrens,REDACTED,06/06/2016,"1,714.32",74006-HOLIDAY/CHRISTMAS ALLOWANCE-FOSTER CARERS-OTH AGENCY PROVISION,INTERNAL FOSTER CARE PROVISION,Third Party Payments,Revenue
Walsall Council,http://opendatacommunities.org/id/metropolitan-district-council/walsall,WC69-587,30/06/2016,Economy & Environment,REDACTED,16/06/2016,893.75,63239-EXTERNAL WORKS-PAYMENT TO CONTRACTOR,NAG - TEMPORARY EXHIBITIONS,Third Party Payments,Revenue
Walsall Council,http://opendatacommunities.org/id/metropolitan-district-council/walsall,WC69-588,30/06/2016,Social Care & Inclusion,CALDMORE AREA HOUSING ASS LTD,28/06/2016,619.33,73373-RESIDENTIAL & NURSING CARE PLACEMENTS,MH COMMISSIONING,Third Party Payments,Revenue
Walsall Council,http://opendatacommunities.org/id/metropolitan-district-council/walsall,WC69-589,30/06/2016,Social Care & Inclusion,CALDMORE AREA HOUSING ASS LTD,28/06/2016,633.26,73373-RESIDENTIAL & NURSING CARE PLACEMENTS,MH COMMISSIONING,Third Party Payments,Revenue
Walsall Council,http://opendatacommunities.org/id/metropolitan-district-council/walsall,WC69-590,30/06/2016,Social Care & Inclusion,CALDMORE AREA HOUSING ASS LTD,28/06/2016,796.29,73373-RESIDENTIAL & NURSING CARE PLACEMENTS,MH COMMISSIONING,Third Party Payments,Revenue
Walsall Council,http://opendatacommunities.org/id/metropolitan-district-council/walsall,WC69-591,30/06/2016,Childrens,REDACTED,06/06/2016,372.84,74006-HOLIDAY/CHRISTMAS ALLOWANCE-FOSTER CARERS-OTH AGENCY PROVISION,INTERNAL FOSTER CARE PROVISION,Third Party Payments,Revenue
Walsall Council,http://opendatacommunities.org/id/metropolitan-district-council/walsall,WC69-592,30/06/2016,Childrens,REDACTED,13/06/2016,359.63,76422-DIRECT PAYMENTS TO SOCIAL SERVICES CLIENTS,FAMILY SUPPORT - DIRECT PAYMENTS,Transfer Payments,Revenue
Walsall Council,http://opendatacommunities.org/id/metropolitan-district-council/walsall,WC69-593,30/06/2016,Childrens,CAMBIAN CHILDCARE LIMITED,15/06/2016,"2,553.14",74037-INDEPENDENT FOSTER CARE-OTH AGENCY PROVISION,EXTERNAL FOSTER CARE PROVISION,Third Party Payments,Revenue
Walsall Council,http://opendatacommunities.org/id/metropolitan-district-council/walsall,WC69-594,30/06/2016,Childrens,CAMBIAN CHILDCARE LIMITED,13/06/2016,"3,060.14",74037-INDEPENDENT FOSTER CARE-OTH AGENCY PROVISION,EXTERNAL FOSTER CARE PROVISION,Third Party Payments,Revenue
Walsall Council,http://opendatacommunities.org/id/metropolitan-district-council/walsall,WC69-595,30/06/2016,Childrens,CAMBIAN CHILDCARE LIMITED,13/06/2016,"3,151.15",74037-INDEPENDENT FOSTER CARE-OTH AGENCY PROVISION,EXTERNAL FOSTER CARE PROVISION,Third Party Payments,Revenue
Walsall Council,http://opendatacommunities.org/id/metropolitan-district-council/walsall,WC69-596,30/06/2016,Childrens,CAMBIAN CHILDCARE LIMITED,16/06/2016,"3,210.00",74037-INDEPENDENT FOSTER CARE-OTH AGENCY PROVISION,EXTERNAL FOSTER CARE PROVISION,Third Party Payments,Revenue
Walsall Council,http://opendatacommunities.org/id/metropolitan-district-council/walsall,WC69-597,30/06/2016,Childrens,CAMBIAN CHILDCARE LIMITED,16/06/2016,"3,317.00",74037-INDEPENDENT FOSTER CARE-OTH AGENCY PROVISION,EXTERNAL FOSTER CARE PROVISION,Third Party Payments,Revenue
Walsall Council,http://opendatacommunities.org/id/metropolitan-district-council/walsall,WC69-598,30/06/2016,Childrens,CAMBIAN CHILDCARE LIMITED,13/06/2016,"3,361.64",74037-INDEPENDENT FOSTER CARE-OTH AGENCY PROVISION,EXTERNAL FOSTER CARE PROVISION,Third Party Payments,Revenue
Walsall Council,http://opendatacommunities.org/id/metropolitan-district-council/walsall,WC69-599,30/06/2016,Childrens,CAMBIAN CHILDCARE LIMITED,13/06/2016,"4,946.71",74037-INDEPENDENT FOSTER CARE-OTH AGENCY PROVISION,EXTERNAL FOSTER CARE PROVISION,Third Party Payments,Revenue
Walsall Council,http://opendatacommunities.org/id/metropolitan-district-council/walsall,WC69-600,30/06/2016,Social Care & Inclusion,CAMBIAN HEALTHCARE LTD,16/06/2016,336.90,73375-IN PATIENT BEDS,LD COMMISSIONING,Third Party Payments,Revenue
Walsall Council,http://opendatacommunities.org/id/metropolitan-district-council/walsall,WC69-601,30/06/2016,Social Care & Inclusion,CAMBIAN HEALTHCARE LTD,16/06/2016,"12,954.00",73375-IN PATIENT BEDS,LD COMMISSIONING,Third Party Payments,Revenue
Walsall Council,http://opendatacommunities.org/id/metropolitan-district-council/walsall,WC69-602,30/06/2016,Social Care & Inclusion,CAMBIAN LEARNING DISABILITES MIDLANDS LIMITED,16/06/2016,274.50,73375-IN PATIENT BEDS,LD COMMISSIONING,Third Party Payments,Revenue
Walsall Council,http://opendatacommunities.org/id/metropolitan-district-council/walsall,WC69-603,30/06/2016,Social Care & Inclusion,CAMBIAN LEARNING DISABILITES MIDLANDS LIMITED,16/06/2016,"10,557.00",73375-IN PATIENT BEDS,LD COMMISSIONING,Third Party Payments,Revenue
Walsall Council,http://opendatacommunities.org/id/metropolitan-district-council/walsall,WC69-604,30/06/2016,Economy & Environment,CAMERA ONE LIMITED,22/06/2016,850.00,73025-PROFESSIONAL SERVICES-PRIV CONTRACTOR & OTHER AGENCIES,DEPOT,Third Party Payments,Revenue
Walsall Council,http://opendatacommunities.org/id/metropolitan-district-council/walsall,WC69-605,30/06/2016,Economy & Environment,CAMERA ONE LIMITED,14/06/2016,925.00,73025-PROFESSIONAL SERVICES-PRIV CONTRACTOR & OTHER AGENCIES,DEPOT,Third Party Payments,Revenue
Walsall Council,http://opendatacommunities.org/id/metropolitan-district-council/walsall,WC69-606,30/06/2016,Economy & Environment,CAMERA ONE LIMITED,14/06/2016,975.00,73025-PROFESSIONAL SERVICES-PRIV CONTRACTOR & OTHER AGENCIES,DEPOT,Third Party Payments,Revenue
Walsall Council,http://opendatacommunities.org/id/metropolitan-district-council/walsall,WC69-607,30/06/2016,Economy & Environment,CAMERA ONE LIMITED,13/06/2016,"1,005.00",60006-NEW-FURNITURE & EQUIPMENT,GROUNDS,Supplies & Services,Revenue
Walsall Council,http://opendatacommunities.org/id/metropolitan-district-council/walsall,WC69-608,30/06/2016,Economy & Environment,CAMERA ONE LIMITED,13/06/2016,"1,005.00",73025-PROFESSIONAL SERVICES-PRIV CONTRACTOR & OTHER AGENCIES,DEPOT,Third Party Payments,Revenue
Walsall Council,http://opendatacommunities.org/id/metropolitan-district-council/walsall,WC69-609,30/06/2016,Economy & Environment,CANAL & RIVER TRUST,06/06/2016,"14,785.66",01006-SITE WORKS MAIN CONTRACTORS,CFR 1121 MANAGING SHORT TRIPS,Capital,Capital
Walsall Council,http://opendatacommunities.org/id/metropolitan-district-council/walsall,WC69-610,30/06/2016,Social Care & Inclusion,REDACTED,13/06/2016,"4,500.00",76422-DIRECT PAYMENTS TO SOCIAL SERVICES CLIENTS,OP COMMISSIONING,Transfer Payments,Revenue
Walsall Council,http://opendatacommunities.org/id/metropolitan-district-council/walsall,WC69-611,30/06/2016,Change and Governance,CAPITA BUSINESS SERVICES LTD 001,28/06/2016,781.00,63800-COMPUTER EQUIPMENT AND SUPPLIES,APPLICATIONS,Supplies & Services,Revenue
Walsall Council,http://opendatacommunities.org/id/metropolitan-district-council/walsall,WC69-612,30/06/2016,Change and Governance,CAPITA BUSINESS SERVICES LTD 001,16/06/2016,"5,897.50",63800-COMPUTER EQUIPMENT AND SUPPLIES,RECHARGEABLE EQUIPMENT,Supplies & Services,Revenue
Walsall Council,http://opendatacommunities.org/id/metropolitan-district-council/walsall,WC69-613,30/06/2016,Change and Governance,CAPITA SPECIALIST INSURANCE SOLUTIONS,16/06/2016,"17,502.88",67000-MISC INSURANCES - INSURANCE PREMIUMS,RISK & INSURANCE,Supplies & Services,Revenue
Walsall Council,http://opendatacommunities.org/id/metropolitan-district-council/walsall,WC69-614,30/06/2016,Economy & Environment,CAPITA TREASURY SOLUTIONS LIMITED,16/06/2016,"1,300.74",52003-OPERATING LEASES-VEHICLES,LEASING,Central,Revenue
Walsall Council,http://opendatacommunities.org/id/metropolitan-district-council/walsall,WC69-615,30/06/2016,Economy & Environment,CARDSTREAM LIMITED,29/06/2016,216.00,63000-PROFESSIONAL FEES AND SERVICES,FOREST ARTS CENTRE,Supplies & Services,Revenue
Walsall Council,http://opendatacommunities.org/id/metropolitan-district-council/walsall,WC69-616,30/06/2016,Social Care & Inclusion,CARE 2 U LIMITED,08/06/2016,"1,526.45",73372-DOMICILIARY CARE,OP COMMISSIONING,Third Party Payments,Revenue
Walsall Council,http://opendatacommunities.org/id/metropolitan-district-council/walsall,WC69-617,30/06/2016,Social Care & Inclusion,CARE 2 U LIMITED,21/06/2016,"38,697.24",73372-DOMICILIARY CARE,OP COMMISSIONING,Third Party Payments,Revenue
Walsall Council,http://opendatacommunities.org/id/metropolitan-district-council/walsall,WC69-618,30/06/2016,Childrens,CARE 4 CHILDREN RESIDENTIAL SERVICES LTD,13/06/2016,"16,500.00",74036-EXTERNAL RESIDENTIAL CARE-OTH AGENCY PROVISION,INDEPENDENT RESIDENTIAL HOMES,Third Party Payments,Revenue
Walsall Council,http://opendatacommunities.org/id/metropolitan-district-council/walsall,WC69-619,30/06/2016,Social Care & Inclusion,CARE AVENUES LTD,27/06/2016,-626.75,73372-DOMICILIARY CARE,OP COMMISSIONING,Third Party Payments,Revenue
Walsall Council,http://opendatacommunities.org/id/metropolitan-district-council/walsall,WC69-620,30/06/2016,Social Care & Inclusion,CARE AVENUES LTD,24/06/2016,282.00,73372-DOMICILIARY CARE,OP COMMISSIONING,Third Party Payments,Revenue
Walsall Council,http://opendatacommunities.org/id/metropolitan-district-council/walsall,WC69-621,30/06/2016,Social Care & Inclusion,CARE AVENUES LTD,21/06/2016,"12,272.00",73372-DOMICILIARY CARE,OP COMMISSIONING,Third Party Payments,Revenue
Walsall Council,http://opendatacommunities.org/id/metropolitan-district-council/walsall,WC69-622,30/06/2016,Social Care & Inclusion,CARE QUALITY COMMISSION,13/06/2016,"7,195.00",73025-PROFESSIONAL SERVICES-PRIV CONTRACTOR & OTHER AGENCIES,PROVIDER CONTRACTS,Third Party Payments,Revenue
Walsall Council,http://opendatacommunities.org/id/metropolitan-district-council/walsall,WC69-623,30/06/2016,Social Care & Inclusion,CARE SHOP,02/06/2016,268.50,73025-PROFESSIONAL SERVICES-PRIV CONTRACTOR & OTHER AGENCIES,COMMUNITY INTERMEDIATE CARE,Third Party Payments,Revenue
Walsall Council,http://opendatacommunities.org/id/metropolitan-district-council/walsall,WC69-624,30/06/2016,Social Care & Inclusion,CARE SHOP,15/06/2016,344.48,60000-FURNITURE & EQUIPMENT,REABLEMENT TEAM - HOLLY BANK,Supplies & Services,Revenue
Walsall Council,http://opendatacommunities.org/id/metropolitan-district-council/walsall,WC69-625,30/06/2016,Social Care & Inclusion,CARE SHOP,02/06/2016,917.87,60539-CLEANING MATERIALS,REABLEMENT TEAM - HOLLY BANK,Supplies & Services,Revenue
Walsall Council,http://opendatacommunities.org/id/metropolitan-district-council/walsall,WC69-626,30/06/2016,Childrens,CARE TODAY CHILDRENS SERVICES,27/06/2016,"11,492.01",74036-EXTERNAL RESIDENTIAL CARE-OTH AGENCY PROVISION,INDEPENDENT RESIDENTIAL HOMES,Third Party Payments,Revenue
Walsall Council,http://opendatacommunities.org/id/metropolitan-district-council/walsall,WC69-627,30/06/2016,Childrens,CARE TODAY CHILDRENS SERVICES,27/06/2016,"11,492.01",74036-EXTERNAL RESIDENTIAL CARE-OTH AGENCY PROVISION,INDEPENDENT RESIDENTIAL HOMES,Third Party Payments,Revenue
Walsall Council,http://opendatacommunities.org/id/metropolitan-district-council/walsall,WC69-628,30/06/2016,Childrens,CARE TODAY CHILDRENS SERVICES,27/06/2016,"14,096.01",74036-EXTERNAL RESIDENTIAL CARE-OTH AGENCY PROVISION,INDEPENDENT RESIDENTIAL HOMES,Third Party Payments,Revenue
Walsall Council,http://opendatacommunities.org/id/metropolitan-district-council/walsall,WC69-629,30/06/2016,Childrens,CAREFIRST SERVICES LIMITED,27/06/2016,"1,757.40",76010-ACCOMMODATION AND RELATED COSTS-ASSISTANCE TO S/S CLIENTS,TRANSITION AND LEAVING CARE,Transfer Payments,Revenue
Walsall Council,http://opendatacommunities.org/id/metropolitan-district-council/walsall,WC69-630,30/06/2016,Childrens,CAREFIRST SERVICES LIMITED,27/06/2016,"1,795.80",76010-ACCOMMODATION AND RELATED COSTS-ASSISTANCE TO S/S CLIENTS,TRANSITION AND LEAVING CARE,Transfer Payments,Revenue
Walsall Council,http://opendatacommunities.org/id/metropolitan-district-council/walsall,WC69-631,30/06/2016,Childrens,CAREFIRST SERVICES LIMITED,27/06/2016,"1,863.16",76010-ACCOMMODATION AND RELATED COSTS-ASSISTANCE TO S/S CLIENTS,TRANSITION AND LEAVING CARE,Transfer Payments,Revenue
Walsall Council,http://opendatacommunities.org/id/metropolitan-district-council/walsall,WC69-632,30/06/2016,Childrens,CAREFIRST SERVICES LIMITED,27/06/2016,"1,885.80",76010-ACCOMMODATION AND RELATED COSTS-ASSISTANCE TO S/S CLIENTS,TRANSITION AND LEAVING CARE,Transfer Payments,Revenue
Walsall Council,http://opendatacommunities.org/id/metropolitan-district-council/walsall,WC69-633,30/06/2016,Childrens,CAREFIRST SERVICES LIMITED,27/06/2016,"1,933.66",76010-ACCOMMODATION AND RELATED COSTS-ASSISTANCE TO S/S CLIENTS,TRANSITION AND LEAVING CARE,Transfer Payments,Revenue
Walsall Council,http://opendatacommunities.org/id/metropolitan-district-council/walsall,WC69-634,30/06/2016,Childrens,CAREFIRST SERVICES LIMITED,27/06/2016,"2,046.16",76010-ACCOMMODATION AND RELATED COSTS-ASSISTANCE TO S/S CLIENTS,TRANSITION AND LEAVING CARE,Transfer Payments,Revenue
Walsall Council,http://opendatacommunities.org/id/metropolitan-district-council/walsall,WC69-635,30/06/2016,Childrens,CAREFIRST SERVICES LIMITED,27/06/2016,"3,235.80",76010-ACCOMMODATION AND RELATED COSTS-ASSISTANCE TO S/S CLIENTS,TRANSITION AND LEAVING CARE,Transfer Payments,Revenue
Walsall Council,http://opendatacommunities.org/id/metropolitan-district-council/walsall,WC69-636,30/06/2016,Childrens,CAREFIRST SERVICES LIMITED,27/06/2016,"3,733.66",76010-ACCOMMODATION AND RELATED COSTS-ASSISTANCE TO S/S CLIENTS,TRANSITION AND LEAVING CARE,Transfer Payments,Revenue
Walsall Council,http://opendatacommunities.org/id/metropolitan-district-council/walsall,WC69-637,30/06/2016,Social Care & Inclusion,CARETECH COMMUNITY SERVICE,20/06/2016,"1,171.37",73374-SUPPORTED & OTHER ACCOMMODATION,LD COMMISSIONING,Third Party Payments,Revenue
Walsall Council,http://opendatacommunities.org/id/metropolitan-district-council/walsall,WC69-638,30/06/2016,Social Care & Inclusion,CARETECH COMMUNITY SERVICE,20/06/2016,"4,885.71",73374-SUPPORTED & OTHER ACCOMMODATION,OP COMMISSIONING,Third Party Payments,Revenue
Walsall Council,http://opendatacommunities.org/id/metropolitan-district-council/walsall,WC69-639,30/06/2016,Social Care & Inclusion,CAREVIEW SERVICES LTD,14/06/2016,"6,583.36",73373-RESIDENTIAL & NURSING CARE PLACEMENTS,LD COMMISSIONING,Third Party Payments,Revenue
Walsall Council,http://opendatacommunities.org/id/metropolitan-district-council/walsall,WC69-640,30/06/2016,Social Care & Inclusion,CARING CARE LIMITED,06/06/2016,"16,149.49",73372-DOMICILIARY CARE,OP COMMISSIONING,Third Party Payments,Revenue
Walsall Council,http://opendatacommunities.org/id/metropolitan-district-council/walsall,WC69-641,30/06/2016,Social Care & Inclusion,CARING CARE LIMITED,21/06/2016,"65,190.80",73372-DOMICILIARY CARE,OP COMMISSIONING,Third Party Payments,Revenue
Walsall Council,http://opendatacommunities.org/id/metropolitan-district-council/walsall,WC69-642,30/06/2016,Social Care & Inclusion,CARING HANDS LIMITED,06/06/2016,"1,226.11",73372-DOMICILIARY CARE,OP COMMISSIONING,Third Party Payments,Revenue
Walsall Council,http://opendatacommunities.org/id/metropolitan-district-council/walsall,WC69-643,30/06/2016,Social Care & Inclusion,CARING HANDS LIMITED,21/06/2016,"52,122.79",73372-DOMICILIARY CARE,OP COMMISSIONING,Third Party Payments,Revenue
Walsall Council,http://opendatacommunities.org/id/metropolitan-district-council/walsall,WC69-644,30/06/2016,Social Care & Inclusion,REDACTED,13/06/2016,270.48,73374-SUPPORTED & OTHER ACCOMMODATION,LD COMMISSIONING,Third Party Payments,Revenue
Walsall Council,http://opendatacommunities.org/id/metropolitan-district-council/walsall,WC69-645,30/06/2016,Social Care & Inclusion,REDACTED,10/06/2016,"1,637.40",73374-SUPPORTED & OTHER ACCOMMODATION,YADS COMMISSIONING,Third Party Payments,Revenue
Walsall Council,http://opendatacommunities.org/id/metropolitan-district-council/walsall,WC69-646,30/06/2016,Social Care & Inclusion,REDACTED,10/06/2016,"1,637.40",73374-SUPPORTED & OTHER ACCOMMODATION,YADS COMMISSIONING,Third Party Payments,Revenue
Walsall Council,http://opendatacommunities.org/id/metropolitan-district-council/walsall,WC69-647,30/06/2016,Social Care & Inclusion,REDACTED,27/06/2016,"1,637.40",73374-SUPPORTED & OTHER ACCOMMODATION,YADS COMMISSIONING,Third Party Payments,Revenue
Walsall Council,http://opendatacommunities.org/id/metropolitan-district-council/walsall,WC69-648,30/06/2016,Social Care & Inclusion,REDACTED,27/06/2016,"1,637.40",73374-SUPPORTED & OTHER ACCOMMODATION,YADS COMMISSIONING,Third Party Payments,Revenue
Walsall Council,http://opendatacommunities.org/id/metropolitan-district-council/walsall,WC69-649,30/06/2016,Social Care & Inclusion,REDACTED,13/06/2016,562.50,76422-DIRECT PAYMENTS TO SOCIAL SERVICES CLIENTS,YADS COMMISSIONING,Transfer Payments,Revenue
Walsall Council,http://opendatacommunities.org/id/metropolitan-district-council/walsall,WC69-650,30/06/2016,Childrens,REDACTED,20/06/2016,470.96,74006-HOLIDAY/CHRISTMAS ALLOWANCE-FOSTER CARERS-OTH AGENCY PROVISION,INTERNAL FOSTER CARE PROVISION,Third Party Payments,Revenue
Walsall Council,http://opendatacommunities.org/id/metropolitan-district-council/walsall,WC69-651,30/06/2016,Childrens,REDACTED,20/06/2016,540.20,62515-MISCELLANEOUS SUPPLIES,INTERNAL FOSTER CARE PROVISION,Supplies & Services,Revenue
Walsall Council,http://opendatacommunities.org/id/metropolitan-district-council/walsall,WC69-652,30/06/2016,Childrens,REDACTED,06/06/2016,361.12,74006-HOLIDAY/CHRISTMAS ALLOWANCE-FOSTER CARERS-OTH AGENCY PROVISION,INTERNAL FOSTER CARE PROVISION,Third Party Payments,Revenue
Walsall Council,http://opendatacommunities.org/id/metropolitan-district-council/walsall,WC69-653,30/06/2016,Childrens,REDACTED,08/06/2016,901.76,63000-PROFESSIONAL FEES AND SERVICES,SAFEGUARDING & FAMILY SUPPORT,Supplies & Services,Revenue
Walsall Council,http://opendatacommunities.org/id/metropolitan-district-council/walsall,WC69-654,30/06/2016,Childrens,REDACTED,22/06/2016,"1,255.00",73014-LEGAL FEES-PRIV CONTRACTOR FEES,GENERAL MANAGEMENT SUPPORT (INC LEGAL),Third Party Payments,Revenue
Walsall Council,http://opendatacommunities.org/id/metropolitan-district-council/walsall,WC69-655,30/06/2016,Childrens,CARTER BROWN LTD T/A CARTER BROWN THE EXPERT SERVICE,01/06/2016,574.16,73014-LEGAL FEES-PRIV CONTRACTOR FEES,GENERAL MANAGEMENT SUPPORT (INC LEGAL),Third Party Payments,Revenue
Walsall Council,http://opendatacommunities.org/id/metropolitan-district-council/walsall,WC69-656,30/06/2016,Economy & Environment,CARTER SYNERGY LTD,23/06/2016,222.20,"40000-REPAIRS,ALTERATIONS & MAINTENANCE-PREM",NAG - MAINTENANCE,Premises,Revenue
Walsall Council,http://opendatacommunities.org/id/metropolitan-district-council/walsall,WC69-657,30/06/2016,Economy & Environment,CARTER SYNERGY LTD,23/06/2016,271.14,"40000-REPAIRS,ALTERATIONS & MAINTENANCE-PREM",NAG - MAINTENANCE,Premises,Revenue
Walsall Council,http://opendatacommunities.org/id/metropolitan-district-council/walsall,WC69-658,30/06/2016,Economy & Environment,CARTER SYNERGY LTD,13/06/2016,371.80,40015-ALARM CALL OUTS-OP MTCE,NAG - MAINTENANCE,Premises,Revenue
Walsall Council,http://opendatacommunities.org/id/metropolitan-district-council/walsall,WC69-659,30/06/2016,Economy & Environment,CARTER SYNERGY LTD,13/06/2016,397.10,40015-ALARM CALL OUTS-OP MTCE,NAG - MAINTENANCE,Premises,Revenue
Walsall Council,http://opendatacommunities.org/id/metropolitan-district-council/walsall,WC69-660,30/06/2016,Economy & Environment,CARTER SYNERGY LTD,23/06/2016,498.72,"40000-REPAIRS,ALTERATIONS & MAINTENANCE-PREM",NAG - MAINTENANCE,Premises,Revenue
Walsall Council,http://opendatacommunities.org/id/metropolitan-district-council/walsall,WC69-661,30/06/2016,Economy & Environment,CARTER SYNERGY LTD,03/06/2016,"25,806.00",01044-PURCHASE OF FURNITURE & EQUIPMENT,CFR 1045 GALLERY-ACE SMALL CAPITAL PROJECT,Capital,Capital
Walsall Council,http://opendatacommunities.org/id/metropolitan-district-council/walsall,WC69-662,30/06/2016,Economy & Environment,CATCHER MEDIA SOCIAL CIC,06/06/2016,"3,500.00",63000-PROFESSIONAL FEES AND SERVICES,EXTL FUNDED ARTS AND YOUNG PEOPLE,Supplies & Services,Revenue
Walsall Council,http://opendatacommunities.org/id/metropolitan-district-council/walsall,WC69-663,30/06/2016,Economy & Environment,CATCHER MEDIA SOCIAL CIC,27/06/2016,"4,900.00",63000-PROFESSIONAL FEES AND SERVICES,EXTL FUNDED ARTS AND YOUNG PEOPLE,Supplies & Services,Revenue
Walsall Council,http://opendatacommunities.org/id/metropolitan-district-council/walsall,WC69-664,30/06/2016,Social Care & Inclusion,REDACTED,13/06/2016,778.35,76422-DIRECT PAYMENTS TO SOCIAL SERVICES CLIENTS,LD COMMISSIONING,Transfer Payments,Revenue
Walsall Council,http://opendatacommunities.org/id/metropolitan-district-council/walsall,WC69-665,30/06/2016,Social Care & Inclusion,REDACTED,13/06/2016,863.10,76422-DIRECT PAYMENTS TO SOCIAL SERVICES CLIENTS,MH COMMISSIONING,Transfer Payments,Revenue
Walsall Council,http://opendatacommunities.org/id/metropolitan-district-council/walsall,WC69-666,30/06/2016,Childrens,REDACTED,06/06/2016,425.08,74006-HOLIDAY/CHRISTMAS ALLOWANCE-FOSTER CARERS-OTH AGENCY PROVISION,INTERNAL FOSTER CARE PROVISION,Third Party Payments,Revenue
Walsall Council,http://opendatacommunities.org/id/metropolitan-district-council/walsall,WC69-667,30/06/2016,Social Care & Inclusion,REDACTED,13/06/2016,485.50,76422-DIRECT PAYMENTS TO SOCIAL SERVICES CLIENTS,LD COMMISSIONING,Transfer Payments,Revenue
Walsall Council,http://opendatacommunities.org/id/metropolitan-district-council/walsall,WC69-668,30/06/2016,Childrens,REDACTED,13/06/2016,"1,267.83",76422-DIRECT PAYMENTS TO SOCIAL SERVICES CLIENTS,FAMILY SUPPORT - DIRECT PAYMENTS,Transfer Payments,Revenue
Walsall Council,http://opendatacommunities.org/id/metropolitan-district-council/walsall,WC69-669,30/06/2016,Childrens,REDACTED,06/06/2016,425.08,74006-HOLIDAY/CHRISTMAS ALLOWANCE-FOSTER CARERS-OTH AGENCY PROVISION,INTERNAL FOSTER CARE PROVISION,Third Party Payments,Revenue
Walsall Council,http://opendatacommunities.org/id/metropolitan-district-council/walsall,WC69-670,30/06/2016,Change and Governance,CCS MEDIA LTD,22/06/2016,419.05,63800-COMPUTER EQUIPMENT AND SUPPLIES,RECHARGEABLE EQUIPMENT,Supplies & Services,Revenue
Walsall Council,http://opendatacommunities.org/id/metropolitan-district-council/walsall,WC69-671,30/06/2016,Change and Governance,CCS MEDIA LTD,29/06/2016,620.00,63604-TELEPHONES MOBILE/PAGERS-TELEPHONES,RECHARGEABLE EQUIPMENT,Supplies & Services,Revenue
Walsall Council,http://opendatacommunities.org/id/metropolitan-district-council/walsall,WC69-672,30/06/2016,Change and Governance,CE SECURITY LTD,27/06/2016,"4,713.28",73002-SECURITY-PRIV CONTRACTOR FEES,ACCOMMODATION SERVICES MANAGEMENT,Third Party Payments,Revenue
Walsall Council,http://opendatacommunities.org/id/metropolitan-district-council/walsall,WC69-673,30/06/2016,Economy & Environment,CENTRAL AND NORTH WEST LONDON NHS FOUNDATION TRUST,01/06/2016,306.54,63000-PROFESSIONAL FEES AND SERVICES,SEXUAL HEALTH,Supplies & Services,Revenue
Walsall Council,http://opendatacommunities.org/id/metropolitan-district-council/walsall,WC69-674,30/06/2016,Economy & Environment,CENTRAL CONSTRUCTION TRAINING LTD,16/06/2016,"3,000.00",66500-GRANTS TO OTHER ORGS,RES-WALSALL WORKS,Third Party Payments,Revenue
Walsall Council,http://opendatacommunities.org/id/metropolitan-district-council/walsall,WC69-675,30/06/2016,Economy & Environment,CENTRAL THEATRE SUPPLIES,13/06/2016,38.00,60500-GENERAL MATERIALS,FOREST ARTS CENTRE,Supplies & Services,Revenue
Walsall Council,http://opendatacommunities.org/id/metropolitan-district-council/walsall,WC69-676,30/06/2016,Economy & Environment,CENTRAL THEATRE SUPPLIES,20/06/2016,472.00,63000-PROFESSIONAL FEES AND SERVICES,FOREST ARTS CENTRE,Supplies & Services,Revenue
Walsall Council,http://opendatacommunities.org/id/metropolitan-district-council/walsall,WC69-677,30/06/2016,Economy & Environment,CENTRAL THEATRE SUPPLIES,13/06/2016,"1,472.00",01044-PURCHASE OF FURNITURE & EQUIPMENT,CFR 1014 FOREST ARTS CENTRE (RENOVATION OF SPORTS HALL),Capital,Capital
Walsall Council,http://opendatacommunities.org/id/metropolitan-district-council/walsall,WC69-678,30/06/2016,Economy & Environment,CENTRO WMPTA,13/06/2016,"50,000.00",01045-PRIVATE GRANTS,CFR 1072 MANAGING SHORT TRIPS,Capital,Capital
Walsall Council,http://opendatacommunities.org/id/metropolitan-district-council/walsall,WC69-679,30/06/2016,Economy & Environment,CENTRO WMPTA,10/06/2016,"1,832,937.00",01045-PRIVATE GRANTS,CFR 1072 MANAGING SHORT TRIPS,Capital,Capital
Walsall Council,http://opendatacommunities.org/id/metropolitan-district-council/walsall,WC69-680,30/06/2016,Economy & Environment,CERTAS ENERGY UK LIMITED,21/06/2016,413.70,50301-FUEL-TRANSPORT RUN COSTS,TARMAC,Transport,Revenue
Walsall Council,http://opendatacommunities.org/id/metropolitan-district-council/walsall,WC69-681,30/06/2016,Economy & Environment,CERTAS ENERGY UK LIMITED,08/06/2016,591.00,50301-FUEL-TRANSPORT RUN COSTS,FUEL STOCK ACCOUNT,Transport,Revenue
Walsall Council,http://opendatacommunities.org/id/metropolitan-district-council/walsall,WC69-682,30/06/2016,Economy & Environment,CERTAS ENERGY UK LIMITED,16/06/2016,622.05,50301-FUEL-TRANSPORT RUN COSTS,FUEL STOCK ACCOUNT,Transport,Revenue
Walsall Council,http://opendatacommunities.org/id/metropolitan-district-council/walsall,WC69-683,30/06/2016,Economy & Environment,CERTAS ENERGY UK LIMITED,21/06/2016,627.60,50301-FUEL-TRANSPORT RUN COSTS,FUEL STOCK ACCOUNT,Transport,Revenue
Walsall Council,http://opendatacommunities.org/id/metropolitan-district-council/walsall,WC69-684,30/06/2016,Economy & Environment,CERTAS ENERGY UK LIMITED,08/06/2016,"1,173.00",50301-FUEL-TRANSPORT RUN COSTS,FUEL STOCK ACCOUNT,Transport,Revenue
Walsall Council,http://opendatacommunities.org/id/metropolitan-district-council/walsall,WC69-685,30/06/2016,Economy & Environment,CERTAS ENERGY UK LIMITED,16/06/2016,"1,235.51",50301-FUEL-TRANSPORT RUN COSTS,FUEL STOCK ACCOUNT,Transport,Revenue
Walsall Council,http://opendatacommunities.org/id/metropolitan-district-council/walsall,WC69-686,30/06/2016,Economy & Environment,CERTAS ENERGY UK LIMITED,16/06/2016,"14,739.00",50301-FUEL-TRANSPORT RUN COSTS,FUEL STOCK ACCOUNT,Transport,Revenue
Walsall Council,http://opendatacommunities.org/id/metropolitan-district-council/walsall,WC69-687,30/06/2016,Economy & Environment,CERTAS ENERGY UK LIMITED,08/06/2016,"16,879.02",50301-FUEL-TRANSPORT RUN COSTS,FUEL STOCK ACCOUNT,Transport,Revenue
Walsall Council,http://opendatacommunities.org/id/metropolitan-district-council/walsall,WC69-688,30/06/2016,Economy & Environment,CERTAS ENERGY UK LIMITED,08/06/2016,"16,986.70",50301-FUEL-TRANSPORT RUN COSTS,FUEL STOCK ACCOUNT,Transport,Revenue
Walsall Council,http://opendatacommunities.org/id/metropolitan-district-council/walsall,WC69-689,30/06/2016,Economy & Environment,CERTAS ENERGY UK LIMITED,16/06/2016,"17,425.58",50301-FUEL-TRANSPORT RUN COSTS,FUEL STOCK ACCOUNT,Transport,Revenue
Walsall Council,http://opendatacommunities.org/id/metropolitan-district-council/walsall,WC69-690,30/06/2016,Economy & Environment,CERTAS ENERGY UK LIMITED,21/06/2016,"17,551.22",50301-FUEL-TRANSPORT RUN COSTS,FUEL STOCK ACCOUNT,Transport,Revenue
Walsall Council,http://opendatacommunities.org/id/metropolitan-district-council/walsall,WC69-691,30/06/2016,Change and Governance,CEXC LIMITED,03/06/2016,"2,387.27",63800-COMPUTER EQUIPMENT AND SUPPLIES,SIT-INFRASTRUCTURE,Supplies & Services,Revenue
Walsall Council,http://opendatacommunities.org/id/metropolitan-district-council/walsall,WC69-692,30/06/2016,Change and Governance,CEXC LIMITED,03/06/2016,"7,000.00",63800-COMPUTER EQUIPMENT AND SUPPLIES,RECHARGEABLE EQUIPMENT,Supplies & Services,Revenue
Walsall Council,http://opendatacommunities.org/id/metropolitan-district-council/walsall,WC69-693,30/06/2016,Childrens,CF CORPORATE FINANCE LTD,01/06/2016,255.00,60009-LEASING/HIRE/RENTAL-EQUIPMENT,LOCALITY FAMILY SUPPORT-NORTH,Supplies & Services,Revenue
Walsall Council,http://opendatacommunities.org/id/metropolitan-district-council/walsall,WC69-694,30/06/2016,Childrens,CF CORPORATE FINANCE LTD,08/06/2016,442.40,60009-LEASING/HIRE/RENTAL-EQUIPMENT,BLOXWICH CHILDCARE SERVICE,Supplies & Services,Revenue
Walsall Council,http://opendatacommunities.org/id/metropolitan-district-council/walsall,WC69-695,30/06/2016,Childrens,CF CORPORATE FINANCE LTD,22/06/2016,"1,290.34",63800-COMPUTER EQUIPMENT AND SUPPLIES,INITIAL RESPONSE SERVICE,Supplies & Services,Revenue
Walsall Council,http://opendatacommunities.org/id/metropolitan-district-council/walsall,WC69-696,30/06/2016,Childrens,CHANGE GROW LIVE (CGL),14/06/2016,"8,667.00",73025-PROFESSIONAL SERVICES-PRIV CONTRACTOR & OTHER AGENCIES,TROUBLED FAMILIES GRANT (STRENGHTENING FAMILIES),Third Party Payments,Revenue
Walsall Council,http://opendatacommunities.org/id/metropolitan-district-council/walsall,WC69-697,30/06/2016,Childrens,CHANGE GROW LIVE (CGL),29/06/2016,"9,333.33",73025-PROFESSIONAL SERVICES-PRIV CONTRACTOR & OTHER AGENCIES,TROUBLED FAMILIES GRANT (STRENGHTENING FAMILIES),Third Party Payments,Revenue
Walsall Council,http://opendatacommunities.org/id/metropolitan-district-council/walsall,WC69-698,30/06/2016,Social Care & Inclusion,REDACTED,13/06/2016,935.00,76422-DIRECT PAYMENTS TO SOCIAL SERVICES CLIENTS,YADS COMMISSIONING,Transfer Payments,Revenue
Walsall Council,http://opendatacommunities.org/id/metropolitan-district-council/walsall,WC69-699,30/06/2016,Childrens,REDACTED,13/06/2016,323.70,76422-DIRECT PAYMENTS TO SOCIAL SERVICES CLIENTS,FAMILY SUPPORT - DIRECT PAYMENTS,Transfer Payments,Revenue
Walsall Council,http://opendatacommunities.org/id/metropolitan-district-council/walsall,WC69-700,30/06/2016,Social Care & Inclusion,CHARMEND LTD,28/06/2016,983.57,73373-RESIDENTIAL & NURSING CARE PLACEMENTS,OP COMMISSIONING,Third Party Payments,Revenue
Walsall Council,http://opendatacommunities.org/id/metropolitan-district-council/walsall,WC69-701,30/06/2016,Social Care & Inclusion,CHARMEND LTD,08/06/2016,"25,714.29",73019-PSE'S-PRIV CONTRACTOR FEES,TRANSITIONAL CARE SUPPORT TEAM,Third Party Payments,Revenue
Walsall Council,http://opendatacommunities.org/id/metropolitan-district-council/walsall,WC69-702,30/06/2016,Social Care & Inclusion,CHARTER CARE,06/06/2016,"10,350.99",73372-DOMICILIARY CARE,OP COMMISSIONING,Third Party Payments,Revenue
Walsall Council,http://opendatacommunities.org/id/metropolitan-district-council/walsall,WC69-703,30/06/2016,Social Care & Inclusion,CHARTER CARE,29/06/2016,"46,702.19",73372-DOMICILIARY CARE,OP COMMISSIONING,Third Party Payments,Revenue
Walsall Council,http://opendatacommunities.org/id/metropolitan-district-council/walsall,WC69-704,30/06/2016,Social Care & Inclusion,CHASEVIEW CARE HOME,14/06/2016,"1,672.00",73373-RESIDENTIAL & NURSING CARE PLACEMENTS,OP COMMISSIONING,Third Party Payments,Revenue
Walsall Council,http://opendatacommunities.org/id/metropolitan-district-council/walsall,WC69-705,30/06/2016,Social Care & Inclusion,CHASEVIEW CARE HOME,14/06/2016,"1,672.00",73373-RESIDENTIAL & NURSING CARE PLACEMENTS,OP COMMISSIONING,Third Party Payments,Revenue
Walsall Council,http://opendatacommunities.org/id/metropolitan-district-council/walsall,WC69-706,30/06/2016,Economy & Environment,CHELSEA AND WESTMINSTER HOSPITAL,01/06/2016,339.02,63000-PROFESSIONAL FEES AND SERVICES,SEXUAL HEALTH,Supplies & Services,Revenue
Walsall Council,http://opendatacommunities.org/id/metropolitan-district-council/walsall,WC69-707,30/06/2016,Economy & Environment,CHELSEA AND WESTMINSTER HOSPITAL,01/06/2016,508.53,63000-PROFESSIONAL FEES AND SERVICES,SEXUAL HEALTH,Supplies & Services,Revenue
Walsall Council,http://opendatacommunities.org/id/metropolitan-district-council/walsall,WC69-708,30/06/2016,Social Care & Inclusion,CHERISH HOME CARE,02/06/2016,357.50,73372-DOMICILIARY CARE,OP COMMISSIONING,Third Party Payments,Revenue
Walsall Council,http://opendatacommunities.org/id/metropolitan-district-council/walsall,WC69-709,30/06/2016,Social Care & Inclusion,CHERISH HOME CARE,02/06/2016,357.50,73372-DOMICILIARY CARE,OP COMMISSIONING,Third Party Payments,Revenue
Walsall Council,http://opendatacommunities.org/id/metropolitan-district-council/walsall,WC69-710,30/06/2016,Social Care & Inclusion,CHERISH HOME CARE,02/06/2016,364.00,73372-DOMICILIARY CARE,OP COMMISSIONING,Third Party Payments,Revenue
Walsall Council,http://opendatacommunities.org/id/metropolitan-district-council/walsall,WC69-711,30/06/2016,Social Care & Inclusion,CHERISH HOME CARE,02/06/2016,650.00,73372-DOMICILIARY CARE,OP COMMISSIONING,Third Party Payments,Revenue
Walsall Council,http://opendatacommunities.org/id/metropolitan-district-council/walsall,WC69-712,30/06/2016,Social Care & Inclusion,CHERISH HOME CARE,03/06/2016,728.00,73372-DOMICILIARY CARE,YADS COMMISSIONING,Third Party Payments,Revenue
Walsall Council,http://opendatacommunities.org/id/metropolitan-district-council/walsall,WC69-713,30/06/2016,Social Care & Inclusion,CHERISH HOME CARE,03/06/2016,819.00,73372-DOMICILIARY CARE,OP COMMISSIONING,Third Party Payments,Revenue
Walsall Council,http://opendatacommunities.org/id/metropolitan-district-council/walsall,WC69-714,30/06/2016,Social Care & Inclusion,CHERISH HOME CARE,03/06/2016,890.50,73372-DOMICILIARY CARE,OP COMMISSIONING,Third Party Payments,Revenue
Walsall Council,http://opendatacommunities.org/id/metropolitan-district-council/walsall,WC69-715,30/06/2016,Social Care & Inclusion,CHERISH HOME CARE,03/06/2016,910.00,73372-DOMICILIARY CARE,OP COMMISSIONING,Third Party Payments,Revenue
Walsall Council,http://opendatacommunities.org/id/metropolitan-district-council/walsall,WC69-716,30/06/2016,Social Care & Inclusion,CHERISH HOME CARE,03/06/2016,962.00,73372-DOMICILIARY CARE,OP COMMISSIONING,Third Party Payments,Revenue
Walsall Council,http://opendatacommunities.org/id/metropolitan-district-council/walsall,WC69-717,30/06/2016,Social Care & Inclusion,CHERISH HOME CARE,03/06/2016,"1,638.00",73372-DOMICILIARY CARE,OP COMMISSIONING,Third Party Payments,Revenue
Walsall Council,http://opendatacommunities.org/id/metropolitan-district-council/walsall,WC69-718,30/06/2016,Social Care & Inclusion,CHERISH HOME CARE,02/06/2016,"1,872.00",73372-DOMICILIARY CARE,OP COMMISSIONING,Third Party Payments,Revenue
Walsall Council,http://opendatacommunities.org/id/metropolitan-district-council/walsall,WC69-719,30/06/2016,Social Care & Inclusion,REDACTED,13/06/2016,"2,002.00",76422-DIRECT PAYMENTS TO SOCIAL SERVICES CLIENTS,LD COMMISSIONING,Transfer Payments,Revenue
Walsall Council,http://opendatacommunities.org/id/metropolitan-district-council/walsall,WC69-720,30/06/2016,Childrens,CHILDCARE BUREAU LTD,13/06/2016,"3,278.34",74037-INDEPENDENT FOSTER CARE-OTH AGENCY PROVISION,EXTERNAL FOSTER CARE PROVISION,Third Party Payments,Revenue
Walsall Council,http://opendatacommunities.org/id/metropolitan-district-council/walsall,WC69-721,30/06/2016,Childrens,CHILDCARE BUREAU LTD,13/06/2016,"3,399.76",74037-INDEPENDENT FOSTER CARE-OTH AGENCY PROVISION,EXTERNAL FOSTER CARE PROVISION,Third Party Payments,Revenue
Walsall Council,http://opendatacommunities.org/id/metropolitan-district-council/walsall,WC69-722,30/06/2016,Childrens,CHILDCARE BUREAU LTD,27/06/2016,"3,399.76",74037-INDEPENDENT FOSTER CARE-OTH AGENCY PROVISION,EXTERNAL FOSTER CARE PROVISION,Third Party Payments,Revenue
Walsall Council,http://opendatacommunities.org/id/metropolitan-district-council/walsall,WC69-723,30/06/2016,Childrens,CHILDCARE BUREAU LTD,27/06/2016,"6,000.12",74037-INDEPENDENT FOSTER CARE-OTH AGENCY PROVISION,EXTERNAL FOSTER CARE PROVISION,Third Party Payments,Revenue
Walsall Council,http://opendatacommunities.org/id/metropolitan-district-council/walsall,WC69-724,30/06/2016,Childrens,CHILDLINK,20/06/2016,88.00,63128-HIRE OF ROOM-SERVICES-FEES,CONTACT SESSIONAL STAFF,Supplies & Services,Revenue
Walsall Council,http://opendatacommunities.org/id/metropolitan-district-council/walsall,WC69-725,30/06/2016,Childrens,CHILDLINK,20/06/2016,96.80,53001-OTHER/VOLUNTEERS-CAR ALLOWANCES,CONTACT SESSIONAL STAFF,Transport,Revenue
Walsall Council,http://opendatacommunities.org/id/metropolitan-district-council/walsall,WC69-726,30/06/2016,Childrens,CHILDLINK,17/06/2016,214.50,76003-SECTION 34 (CONTACT),CONTACT SESSIONAL STAFF,Third Party Payments,Revenue
Walsall Council,http://opendatacommunities.org/id/metropolitan-district-council/walsall,WC69-727,30/06/2016,Childrens,CHILDLINK,17/06/2016,233.00,76003-SECTION 34 (CONTACT),CONTACT SESSIONAL STAFF,Third Party Payments,Revenue
Walsall Council,http://opendatacommunities.org/id/metropolitan-district-council/walsall,WC69-728,30/06/2016,Childrens,CHILDLINK,27/06/2016,237.96,76003-SECTION 34 (CONTACT),CONTACT SESSIONAL STAFF,Third Party Payments,Revenue
Walsall Council,http://opendatacommunities.org/id/metropolitan-district-council/walsall,WC69-729,30/06/2016,Childrens,CHILDLINK,17/06/2016,262.85,76003-SECTION 34 (CONTACT),CONTACT SESSIONAL STAFF,Third Party Payments,Revenue
Walsall Council,http://opendatacommunities.org/id/metropolitan-district-council/walsall,WC69-730,30/06/2016,Childrens,CHILDLINK,20/06/2016,273.00,53003-OTHER-TRAVEL ALLOWANCES,CONTACT SESSIONAL STAFF,Transport,Revenue
Walsall Council,http://opendatacommunities.org/id/metropolitan-district-council/walsall,WC69-731,30/06/2016,Childrens,CHILDLINK,17/06/2016,288.10,76003-SECTION 34 (CONTACT),CONTACT SESSIONAL STAFF,Third Party Payments,Revenue
Walsall Council,http://opendatacommunities.org/id/metropolitan-district-council/walsall,WC69-732,30/06/2016,Childrens,CHILDLINK,27/06/2016,749.50,76003-SECTION 34 (CONTACT),CONTACT SESSIONAL STAFF,Third Party Payments,Revenue
Walsall Council,http://opendatacommunities.org/id/metropolitan-district-council/walsall,WC69-733,30/06/2016,Childrens,CHILDLINK,17/06/2016,959.60,76003-SECTION 34 (CONTACT),CONTACT SESSIONAL STAFF,Third Party Payments,Revenue
Walsall Council,http://opendatacommunities.org/id/metropolitan-district-council/walsall,WC69-734,30/06/2016,Childrens,CHILDLINK,06/06/2016,"1,126.40",76003-SECTION 34 (CONTACT),CONTACT SESSIONAL STAFF,Third Party Payments,Revenue
Walsall Council,http://opendatacommunities.org/id/metropolitan-district-council/walsall,WC69-735,30/06/2016,Childrens,CHILDREN ALWAYS FIRST LTD,13/06/2016,"2,929.50",74037-INDEPENDENT FOSTER CARE-OTH AGENCY PROVISION,EXTERNAL FOSTER CARE PROVISION,Third Party Payments,Revenue
Walsall Council,http://opendatacommunities.org/id/metropolitan-district-council/walsall,WC69-736,30/06/2016,Childrens,CHILDREN ALWAYS FIRST LTD,13/06/2016,"3,128.79",74037-INDEPENDENT FOSTER CARE-OTH AGENCY PROVISION,EXTERNAL FOSTER CARE PROVISION,Third Party Payments,Revenue
Walsall Council,http://opendatacommunities.org/id/metropolitan-district-council/walsall,WC69-737,30/06/2016,Childrens,CHILDREN ALWAYS FIRST LTD,13/06/2016,"3,128.79",74037-INDEPENDENT FOSTER CARE-OTH AGENCY PROVISION,EXTERNAL FOSTER CARE PROVISION,Third Party Payments,Revenue
Walsall Council,http://opendatacommunities.org/id/metropolitan-district-council/walsall,WC69-738,30/06/2016,Childrens,CHILDREN ALWAYS FIRST LTD,13/06/2016,"3,428.56",74037-INDEPENDENT FOSTER CARE-OTH AGENCY PROVISION,EXTERNAL FOSTER CARE PROVISION,Third Party Payments,Revenue
Walsall Council,http://opendatacommunities.org/id/metropolitan-district-council/walsall,WC69-739,30/06/2016,Childrens,CHILDREN ALWAYS FIRST LTD,13/06/2016,"3,520.71",74037-INDEPENDENT FOSTER CARE-OTH AGENCY PROVISION,EXTERNAL FOSTER CARE PROVISION,Third Party Payments,Revenue
Walsall Council,http://opendatacommunities.org/id/metropolitan-district-council/walsall,WC69-740,30/06/2016,Childrens,CHILDREN ALWAYS FIRST LTD,13/06/2016,"3,631.43",74037-INDEPENDENT FOSTER CARE-OTH AGENCY PROVISION,EXTERNAL FOSTER CARE PROVISION,Third Party Payments,Revenue
Walsall Council,http://opendatacommunities.org/id/metropolitan-district-council/walsall,WC69-741,30/06/2016,Social Care & Inclusion,CHOICECARE 2000 LIMITED,28/06/2016,"3,108.64",73373-RESIDENTIAL & NURSING CARE PLACEMENTS,MH COMMISSIONING,Third Party Payments,Revenue
Walsall Council,http://opendatacommunities.org/id/metropolitan-district-council/walsall,WC69-742,30/06/2016,Social Care & Inclusion,CHOICECARE 2000 LIMITED,28/06/2016,"3,108.64",73373-RESIDENTIAL & NURSING CARE PLACEMENTS,MH COMMISSIONING,Third Party Payments,Revenue
Walsall Council,http://opendatacommunities.org/id/metropolitan-district-council/walsall,WC69-743,30/06/2016,Social Care & Inclusion,CHOICECARE 2000 LIMITED,22/06/2016,"3,272.72",73373-RESIDENTIAL & NURSING CARE PLACEMENTS,MH COMMISSIONING,Third Party Payments,Revenue
Walsall Council,http://opendatacommunities.org/id/metropolitan-district-council/walsall,WC69-744,30/06/2016,Childrens,CHRIS DENNISON CONSULTING LTD,17/06/2016,372.95,63000-PROFESSIONAL FEES AND SERVICES,ADOPTION TEAM,Supplies & Services,Revenue
Walsall Council,http://opendatacommunities.org/id/metropolitan-district-council/walsall,WC69-745,30/06/2016,Childrens,CHRIS DENNISON CONSULTING LTD,08/06/2016,"1,118.85",63000-PROFESSIONAL FEES AND SERVICES,ADOPTION TEAM,Supplies & Services,Revenue
Walsall Council,http://opendatacommunities.org/id/metropolitan-district-council/walsall,WC69-746,30/06/2016,Social Care & Inclusion,REDACTED,13/06/2016,"1,862.03",76422-DIRECT PAYMENTS TO SOCIAL SERVICES CLIENTS,MH COMMISSIONING,Transfer Payments,Revenue
Walsall Council,http://opendatacommunities.org/id/metropolitan-district-council/walsall,WC69-747,30/06/2016,Social Care & Inclusion,REDACTED,13/06/2016,612.00,76422-DIRECT PAYMENTS TO SOCIAL SERVICES CLIENTS,YADS COMMISSIONING,Transfer Payments,Revenue
Walsall Council,http://opendatacommunities.org/id/metropolitan-district-council/walsall,WC69-748,30/06/2016,Social Care & Inclusion,REDACTED,13/06/2016,"2,635.00",76422-DIRECT PAYMENTS TO SOCIAL SERVICES CLIENTS,OP COMMISSIONING,Transfer Payments,Revenue
Walsall Council,http://opendatacommunities.org/id/metropolitan-district-council/walsall,WC69-749,30/06/2016,Childrens,REDACTED,06/06/2016,747.52,74006-HOLIDAY/CHRISTMAS ALLOWANCE-FOSTER CARERS-OTH AGENCY PROVISION,INTERNAL FOSTER CARE PROVISION,Third Party Payments,Revenue
Walsall Council,http://opendatacommunities.org/id/metropolitan-district-council/walsall,WC69-750,30/06/2016,Social Care & Inclusion,REDACTED,13/06/2016,"1,027.70",76422-DIRECT PAYMENTS TO SOCIAL SERVICES CLIENTS,YADS COMMISSIONING,Transfer Payments,Revenue
Walsall Council,http://opendatacommunities.org/id/metropolitan-district-council/walsall,WC69-751,30/06/2016,Social Care & Inclusion,REDACTED,13/06/2016,735.00,76422-DIRECT PAYMENTS TO SOCIAL SERVICES CLIENTS,OP COMMISSIONING,Transfer Payments,Revenue
Walsall Council,http://opendatacommunities.org/id/metropolitan-district-council/walsall,WC69-752,30/06/2016,Childrens,REDACTED,20/06/2016,354.48,62515-MISCELLANEOUS SUPPLIES,INTERNAL FOSTER CARE PROVISION,Supplies & Services,Revenue
Walsall Council,http://opendatacommunities.org/id/metropolitan-district-council/walsall,WC69-753,30/06/2016,Childrens,REDACTED,20/06/2016,650.92,74006-HOLIDAY/CHRISTMAS ALLOWANCE-FOSTER CARERS-OTH AGENCY PROVISION,INTERNAL FOSTER CARE PROVISION,Third Party Payments,Revenue
Walsall Council,http://opendatacommunities.org/id/metropolitan-district-council/walsall,WC69-754,30/06/2016,Childrens,CHUBB ELECTRONIC SECURITY SYSTEMS LTD,01/06/2016,770.38,60008-MAINTENANCE-FURNITURE & EQUIPMENT,ALUMWELL NURSERY,Supplies & Services,Revenue
Walsall Council,http://opendatacommunities.org/id/metropolitan-district-council/walsall,WC69-755,30/06/2016,Change and Governance,CHUBB ELECTRONIC SECURITY SYSTEMS LTD,27/06/2016,809.32,73002-SECURITY-PRIV CONTRACTOR FEES,REDUNDANT BUILDINGS,Third Party Payments,Revenue
Walsall Council,http://opendatacommunities.org/id/metropolitan-district-council/walsall,WC69-756,30/06/2016,Childrens,CHUBB FIRE & SECURITY LTD,17/06/2016,236.72,40018-OTHER-OP MTCE,LOCALITY FAMILY SUPPORT-NORTH,Premises,Revenue
Walsall Council,http://opendatacommunities.org/id/metropolitan-district-council/walsall,WC69-757,30/06/2016,Change and Governance,CHUBB FIRE & SECURITY LTD,08/06/2016,423.94,73002-SECURITY-PRIV CONTRACTOR FEES,CENTRALISED MAINTENANCE,Third Party Payments,Revenue
Walsall Council,http://opendatacommunities.org/id/metropolitan-district-council/walsall,WC69-758,30/06/2016,Change and Governance,CHUBB FIRE & SECURITY LTD,02/06/2016,776.96,73002-SECURITY-PRIV CONTRACTOR FEES,REDUNDANT BUILDINGS,Third Party Payments,Revenue
Walsall Council,http://opendatacommunities.org/id/metropolitan-district-council/walsall,WC69-759,30/06/2016,Change and Governance,CHUBB FIRE & SECURITY LTD,08/06/2016,945.10,73002-SECURITY-PRIV CONTRACTOR FEES,CENTRALISED MAINTENANCE,Third Party Payments,Revenue
Walsall Council,http://opendatacommunities.org/id/metropolitan-district-council/walsall,WC69-760,30/06/2016,Change and Governance,CHUBB FIRE & SECURITY LTD,08/06/2016,"1,702.36",73002-SECURITY-PRIV CONTRACTOR FEES,CENTRAL OFFICE ACCOMMODATION,Third Party Payments,Revenue
Walsall Council,http://opendatacommunities.org/id/metropolitan-district-council/walsall,WC69-761,30/06/2016,Change and Governance,CHUBB FIRE & SECURITY LTD,03/06/2016,"3,140.00",73002-SECURITY-PRIV CONTRACTOR FEES,CENTRAL OFFICE ACCOMMODATION,Third Party Payments,Revenue
Walsall Council,http://opendatacommunities.org/id/metropolitan-district-council/walsall,WC69-762,30/06/2016,Change and Governance,CHUBB FIRE & SECURITY LTD,03/06/2016,"4,489.00",73002-SECURITY-PRIV CONTRACTOR FEES,CENTRAL OFFICE ACCOMMODATION,Third Party Payments,Revenue
Walsall Council,http://opendatacommunities.org/id/metropolitan-district-council/walsall,WC69-763,30/06/2016,Economy & Environment,CIEH,21/06/2016,"1,186.90",30030-EXTERNAL TRAINING,COMPLIANCE MANAGEMENT,Employees,Revenue
